Workbook

Sheet Table1A List of required stocks
A1: Table1A: List of required stocks
L2: WP years | M2: 2018-2019
L3: AR year | M3: 2018
A4: MS | B4: Reference years | C4: Species | D4: Region | E4: RFMO/RFO/IO | F4: Area / Stock | G4: Selected for sampling (Y/N) | H4: Average landings in the reference years (tons) | I4: EU TAC (if any) (%) | J4: Share (%) in EU landings | K4: Threshold (Y/N) | L4: Comments | M4: Changes in species landings
A5: SWE | B5: 2013-2015 | C5: All | D5: All | E5: All | F5: All | G5: NA | H5: NA | I5: NA | J5: NA | K5: NA | L5: In general, figures on landings are based on EUROSTAT, TACs are based on FIDES opening quota table and the areas are based on Table 1A in EU MAP. These data sources do not always corresponds to each other or to the stock definition. Deviations from this common approach are described in the comments below. | M5: empty cells= if no sampling, no info on changes "0" , "negative value", "positive value" = absolute change; 2018 compared to reference years
A6: SWE | B6: 2013-2015 | C6: Anguilla anguilla | D6: East Arctic, Norwegian sea and Barents sea | E6: ICES | F6: I, II | G6: N | H6: <200 | I6: None | J6: None | K6: NA
A7: SWE | B7: 2013-2015 | C7: Brosme brosme | D7: East Arctic, Norwegian sea and Barents sea | E7: ICES | F7: I, II | G7: N | H7: <200 | I7: None | J7: None | K7: Y
A8: SWE | B8: 2013-2015 | C8: Clupea harengus | D8: East Arctic, Norwegian sea and Barents sea | E8: ICES | F8: I, II | G8: N | H8: <200 | I8: 0.13 | J8: None | K8: Y
A9: SWE | B9: 2013-2015 | C9: Gadus morhua | D9: East Arctic, Norwegian sea and Barents sea | E9: ICES | F9: I, II | G9: N | H9: <200 | I9: None | J9: None | K9: Y
A10: SWE | B10: 2013-2015 | C10: Mallotus villosus | D10: East Arctic, Norwegian sea and Barents sea | E10: ICES | F10: I, II | G10: N | H10: <200 | I10: None | J10: None | K10: Y
A11: SWE | B11: 2013-2015 | C11: Melanogrammus aeglefinus | D11: East Arctic, Norwegian sea and Barents sea | E11: ICES | F11: I, II | G11: N | H11: <200 | I11: None | J11: None | K11: Y
A12: SWE | B12: 2013-2015 | C12: Micromesistius poutassou | D12: East Arctic, Norwegian sea and Barents sea | E12: ICES | F12: I, II | G12: N | H12: <200 | I12: 0.04 | J12: None | K12: Y
A13: SWE | B13: 2013-2015 | C13: Pandalus borealis | D13: East Arctic, Norwegian sea and Barents sea | E13: ICES | F13: I, II | G13: N | H13: <200 | I13: 0.03 | J13: None | K13: Y
A14: SWE | B14: 2013-2015 | C14: Pollachius virens | D14: East Arctic, Norwegian sea and Barents sea | E14: ICES | F14: I, II | G14: N | H14: <200 | I14: None | J14: None | K14: Y
A15: SWE | B15: 2013-2015 | C15: Reinhardtius hippoglossoides | D15: East Arctic, Norwegian sea and Barents sea | E15: ICES | F15: I, II | G15: N | H15: <200 | I15: None | J15: None | K15: Y
A16: SWE | B16: 2013-2015 | C16: Salmo salar | D16: East Arctic, Norwegian sea and Barents sea | E16: ICES | F16: I, II | G16: N | H16: <200 | I16: None | J16: None | K16: Y
A17: SWE | B17: 2013-2015 | C17: Scomber scombrus | D17: East Arctic, Norwegian sea and Barents sea | E17: ICES | F17: II | G17: N | H17: 1630 | I17: None | J17: 0.08 | K17: Y | L17: The mackerel stock is widely distributed and covers subareas I,II,III, IV, V, VI, VII and XIV and divisions VIIIa-e and IXa. Sweden is fishing on the northern component of the stock (area IIIa and IV). The Swedish share on the total stock is well below the threshold of 10 %. An agreement with UK to secure the overall sampling is setup.
A18: SWE | B18: 2013-2015 | C18: Sebastes marinus | D18: East Arctic, Norwegian sea and Barents sea | E18: ICES | F18: I, II | G18: N | H18: <200 | I18: None | J18: None | K18: Y
A19: SWE | B19: 2013-2015 | C19: Sebastes mentella | D19: East Arctic, Norwegian sea and Barents sea | E19: ICES | F19: I, II | G19: N | H19: <200 | I19: None | J19: None | K19: Y
A20: SWE | B20: 2013-2015 | C20: Trachurus trachurus | D20: East Arctic, Norwegian sea and Barents sea | E20: ICES | F20: IIa | G20: N | H20: <200 | I20: 0.01 | J20: None | K20: Y
A21: SWE | B21: 2013-2015 | C21: Ammodytidae | D21: Skagerrak and Kattegat | E21: ICES | F21: IIIa | G21: N | H21: <200 | I21: None | J21: None | K21: Y
A22: SWE | B22: 2013-2015 | C22: Anguilla anguilla | D22: Skagerrak and Kattegat | E22: ICES | F22: IIIa | G22: Y | H22: <200 | I22: None | J22: 0.05 | K22: NA | L22: Fishing is largely prohibited and sampling is carried out through a survey | M22: 0
A23: SWE | B23: 2013-2015 | C23: Clupea harengus | D23: Skagerrak and Kattegat | E23: ICES | F23: IIIa | G23: Y | H23: 17080 | I23: 0.45 | J23: 0.72 | K23: N | M23: 297
A24: SWE | B24: 2013-2015 | C24: Coryphaenoides rupestris | D24: Skagerrak and Kattegat | E24: ICES | F24: IIIa | G24: N | H24: <200 | I24: None | J24: None | K24: Y
A25: SWE | B25: 2013-2015 | C25: Eutrigla gurnardus | D25: Skagerrak and Kattegat | E25: ICES | F25: IIIa | G25: N | H25: <200 | I25: None | J25: 0.18 | K25: Y
A26: SWE | B26: 2013-2015 | C26: Aspitrigla cuculus | D26: Skagerrak and Kattegat | E26: ICES | F26: IIIa | G26: N | H26: <200 | I26: None | J26: None | K26: Y
A27: SWE | B27: 2013-2015 | C27: Gadus morhua | D27: Skagerrak and Kattegat | E27: ICES | F27: IIIaN | G27: Y | H27: 560 | I27: 0.14 | J27: 0.14 | K27: N | L27: Landings based on ICES WGBFAS allocation | M27: 119
A28: SWE | B28: 2013-2015 | C28: Gadus morhua | D28: Skagerrak and Kattegat | E28: ICES | F28: IIIaS | G28: Y | H28: <200 | I28: 0.37 | J28: 0.33 | K28: N | L28: Landings based on ICES WGBFAS allocation. As the TAC´s (2013-2015) for the stock are low (100-300 tonnes), will appliance of the 200 tonnes threshold imply that the stock will not be sampled at all. As Sweden has 38% of the TAC we will continue to sample the stock. | M28: 3
A29: SWE | B29: 2013-2015 | C29: Glyptocephalus cynoglossus | D29: Skagerrak and Kattegat | E29: ICES | F29: IIIa | G29: Y | H29: 240 | I29: None | J29: 0.19 | K29: N | M29: -74
A30: SWE | B30: 2013-2015 | C30: Limanda limanda | D30: Skagerrak and Kattegat | E30: ICES | F30: IIIa | G30: N | H30: <200 | I30: None | J30: 0.02 | K30: Y
A31: SWE | B31: 2013-2015 | C31: Melanogrammus aeglefinus | D31: Skagerrak and Kattegat | E31: ICES | F31: IIIa | G31: Y | H31: 210 | I31: 0.1 | J31: 0.12 | K31: Y | L31: Sampled for biological parameters in surveys only.
A32: SWE | B32: 2013-2015 | C32: Merlangius merlangus | D32: Skagerrak and Kattegat | E32: ICES | F32: IIIa | G32: Y | H32: <200 | I32: 0.1 | J32: 0.2 | K32: Y | L32: Sampled for biological parameters in surveys only.
A33: SWE | B33: 2013-2015 | C33: Merluccius merluccius | D33: Skagerrak and Kattegat | E33: ICES | F33: IIIa | G33: N | H33: <200 | I33: 0.08 | J33: 0.11 | K33: Y
A34: SWE | B34: 2013-2015 | C34: Micromesistius poutassou | D34: Skagerrak and Kattegat | E34: ICES | F34: IIIa | G34: N | H34: <200 | I34: 0.04 | J34: 0.31 | K34: Y
A35: SWE | B35: 2015 | C35: Nephrops norvegicus | D35: Skagerrak and Kattegat | E35: ICES | F35: Functional unit 3-4 | G35: Y | H35: 1180 | I35: None | J35: 0.31 | K35: N | L35: Data on international landings was only available for 2015 as these figures origins from ICES Intercatch (landings by Functional Unit was not available in EUROSTAT. | M35: 689
A36: SWE | B36: 2013-2015 | C36: Pandalus borealis | D36: Skagerrak and Kattegat | E36: ICES | F36: IIIa | G36: Y | H36: 1195 | I36: 0.35 | J36: 0.35 | K36: N | M36: 0
A37: SWE | B37: 2013-2015 | C37: Pleuronectes platessa | D37: Skagerrak and Kattegat | E37: ICES | F37: IIIa | G37: Y | H37: 295 | I37: 0.05 | J37: 0.03 | K37: Y | L37: Sampled for biological parameters in surveys only. Bilateral agreement with DEN. For plaice we have followed the regions applied in table 1A in EU-MAP. In reality there are two plaice stocks in this region. SWE has limited TAC and landings in both and they are combined in one line to be consistence with table 1A in EU MAP.
A38: SWE | B38: 2013-2015 | C38: Pollachius virens | D38: Skagerrak and Kattegat | E38: ICES | F38: IIIa | G38: Y | H38: 345 | I38: None | J38: 0.17 | K38: Y | L38: Sampled for biological parameters in surveys only. According to manual Saithe in IIIa appears above threshold for the sole reason that the area in column F do not match the stock/TAC. The TACs covers area IIIa and IV. The Swedish share of the overall TACs (EU zone and Norwegian zone) is less than 2 %.
A39: SWE | B39: 2013-2015 | C39: Salmo salar | D39: Skagerrak and Kattegat | E39: ICES | F39: IIIa | G39: Y | H39: <200 | I39: None | J39: 1 | K39: NA
A40: SWE | B40: 2013-2015 | C40: Psetta maxima | D40: Skagerrak and Kattegat | E40: ICES | F40: IIIa | G40: N | H40: <200 | I40: None | J40: 0.11 | K40: Y
A41: SWE | B41: 2013-2015 | C41: Scomber scombrus | D41: Skagerrak and Kattegat | E41: ICES | F41: IIIa | G41: N | H41: 340 | I41: None | J41: 0.66 | K41: Y | L41: The mackerel stock is widely distributed and covers subareas I,II,III, IV, V, VI, VII and XIV and divisions VIIIa-e and IXa. Sweden is fishing on the northern component of the stock (area IIIa and IV). The Swedish share on the total stock is well below the threshold of 10 %. An agreement with UK to secure the overall sampling is setup.
A42: SWE | B42: 2013-2015 | C42: Scophthalmus rhombus | D42: Skagerrak and Kattegat | E42: ICES | F42: IIIa | G42: N | H42: <200 | I42: None | J42: 0.15 | K42: Y
A43: SWE | B43: 2013-2015 | C43: Solea solea | D43: Skagerrak and Kattegat | E43: ICES | F43: IIIa | G43: N | H43: <200 | I43: 0.03 | J43: 0.13 | K43: Y
A44: SWE | B44: 2013-2015 | C44: Sprattus sprattus | D44: Skagerrak and Kattegat | E44: ICES | F44: IIIa | G44: Y | H44: 1285 | I44: 0.27 | J44: 0.09 | K44: N | M44: -229
A45: SWE | B45: 2013-2015 | C45: Trisopterus esmarkii | D45: Skagerrak and Kattegat | E45: ICES | F45: IIIa | G45: Y | H45: <200 | I45: 0 | J45: None | K45: Y | L45: Sampled for biological parameters in surveys only, according to manual.
A46: SWE | B46: 2013-2015 | C46: Anguilla anguilla | D46: Baltic Sea | E46: ICES | F46: 22-32 | G46: Y | H46: 210 | I46: None | J46: 0.38 | K46: N | M46: -69
A47: SWE | B47: 2013-2015 | C47: Clupea harengus | D47: Baltic Sea | E47: ICES | F47: 22-24 | G47: Y | H47: 1915 | I47: 0.18 | J47: 0.09 | K47: N | M47: -558
A48: SWE | B48: 2013-2015 | C48: Clupea harengus | D48: Baltic Sea | E48: ICES | F48: 25-29, 32 | G48: Y | H48: 38435 | I48: 0.33 | J48: 0.33 | K48: N | M48: 28483
A49: SWE | B49: 2013-2015 | C49: Clupea harengus | D49: Baltic Sea | E49: ICES | F49: 30 | G49: Y | H49: 12590 | I49: 0.18 | J49: 0.11 | K49: N | M49: 3622
A50: SWE | B50: 2013-2015 | C50: Clupea harengus | D50: Baltic Sea | E50: ICES | F50: 31 | G50: N | H50: <200 | I50: 0.18 | J50: 0.03 | K50: Y
A51: SWE | B51: 2013-2015 | C51: Clupea harengus | D51: Baltic Sea | E51: ICES | F51: Gulf of Riga | G51: N | H51: <200 | I51: None | J51: None | K51: Y
A52: SWE | B52: 2013-2015 | C52: Coregonus lavaretus | D52: Baltic Sea | E52: ICES | F52: IIId | G52: N | H52: <200 | I52: None | J52: None | K52: Y
A53: SWE | B53: 2013-2015 | C53: Coregonus albula | D53: Baltic Sea | E53: ICES | F53: 22-32 | G53: Y | H53: 1735 | I53: None | J53: 0.87 | K53: N | M53: -623
A54: SWE | B54: 2013-2015 | C54: Gadus morhua | D54: Baltic Sea | E54: ICES | F54: 22-24 | G54: Y | H54: 1965 | I54: 0.16 | J54: 0.15 | K54: N | M54: -1103
A55: SWE | B55: 2013-2015 | C55: Gadus morhua | D55: Baltic Sea | E55: ICES | F55: 25-32 | G55: Y | H55: 4685 | I55: 0.23 | J55: 0.16 | K55: N | M55: -2773
A56: SWE | B56: 2013-2015 | C56: Limanda limanda | D56: Baltic Sea | E56: ICES | F56: 22-32 | G56: N | H56: <200 | I56: None | J56: None | K56: Y
A57: SWE | B57: 2013-2015 | C57: Perca fluviatilis | D57: Baltic Sea | E57: ICES | F57: IIId | G57: N | H57: <200 | I57: None | J57: 0.02 | K57: Y
A58: SWE | B58: 2013-2015 | C58: Platichthys flesus | D58: Baltic Sea | E58: ICES | F58: 22-32 | G58: Y | H58: 260 | I58: None | J58: 0.02 | K58: N | L58: Sampled for biological parameters in surveys only. | M58: -115
A59: SWE | B59: 2013-2015 | C59: Pleuronectes platessa | D59: Baltic Sea | E59: ICES | F59: 22-32 | G59: N | H59: <200 | I59: 0.05 | J59: 0.03 | K59: Y
A60: SWE | B60: 2013-2015 | C60: Psetta maxima | D60: Baltic Sea | E60: ICES | F60: 22-32 | G60: N | H60: <200 | I60: None | J60: 0.08 | K60: Y
A61: SWE | B61: 2013-2015 | C61: Salmo salar | D61: Baltic Sea | E61: ICES | F61: 22-31 | G61: Y | H61: <200 | I61: 0.28 | J61: 0.34 | K61: NA | L61: In 2017, SWE quota is 26 870 indivuals out of 95 928 EU.
A62: SWE | B62: 2013-2015 | C62: Salmo salar | D62: Baltic Sea | E62: ICES | F62: 32 | G62: N | H62: <200 | I62: None | J62: None | K62: NA
A63: SWE | B63: 2013-2015 | C63: Salmo trutta | D63: Baltic Sea | E63: ICES | F63: 22-32 | G63: Y | H63: <200 | I63: None | J63: 0.04 | K63: NA
A64: SWE | B64: 2013-2015 | C64: Sander lucioperca | D64: Baltic Sea | E64: ICES | F64: IIId | G64: N | H64: <200 | I64: None | J64: 0.01 | K64: Y
A65: SWE | B65: 2013-2015 | C65: Scophthalmus rhombus | D65: Baltic Sea | E65: ICES | F65: 22-32 | G65: N | H65: <200 | I65: None | J65: 0.03 | K65: Y
A66: SWE | B66: 2013-2015 | C66: Solea solea | D66: Baltic Sea | E66: ICES | F66: 22 | G66: N | H66: <200 | I66: None | J66: None | K66: Y
A67: SWE | B67: 2013-2015 | C67: Sprattus sprattus | D67: Baltic Sea | E67: ICES | F67: 22-32 | G67: Y | H67: 36490 | I67: 0.19 | J67: 0.21 | K67: N | M67: 12644
A68: SWE | B68: 2013-2015 | C68: Ammodytidae | D68: North Sea and Eastern Channel | E68: ICES | F68: IV | G68: N | H68: 26355 | I68: None | J68: 0.13 | K68: Y
A69: SWE | B69: 2013-2015 | C69: Anarhichas spp. | D69: North Sea and Eastern Channel | E69: ICES | F69: IV | G69: N | H69: <200 | I69: None | J69: None | K69: Y
A70: SWE | B70: 2013-2015 | C70: Anguilla anguilla | D70: North Sea and Eastern Channel | E70: ICES | F70: IV, VIId | G70: N | H70: <200 | I70: None | J70: None | K70: NA
A71: SWE | B71: 2013-2015 | C71: Argentina spp. | D71: North Sea and Eastern Channel | E71: ICES | F71: IV | G71: N | H71: <200 | I71: 0.03 | J71: None | K71: Y
A72: SWE | B72: 2013-2015 | C72: Eutrigla gurnardus | D72: North Sea and Eastern Channel | E72: ICES | F72: IV | G72: N | H72: <200 | I72: None | J72: None | K72: Y
A73: SWE | B73: 2013-2015 | C73: Brosme brosme | D73: North Sea and Eastern Channel | E73: ICES | F73: IV | G73: N | H73: <200 | I73: 0.03 | J73: None | K73: Y
A74: SWE | B74: 2013-2015 | C74: Clupea harengus | D74: North Sea and Eastern Channel | E74: ICES | F74: IV, VIId | G74: N | H74: 15015 | I74: None | J74: 0.04 | K74: Y
A75: SWE | B75: 2013-2015 | C75: Crangon crangon | D75: North Sea and Eastern Channel | E75: ICES | F75: IV, VIId | G75: N | H75: <200 | I75: None | J75: None | K75: Y
A76: SWE | B76: 2013-2015 | C76: Dicentrarchus labrax | D76: North Sea and Eastern Channel | E76: ICES | F76: IV, VIId | G76: N | H76: <200 | I76: None | J76: None | K76: Y
A77: SWE | B77: 2013-2015 | C77: Gadus morhua | D77: North Sea and Eastern Channel | E77: ICES | F77: IV, VIId | G77: N | H77: 385 | I77: None | J77: 0.01 | K77: Y
A78: SWE | B78: 2013-2015 | C78: Glyptocephalus cynoglossus | D78: North Sea and Eastern Channel | E78: ICES | F78: IV | G78: N | H78: <200 | I78: None | J78: None | K78: Y
A79: SWE | B79: 2013-2015 | C79: Helicolenus dactylopterus | D79: North Sea and Eastern Channel | E79: ICES | F79: IV | G79: N | H79: <200 | I79: None | J79: None | K79: Y
A80: SWE | B80: 2013-2015 | C80: Lepidorhombus boscii | D80: North Sea and Eastern Channel | E80: ICES | F80: IV, VIId | G80: N | H80: <200 | I80: None | J80: None | K80: Y
A81: SWE | B81: 2013-2015 | C81: Lepidorhombus whiffiagonis | D81: North Sea and Eastern Channel | E81: ICES | F81: IV, VIId | G81: N | H81: <200 | I81: None | J81: None | K81: Y
A82: SWE | B82: 2013-2015 | C82: Limanda limanda | D82: North Sea and Eastern Channel | E82: ICES | F82: IV, VIId | G82: N | H82: <200 | I82: None | J82: None | K82: Y
A83: SWE | B83: 2013-2015 | C83: Lophius budegassa | D83: North Sea and Eastern Channel | E83: ICES | F83: IV, VIId | G83: N | H83: <200 | I83: None | J83: None | K83: Y
A84: SWE | B84: 2013-2015 | C84: Lophius piscatorius | D84: North Sea and Eastern Channel | E84: ICES | F84: IV | G84: N | H84: <200 | I84: None | J84: 0.01 | K84: Y
A85: SWE | B85: 2013-2015 | C85: Macrourus berglax | D85: North Sea and Eastern Channel | E85: ICES | F85: IV | G85: N | H85: <200 | I85: None | J85: None | K85: Y
A86: SWE | B86: 2013-2015 | C86: Melanogrammus aeglefinus | D86: North Sea and Eastern Channel | E86: ICES | F86: IV | G86: N | H86: <200 | I86: 0.01 | J86: None | K86: Y
A87: SWE | B87: 2013-2015 | C87: Merlangius merlangus | D87: North Sea and Eastern Channel | E87: ICES | F87: IV, VIId | G87: N | H87: <200 | I87: None | J87: None | K87: Y
A88: SWE | B88: 2013-2015 | C88: Merluccius merluccius | D88: North Sea and Eastern Channel | E88: ICES | F88: IV VII | G88: N | H88: <200 | I88: None | J88: None | K88: Y
A89: SWE | B89: 2013-2015 | C89: Micromesistius poutassou | D89: North Sea and Eastern Channel | E89: ICES | F89: IV, VIId | G89: N | H89: <200 | I89: 0.04 | J89: 0.05 | K89: Y
A90: SWE | B90: 2013-2015 | C90: Microstomus kitt | D90: North Sea and Eastern Channel | E90: ICES | F90: IV, VIId | G90: N | H90: <200 | I90: None | J90: None | K90: Y
A91: SWE | B91: 2013-2015 | C91: Molva dypterygia | D91: North Sea and Eastern Channel | E91: ICES | F91: IV | G91: N | H91: <200 | I91: None | J91: None | K91: Y
A92: SWE | B92: 2013-2015 | C92: Molva molva | D92: North Sea and Eastern Channel | E92: ICES | F92: IV | G92: N | H92: <200 | I92: None | J92: None | K92: Y
A93: SWE | B93: 2013-2015 | C93: Mullus barbatus | D93: North Sea and Eastern Channel | E93: ICES | F93: IV, VIId | G93: N | H93: <200 | I93: None | J93: None | K93: Y
A94: SWE | B94: 2013-2015 | C94: Mullus surmuletus | D94: North Sea and Eastern Channel | E94: ICES | F94: IV, VIId | G94: N | H94: <200 | I94: None | J94: None | K94: Y
A95: SWE | B95: 2015 | C95: Nephrops norvegicus | D95: North Sea and Eastern Channel | E95: ICES | F95: functional unit 7 | G95: N | H95: <200 | I95: None | J95: None | K95: Y | L95: Data on international landings was only available for 2015 as these figures origins from ICES Intercatch (landings by Functional Unit was not available in EUROSTAT.
A96: SWE | B96: 2015 | C96: Nephrops norvegicus | D96: North Sea and Eastern Channel | E96: ICES | F96: functional unit 10 | G96: N | H96: <200 | I96: None | J96: None | K96: Y | L96: Data on international landings was only available for 2015 as these figures origins from ICES Intercatch (landings by Functional Unit was not available in EUROSTAT.
A97: SWE | B97: 2013-2015 | C97: Nephrops norvegicus | D97: North Sea and Eastern Channel | E97: ICES | F97: functional units 32 (TAC IIa, IV) | G97: N | H97: <200 | I97: None | J97: None | K97: Y
A98: SWE | B98: 2015 | C98: Nephrops norvegicus | D98: North Sea and Eastern Channel | E98: ICES | F98: functional unit 6 | G98: N | H98: <200 | I98: None | J98: None | K98: Y | L98: Data on international landings was only available for 2015 as these figures origins from ICES Intercatch (landings by Functional Unit was not available in EUROSTAT.
A99: SWE | B99: 2015 | C99: Nephrops norvegicus | D99: North Sea and Eastern Channel | E99: ICES | F99: functional unit 8 | G99: N | H99: <200 | I99: None | J99: None | K99: Y | L99: Data on international landings was only available for 2015 as these figures origins from ICES Intercatch (landings by Functional Unit was not available in EUROSTAT.
A100: SWE | B100: 2015 | C100: Nephrops norvegicus | D100: North Sea and Eastern Channel | E100: ICES | F100: functional unit 9 | G100: N | H100: <200 | I100: None | J100: None | K100: Y | L100: Data on international landings was only available for 2015 as these figures origins from ICES Intercatch (landings by Functional Unit was not available in EUROSTAT.
A101: SWE | B101: 2013-2015 | C101: Nephrops norvegicus | D101: North Sea and Eastern Channel | E101: ICES | F101: functional units 33 (TAC IIa, VI) | G101: N | H101: <200 | I101: None | J101: None | K101: Y
A102: SWE | B102: 2015 | C102: Nephrops norvegicus | D102: North Sea and Eastern Channel | E102: ICES | F102: functional unit 34 | G102: N | H102: <200 | I102: None | J102: None | K102: Y | L102: Data on international landings was only available for 2015 as these figures origins from ICES Intercatch (landings by Functional Unit was not available in EUROSTAT.
A103: SWE | B103: 2013-2015 | C103: Pandalus borealis | D103: North Sea and Eastern Channel | E103: ICES | F103: IVa | G103: N | H103: <200 | I103: 0.03 | J103: 0.55 | K103: Y
A104: SWE | B104: 2013-2015 | C104: Pecten maximus | D104: North Sea and Eastern Channel | E104: ICES | F104: VIId | G104: N | H104: <200 | I104: None | J104: None | K104: Y
A105: SWE | B105: 2013-2015 | C105: Phycis blennoides | D105: North Sea and Eastern Channel | E105: ICES | F105: IV | G105: N | H105: <200 | I105: None | J105: None | K105: Y
A106: SWE | B106: 2013-2015 | C106: Phycis phycis | D106: North Sea and Eastern Channel | E106: ICES | F106: IV | G106: N | H106: <200 | I106: None | J106: None | K106: Y
A107: SWE | B107: 2013-2015 | C107: Platichthys flesus | D107: North Sea and Eastern Channel | E107: ICES | F107: IV | G107: N | H107: <200 | I107: None | J107: None | K107: Y
A108: SWE | B108: 2013-2015 | C108: Pleuronectes platessa | D108: North Sea and Eastern Channel | E108: ICES | F108: IV | G108: N | H108: <200 | I108: None | J108: None | K108: Y
A109: SWE | B109: 2013-2015 | C109: Pleuronectes platessa | D109: North Sea and Eastern Channel | E109: ICES | F109: VIId | G109: N | H109: <200 | I109: None | J109: None | K109: Y
A110: SWE | B110: 2013-2015 | C110: Pollachius virens | D110: North Sea and Eastern Channel | E110: ICES | F110: IV | G110: N | H110: 925 | I110: None | J110: 0.03 | K110: Y
A111: SWE | B111: 2013-2015 | C111: Psetta maxima | D111: North Sea and Eastern Channel | E111: ICES | F111: IV, VIId | G111: N | H111: <200 | I111: None | J111: None | K111: Y
A112: SWE | B112: 2013-2015 | C112: Reinhardtius hippoglossoides | D112: North Sea and Eastern Channel | E112: ICES | F112: IV | G112: N | H112: <200 | I112: None | J112: None | K112: Y
A113: SWE | B113: 2013-2015 | C113: Salmo salar | D113: North Sea and Eastern Channel | E113: ICES | F113: IV, VIId | G113: N | H113: <200 | I113: None | J113: None | K113: NA
A114: SWE | B114: 2013-2015 | C114: Scomber scombrus | D114: North Sea and Eastern Channel | E114: ICES | F114: IV, VIId | G114: N | H114: 1820 | I114: None | J114: 0.01 | K114: Y | L114: The mackerel stock is widely distributed and covers subareas I,II,III, IV, V, VI, VII and XIV and divisions VIIIa-e and IXa. Sweden is fishing on the northern component of the stock (area IIIa and IV). The Swedish share on the total stock is well below the threshold of 10 %. An agreement with UK to secure the overall sampling is setup.
A115: SWE | B115: 2013-2015 | C115: Scophthalmus rhombus | D115: North Sea and Eastern Channel | E115: ICES | F115: IV, VIId | G115: N | H115: <200 | I115: None | J115: None | K115: Y
A116: SWE | B116: 2013-2015 | C116: Sebastes mentella | D116: North Sea and Eastern Channel | E116: ICES | F116: IV | G116: N | H116: <200 | I116: None | J116: None | K116: Y
A117: SWE | B117: 2013-2015 | C117: Solea solea | D117: North Sea and Eastern Channel | E117: ICES | F117: IV | G117: N | H117: <200 | I117: None | J117: None | K117: Y
A118: SWE | B118: 2013-2015 | C118: Solea solea | D118: North Sea and Eastern Channel | E118: ICES | F118: VIId | G118: N | H118: <200 | I118: None | J118: None | K118: Y
A119: SWE | B119: 2013-2015 | C119: Sprattus sprattus | D119: North Sea and Eastern Channel | E119: ICES | F119: IV | G119: N | H119: 3975 | I119: 0.01 | J119: 0.02 | K119: Y
A120: SWE | B120: 2013-2015 | C120: Sprattus sprattus | D120: North Sea and Eastern Channel | E120: ICES | F120: VIId | G120: N | H120: <200 | I120: None | J120: None | K120: Y
A121: SWE | B121: 2013-2015 | C121: Trachurus trachurus | D121: North Sea and Eastern Channel | E121: ICES | F121: IV, VIId | G121: N | H121: <200 | I121: 0.01 | J121: None | K121: Y
A122: SWE | B122: 2013-2015 | C122: Trigla lucerna | D122: North Sea and Eastern Channel | E122: ICES | F122: IV | G122: N | H122: <200 | I122: None | J122: None | K122: Y
A123: SWE | B123: 2013-2015 | C123: Trisopterus esmarkii | D123: North Sea and Eastern Channel | E123: ICES | F123: IV | G123: N | H123: 245 | I123: None | J123: 0.01 | K123: Y
A124: SWE | B124: 2013-2015 | C124: Zeus faber | D124: North Sea and Eastern Channel | E124: ICES | F124: IV, VIId | G124: N | H124: <200 | I124: None | J124: None | K124: Y
A125: SWE | B125: 2013-2015 | C125: Alepocephalus bairdii | D125: North East Atlantic and Western Channel | E125: ICES | F125: VI, XII | G125: N | H125: <200 | I125: None | J125: None | K125: Y
A126: SWE | B126: 2013-2015 | C126: Ammodytidae | D126: North East Atlantic and Western Channel | E126: ICES | F126: VIa | G126: N | H126: <200 | I126: None | J126: None | K126: Y
A127: SWE | B127: 2013-2015 | C127: Capros aper | D127: North East Atlantic and Western Channel | E127: ICES | F127: V, VI,VII | G127: N | H127: <200 | I127: None | J127: None | K127: Y
A128: SWE | B128: 2013-2015 | C128: Pecten maximus | D128: North East Atlantic and Western Channel | E128: ICES | F128: IV, VI, VII | G128: N | H128: <200 | I128: None | J128: None | K128: Y
A129: SWE | B129: 2013-2015 | C129: Aequipecten opercularis | D129: North East Atlantic and Western Channel | E129: ICES | F129: VII | G129: N | H129: <200 | I129: None | J129: None | K129: Y
A130: SWE | B130: 2013-2015 | C130: Maja squinado | D130: North East Atlantic and Western Channel | E130: ICES | F130: V, VI,VII | G130: N | H130: <200 | I130: None | J130: None | K130: Y
A131: SWE | B131: 2013-2015 | C131: Anguilla anguilla | D131: North East Atlantic and Western Channel | E131: ICES | F131: all areas | G131: N | H131: <200 | I131: None | J131: None | K131: Y
A132: SWE | B132: 2013-2015 | C132: Aphanopus spp. | D132: North East Atlantic and Western Channel | E132: ICES | F132: all areas | G132: N | H132: <200 | I132: None | J132: None | K132: Y
A133: SWE | B133: 2013-2015 | C133: Argentina spp. | D133: North East Atlantic and Western Channel | E133: ICES | F133: all areas | G133: N | H133: <200 | I133: None | J133: None | K133: Y
A134: SWE | B134: 2013-2015 | C134: Argyrosomus regius | D134: North East Atlantic and Western Channel | E134: ICES | F134: all areas | G134: N | H134: <200 | I134: None | J134: None | K134: Y
A135: SWE | B135: 2013-2015 | C135: Aspitrigla cuculus | D135: North East Atlantic and Western Channel | E135: ICES | F135: all areas | G135: N | H135: <200 | I135: None | J135: None | K135: Y
A136: SWE | B136: 2013-2015 | C136: Beryx spp. | D136: North East Atlantic and Western Channel | E136: ICES | F136: all areas, excluding X and IXa | G136: N | H136: <200 | I136: None | J136: None | K136: Y
A137: SWE | B137: 2013-2015 | C137: Beryx spp. | D137: North East Atlantic and Western Channel | E137: ICES | F137: IXa and X | G137: N | H137: <200 | I137: None | J137: None | K137: Y
A138: SWE | B138: 2013-2015 | C138: Cancer pagurus | D138: North East Atlantic and Western Channel | E138: ICES | F138: all areas | G138: N | H138: <200 | I138: None | J138: None | K138: Y
A139: SWE | B139: 2013-2015 | C139: Clupea harengus | D139: North East Atlantic and Western Channel | E139: ICES | F139: VIa | G139: N | H139: <200 | I139: None | J139: None | K139: Y
A140: SWE | B140: 2013-2015 | C140: Clupea harengus | D140: North East Atlantic and Western Channel | E140: ICES | F140: VIa S, VIIbc | G140: N | H140: <200 | I140: None | J140: None | K140: Y
A141: SWE | B141: 2013-2015 | C141: Clupea harengus | D141: North East Atlantic and Western Channel | E141: ICES | F141: VIIa | G141: N | H141: <200 | I141: None | J141: None | K141: Y
A142: SWE | B142: 2013-2015 | C142: Clupea harengus | D142: North East Atlantic and Western Channel | E142: ICES | F142: VIIj | G142: N | H142: <200 | I142: None | J142: None | K142: Y
A143: SWE | B143: 2013-2015 | C143: Conger conger | D143: North East Atlantic and Western Channel | E143: ICES | F143: all areas, excluding X | G143: N | H143: <200 | I143: None | J143: None | K143: Y
A144: SWE | B144: 2013-2015 | C144: Conger conger | D144: North East Atlantic and Western Channel | E144: ICES | F144: X | G144: N | H144: <200 | I144: None | J144: None | K144: Y
A145: SWE | B145: 2013-2015 | C145: Coryphaenoides rupestris | D145: North East Atlantic and Western Channel | E145: ICES | F145: all areas | G145: N | H145: <200 | I145: None | J145: None | K145: Y
A146: SWE | B146: 2013-2015 | C146: Dalatias licha | D146: North East Atlantic and Western Channel | E146: ICES | F146: All areas | G146: N | H146: <200 | I146: None | J146: None | K146: Y
A147: SWE | B147: 2013-2015 | C147: Dasyatis pastinaca | D147: North East Atlantic and Western Channel | E147: ICES | F147: VII, VIII | G147: N | H147: <200 | I147: None | J147: None | K147: Y
A148: SWE | B148: 2013-2015 | C148: Deania calcea | D148: North East Atlantic and Western Channel | E148: ICES | F148: V, VI, VII, IX, X, XII | G148: N | H148: <200 | I148: None | J148: None | K148: Y
A149: SWE | B149: 2013-2015 | C149: Dicentrarchus labrax | D149: North East Atlantic and Western Channel | E149: ICES | F149: all areas, excluding IX | G149: N | H149: <200 | I149: None | J149: None | K149: Y
A150: SWE | B150: 2013-2015 | C150: Dicentrarchus labrax | D150: North East Atlantic and Western Channel | E150: ICES | F150: IX | G150: N | H150: <200 | I150: None | J150: None | K150: Y
A151: SWE | B151: 2013-2015 | C151: Dicologlossa cuneata | D151: North East Atlantic and Western Channel | E151: ICES | F151: VIIIc, IX | G151: N | H151: <200 | I151: None | J151: None | K151: Y
A152: SWE | B152: 2013-2015 | C152: Engraulis encrasicolus | D152: North East Atlantic and Western Channel | E152: ICES | F152: IXa (only Cádiz) | G152: N | H152: <200 | I152: None | J152: None | K152: Y
A153: SWE | B153: 2013-2015 | C153: Engraulis encrasicolus | D153: North East Atlantic and Western Channel | E153: ICES | F153: VIII | G153: N | H153: <200 | I153: None | J153: None | K153: Y
A154: SWE | B154: 2013-2015 | C154: Etmopterus spinax | D154: North East Atlantic and Western Channel | E154: ICES | F154: VI, VII, VIII | G154: N | H154: <200 | I154: None | J154: None | K154: Y
A155: SWE | B155: 2013-2015 | C155: Eutrigla gurnardus | D155: North East Atlantic and Western Channel | E155: ICES | F155: VIIe | G155: N | H155: <200 | I155: None | J155: None | K155: Y
A156: SWE | B156: 2013-2015 | C156: Gadus morhua | D156: North East Atlantic and Western Channel | E156: ICES | F156: Va | G156: N | H156: <200 | I156: None | J156: None | K156: Y
A157: SWE | B157: 2013-2015 | C157: Gadus morhua | D157: North East Atlantic and Western Channel | E157: ICES | F157: Vb | G157: N | H157: <200 | I157: None | J157: None | K157: Y
A158: SWE | B158: 2013-2015 | C158: Gadus morhua | D158: North East Atlantic and Western Channel | E158: ICES | F158: VIa | G158: N | H158: <200 | I158: None | J158: None | K158: Y
A159: SWE | B159: 2013-2015 | C159: Gadus morhua | D159: North East Atlantic and Western Channel | E159: ICES | F159: VIb | G159: N | H159: <200 | I159: None | J159: None | K159: Y
A160: SWE | B160: 2013-2015 | C160: Gadus morhua | D160: North East Atlantic and Western Channel | E160: ICES | F160: VIIa | G160: N | H160: <200 | I160: None | J160: None | K160: Y
A161: SWE | B161: 2013-2015 | C161: Gadus morhua | D161: North East Atlantic and Western Channel | E161: ICES | F161: VIIe-k | G161: N | H161: <200 | I161: None | J161: None | K161: Y
A162: SWE | B162: 2013-2015 | C162: Glyptocephalus cynoglossus | D162: North East Atlantic and Western Channel | E162: ICES | F162: VI, VII | G162: N | H162: <200 | I162: None | J162: None | K162: Y
A163: SWE | B163: 2013-2015 | C163: Helicolenus dactylopterus | D163: North East Atlantic and Western Channel | E163: ICES | F163: all areas | G163: N | H163: <200 | I163: None | J163: None | K163: Y
A164: SWE | B164: 2013-2015 | C164: Homarus gammarus | D164: North East Atlantic and Western Channel | E164: ICES | F164: all areas | G164: N | H164: <200 | I164: None | J164: None | K164: Y
A165: SWE | B165: 2013-2015 | C165: Hoplostethus atlanticus | D165: North East Atlantic and Western Channel | E165: ICES | F165: all areas | G165: N | H165: <200 | I165: None | J165: None | K165: Y
A166: SWE | B166: 2013-2015 | C166: Lepidopus caudatus | D166: North East Atlantic and Western Channel | E166: ICES | F166: IXa | G166: N | H166: <200 | I166: None | J166: None | K166: Y
A167: SWE | B167: 2013-2015 | C167: Lepidorhombus boscii | D167: North East Atlantic and Western Channel | E167: ICES | F167: VIIIc, IXa | G167: N | H167: <200 | I167: None | J167: None | K167: Y
A168: SWE | B168: 2013-2015 | C168: Lepidorhombus whiffiagonis | D168: North East Atlantic and Western Channel | E168: ICES | F168: VI | G168: N | H168: <200 | I168: None | J168: None | K168: Y
A169: SWE | B169: 2013-2015 | C169: Lepidorhombus whiffiagonis | D169: North East Atlantic and Western Channel | E169: ICES | F169: VII, VIIIabd | G169: N | H169: <200 | I169: None | J169: None | K169: Y
A170: SWE | B170: 2013-2015 | C170: Lepidorhombus whiffiagonis | D170: North East Atlantic and Western Channel | E170: ICES | F170: VIIIc, IXa | G170: N | H170: <200 | I170: None | J170: None | K170: Y
A171: SWE | B171: 2013-2015 | C171: Limanda limanda | D171: North East Atlantic and Western Channel | E171: ICES | F171: VIIe | G171: N | H171: <200 | I171: None | J171: None | K171: Y
A172: SWE | B172: 2013-2015 | C172: Limanda limanda | D172: North East Atlantic and Western Channel | E172: ICES | F172: VIIa,f-h | G172: N | H172: <200 | I172: None | J172: None | K172: Y
A173: SWE | B173: 2013-2015 | C173: Loligo vulgaris | D173: North East Atlantic and Western Channel | E173: ICES | F173: all areas, excluding VIIIc, IXa | G173: N | H173: <200 | I173: None | J173: None | K173: Y
A174: SWE | B174: 2013-2015 | C174: Loligo vulgaris | D174: North East Atlantic and Western Channel | E174: ICES | F174: VIIIc, IXa | G174: N | H174: <200 | I174: None | J174: None | K174: Y
A175: SWE | B175: 2013-2015 | C175: Lophius budegassa | D175: North East Atlantic and Western Channel | E175: ICES | F175: IV, VI | G175: N | H175: <200 | I175: None | J175: None | K175: Y
A176: SWE | B176: 2013-2015 | C176: Lophius budegassa | D176: North East Atlantic and Western Channel | E176: ICES | F176: VIIb-k, VIIIabd | G176: N | H176: <200 | I176: None | J176: None | K176: Y
A177: SWE | B177: 2013-2015 | C177: Lophius budegassa | D177: North East Atlantic and Western Channel | E177: ICES | F177: VIIIc, IXa | G177: N | H177: <200 | I177: None | J177: None | K177: Y
A178: SWE | B178: 2013-2015 | C178: Lophius piscatorius | D178: North East Atlantic and Western Channel | E178: ICES | F178: IV, VI | G178: N | H178: <200 | I178: None | J178: 0.01 | K178: Y
A179: SWE | B179: 2013-2015 | C179: Lophius piscatorius | D179: North East Atlantic and Western Channel | E179: ICES | F179: VIIb-k, VIIIabd | G179: N | H179: <200 | I179: None | J179: None | K179: Y
A180: SWE | B180: 2013-2015 | C180: Lophius piscatorius | D180: North East Atlantic and Western Channel | E180: ICES | F180: VIIIc, IXa | G180: N | H180: <200 | I180: None | J180: None | K180: Y
A181: SWE | B181: 2013-2015 | C181: Mallotus villosus | D181: North East Atlantic and Western Channel | E181: ICES | F181: XIV | G181: N | H181: <200 | I181: None | J181: None | K181: Y
A182: SWE | B182: 2013-2015 | C182: Melanogrammus aeglefinus | D182: North East Atlantic and Western Channel | E182: ICES | F182: Va | G182: N | H182: <200 | I182: None | J182: None | K182: Y
A183: SWE | B183: 2013-2015 | C183: Melanogrammus aeglefinus | D183: North East Atlantic and Western Channel | E183: ICES | F183: Vb | G183: N | H183: <200 | I183: None | J183: None | K183: Y
A184: SWE | B184: 2013-2015 | C184: Melanogrammus aeglefinus | D184: North East Atlantic and Western Channel | E184: ICES | F184: VIa | G184: N | H184: <200 | I184: None | J184: None | K184: Y
A185: SWE | B185: 2013-2015 | C185: Melanogrammus aeglefinus | D185: North East Atlantic and Western Channel | E185: ICES | F185: Vib | G185: N | H185: <200 | I185: None | J185: None | K185: Y
A186: SWE | B186: 2013-2015 | C186: Melanogrammus aeglefinus | D186: North East Atlantic and Western Channel | E186: ICES | F186: VIIa | G186: N | H186: <200 | I186: None | J186: None | K186: Y
A187: SWE | B187: 2013-2015 | C187: Melanogrammus aeglefinus | D187: North East Atlantic and Western Channel | E187: ICES | F187: VIIb-k | G187: N | H187: <200 | I187: None | J187: None | K187: Y
A188: SWE | B188: 2013-2015 | C188: Merlangius merlangus | D188: North East Atlantic and Western Channel | E188: ICES | F188: VIII | G188: N | H188: <200 | I188: None | J188: None | K188: Y
A189: SWE | B189: 2013-2015 | C189: Merlangius merlangus | D189: North East Atlantic and Western Channel | E189: ICES | F189: IX, X | G189: N | H189: <200 | I189: None | J189: None | K189: Y
A190: SWE | B190: 2013-2015 | C190: Merlangius merlangus | D190: North East Atlantic and Western Channel | E190: ICES | F190: Vb | G190: N | H190: <200 | I190: None | J190: None | K190: Y
A191: SWE | B191: 2013-2015 | C191: Merlangius merlangus | D191: North East Atlantic and Western Channel | E191: ICES | F191: VIa | G191: N | H191: <200 | I191: None | J191: None | K191: Y
A192: SWE | B192: 2013-2015 | C192: Merlangius merlangus | D192: North East Atlantic and Western Channel | E192: ICES | F192: VIb | G192: N | H192: <200 | I192: None | J192: None | K192: Y
A193: SWE | B193: 2013-2015 | C193: Merlangius merlangus | D193: North East Atlantic and Western Channel | E193: ICES | F193: VIIa | G193: N | H193: <200 | I193: None | J193: None | K193: Y
A194: SWE | B194: 2013-2015 | C194: Merlangius merlangus | D194: North East Atlantic and Western Channel | E194: ICES | F194: VIIe-k | G194: N | H194: <200 | I194: None | J194: None | K194: Y
A195: SWE | B195: 2013-2015 | C195: Merluccius merluccius | D195: North East Atlantic and Western Channel | E195: ICES | F195: VI, VII, VIIIab | G195: N | H195: <200 | I195: None | J195: None | K195: Y
A196: SWE | B196: 2013-2015 | C196: Merluccius merluccius | D196: North East Atlantic and Western Channel | E196: ICES | F196: VIIIc, IXa | G196: N | H196: <200 | I196: None | J196: None | K196: Y
A197: SWE | B197: 2013-2015 | C197: Microchirus variegatus | D197: North East Atlantic and Western Channel | E197: ICES | F197: all areas | G197: N | H197: <200 | I197: None | J197: None | K197: Y
A198: SWE | B198: 2013-2015 | C198: Micromesistius poutassou | D198: North East Atlantic and Western Channel | E198: ICES | F198: I-IX, XII, XIV | G198: N | H198: 205 | I198: None | J198: None | K198: Y
A199: SWE | B199: 2013-2015 | C199: Microstomus kitt | D199: North East Atlantic and Western Channel | E199: ICES | F199: all areas | G199: N | H199: <200 | I199: None | J199: None | K199: Y
A200: SWE | B200: 2013-2015 | C200: Molva dypterygia | D200: North East Atlantic and Western Channel | E200: ICES | F200: all areas, excluding X | G200: N | H200: <200 | I200: None | J200: None | K200: Y
... 69 more rows

Sheet Table1B Planning of sampling
A1: Table 1B: Planning of sampling for biological variables
R2: WP years | Y2: 2018-2019
R3: AR year | Y3: 2018
A4: MS | B4: Species | C4: Region | D4: RFMO/RFO/IO | E4: Area / Stock | F4: Frequency | G4: Length | J4: Age | M4: Weight | P4: Sex ratio | S4: Sexual maturity | V4: Fecundity | Y4: Comments
G5: 2017 | H5: 2018 | I5: 2019 | J5: 2017 | K5: 2018 | L5: 2019 | M5: 2017 | N5: 2018 | O5: 2019 | P5: 2017 | Q5: 2018 | R5: 2019 | S5: 2017 | T5: 2018 | U5: 2019 | V5: 2017 | W5: 2018 | X5: 2019
A6: SWE | B6: Anguilla anguilla | C6: Baltic Sea | D6: EIFAAC/ICES/GFCM | E6: 22-32 | F6: O | G6: X | H6: X | I6: X | J6: X | K6: X | L6: X | M6: X | N6: X | O6: X | P6: X | Q6: X | R6: X | V6: Not applicable | Y6: Frequency: Commercial monthly during season, survey yearly. Maturity: Yellow and silver eels handled separately, hence sampling stratified on maturity
A7: SWE | B7: Anguilla anguilla | C7: Baltic Sea | D7: EIFAAC/ICES | E7: fresh water | F7: Y | G7: X | H7: X | I7: X | J7: X | K7: X | L7: X | M7: X | N7: X | O7: X | P7: X | Q7: X | R7: X | S7: X | T7: X | U7: X
A8: SWE | B8: Clupea harengus | C8: Baltic Sea | D8: ICES | E8: 22-24 | F8: Q | G8: X | H8: X | I8: X | J8: X | K8: X | L8: X | M8: X | N8: X | O8: X | P8: X | Q8: X | R8: X | S8: X | T8: X | U8: X
A9: SWE | B9: Clupea harengus | C9: Baltic Sea | D9: ICES | E9: 25-29, 32 | F9: Q | G9: X | H9: X | I9: X | J9: X | K9: X | L9: X | M9: X | N9: X | O9: X | P9: X | Q9: X | R9: X | S9: X | T9: X | U9: X
A10: SWE | B10: Clupea harengus | C10: Baltic Sea | D10: ICES | E10: 30.31 | F10: M | G10: X | H10: X | I10: X | J10: X | K10: X | L10: X | M10: X | N10: X | O10: X | P10: X | Q10: X | R10: X | S10: X | T10: X | U10: X | V10: Not applicable | Y10: Frequency: Commercial sampling monthly during fishing season.
A11: SWE | B11: Coregonus albula | C11: Baltic Sea | D11: ICES | E11: 22-32 | F11: Y | H11: X | I11: X | K11: X | L11: X | N11: X | O11: X | Q11: X | R11: X | T11: X | U11: X | V11: Not applicable | Y11: Frequency: Sampling will be made during the commersiell fishing season which is limited to the vendace's spawning period in September-October.
A12: SWE | B12: Gadus morhua | C12: Baltic Sea | D12: ICES | E12: 22-24 | F12: Q | G12: X | H12: X | I12: X | J12: X | K12: X | L12: X | M12: X | N12: X | O12: X | P12: X | Q12: X | R12: X | S12: X | T12: X | U12: X
A13: SWE | B13: Gadus morhua | C13: Baltic Sea | D13: ICES | E13: 25-32 | F13: Q | G13: X | H13: X | I13: X | J13: X | K13: X | L13: X | M13: X | N13: X | O13: X | P13: X | Q13: X | R13: X | S13: X | T13: X | U13: X
A14: SWE | B14: Platichthys flesus | C14: Baltic Sea | D14: ICES | E14: 22-32 | F14: Q | G14: X | H14: X | I14: X | J14: X | K14: X | L14: X | M14: X | N14: X | O14: X | P14: X | Q14: X | R14: X | S14: X | T14: X | U14: X | V14: Not applicable | Y14: Sampled for biological parameters in surveys only.
A15: SWE | B15: Salmo salar | C15: Baltic Sea | D15: ICES | E15: 22-31, 32 | Y15: Only number (not biological data) of individuals are used in stock assessment (WGBAST). This data is collected from fishermen journals, See Table 4A.
A16: SWE | B16: Salmo salar | C16: North sea and Eastern Arctic | D16: ICES/NASCO/ Ospar/Helcom | E16: IIIa | Y16: Only number of individuals are used in stock assessment (ICES WGNAS). This data is collected from fishermen journals/logbooks, See Table 2A.
A17: SWE | B17: Salmo trutta | C17: Baltic Sea | D17: ICES | E17: 22-31, 32 | Y17: Only number of individuals are used for evaluation of status (ICES WGBAST). This data is collected from fishermen journals/logbooks, See Table 2A.
A18: SWE | B18: Sprattus sprattus | C18: Baltic Sea | D18: ICES | E18: 22-32 | F18: Q | G18: X | H18: X | I18: X | J18: X | K18: X | L18: X | M18: X | N18: X | O18: X | P18: X | Q18: X | R18: X | S18: X | T18: X | U18: X
A19: SWE | B19: Anguilla anguilla | C19: North Sea and Eastern Arctic | D19: EIFAAC/ICES/GFCM | E19: IIIa | F19: Y | G19: X | H19: X | I19: X | J19: X | K19: X | L19: X | M19: X | N19: X | O19: X | P19: X | Q19: X | R19: X | V19: Not applicable | Y19: Frequency: Survey yearly. Maturity: Yellow eels and silver eels are handled separately, hence sampling stratified on maturity.
A20: SWE | B20: Clupea harengus | C20: North Sea and Eastern Arctic | D20: ICES | E20: IIIa | F20: Q | G20: X | H20: X | I20: X | J20: X | K20: X | L20: X | M20: X | N20: X | O20: X | P20: X | Q20: X | R20: X | S20: X | T20: X | U20: X
A21: SWE | B21: Gadus morhua | C21: North Sea and Eastern Arctic | D21: ICES | E21: IIIaN | F21: Q | G21: X | H21: X | I21: X | J21: X | K21: X | L21: X | M21: X | N21: X | O21: X | P21: X | Q21: X | R21: X | S21: X | T21: X | U21: X
A22: SWE | B22: Gadus morhua | C22: North Sea and Eastern Arctic | D22: ICES | E22: IIIaS | F22: Q | G22: X | H22: X | I22: X | J22: X | K22: X | L22: X | M22: X | N22: X | O22: X | P22: X | Q22: X | R22: X | S22: X | T22: X | U22: X
A23: SWE | B23: Glyptocephalus cynoglossus | C23: North Sea and Eastern Arctic | D23: ICES | E23: IIIa | F23: Q | G23: X | H23: X | I23: X | J23: X | K23: X | L23: X | M23: X | N23: X | O23: X | P23: X | Q23: X | R23: X | S23: X | T23: X | U23: X
A24: SWE | B24: Melanogrammus aeglefinus | C24: North Sea and Eastern Arctic | D24: ICES | E24: IV, IIIa | F24: Y | G24: X | H24: X | I24: X | J24: X | K24: X | L24: X | M24: X | N24: X | O24: X | P24: X | Q24: X | R24: X | S24: X | T24: X | U24: X | Y24: sampled for biological parameters in surveys only
A25: SWE | B25: Nephrops norvegicus | C25: North Sea and Eastern Arctic | D25: ICES | E25: Functional unit 3-4 | F25: Q | G25: X | H25: X | I25: X | J25: not applicable | M25: X | N25: X | O25: X | P25: X | Q25: X | R25: X | S25: X | T25: X | U25: X
A26: SWE | B26: Pandalus borealis | C26: North Sea and Eastern Arctic | D26: ICES | E26: IIIa,IVa east | F26: Q | G26: X | H26: X | I26: X | J26: not applicable | M26: X | N26: X | O26: X | P26: X | Q26: X | R26: X | S26: X | T26: X | U26: X
A27: SWE | B27: Pleuronectes platessa | C27: North Sea and Eastern Arctic | D27: ICES | E27: IIIa | F27: Y | G27: X | H27: X | I27: X | J27: X | K27: X | L27: X | M27: X | N27: X | O27: X | P27: X | Q27: X | R27: X | S27: X | T27: X | U27: X | Y27: sampled for biological parameters in surveys only
A28: SWE | B28: Sprattus sprattus | C28: North Sea and Eastern Arctic | D28: ICES | E28: IIIa | F28: Q | G28: X | H28: X | I28: X | J28: X | K28: X | L28: X | M28: X | N28: X | O28: X | P28: X | Q28: X | R28: X | S28: X | T28: X | U28: X
A29: SWE | B29: Trisopterus esmarki | C29: North Sea and Eastern Arctic | D29: ICES | E29: IIIa | F29: Y | G29: X | H29: X | I29: X | J29: X | K29: X | L29: X | M29: X | N29: X | O29: X | P29: X | Q29: X | R29: X | S29: X | T29: X | U29: X | Y29: sampled for biological parameters in surveys only
A30: SWE | B30: Pollachius virens | C30: North Sea and Eastern Arctic | D30: ICES | E30: IIIa | F30: Y | G30: X | H30: X | I30: X | J30: X | K30: X | L30: X | M30: X | N30: X | O30: X | P30: X | Q30: X | R30: X | S30: X | T30: X | U30: X | Y30: sampled for biological parameters in surveys only
A31: SWE | B31: Merlangius merlangus | C31: North Sea and Eastern Arctic | D31: ICES | E31: IIIa | F31: Y | G31: X | H31: X | I31: X | J31: X | K31: X | L31: X | M31: X | N31: X | O31: X | P31: X | Q31: X | R31: X | S31: X | T31: X | U31: X | Y31: sampled for biological parameters in surveys only

Sheet Table1C Sampling intensity
A1: Table 1C: Sampling intensity for biological variables
P2: WP years | Q2: 2018-2019
P3: AR year | Q3: 2018
A4: MS | B4: MS partcipating in sampling | C4: Sampling year | D4: Species | E4: Region | F4: RFMO/RFO/IO | G4: Area / Stock | H4: Variables | I4: Data sources | J4: Planned minimum no of individuals to be measured at the national level | K4: Planned minimum no of individuals to be measured at the regional level | L4: Comments | M4: Achieved number of individuals measured at the national level | N4: % of achievement (100*M/J) | O4: Achieved number of samples | P4: Sampling protocol | Q4: AR Comments
A5: SWE | B5: SWE | C5: 2018 | D5: All | E5: All | F5: All | G5: All | H5: Length,weight | I5: Sea sampling, surveys | J5: NA | L5: A 2-year(2014, 2015) average rounded is used for all figures presented as planned minimum number. Only commercial species above the threshold (table 1A) and target species in surveys are listed in this table. Not all species collected during sampling at sea (Comment applicable to the entire table)
A6: SWE | B6: SWE | C6: 2018 | D6: Anguilla anguilla | E6: Baltic Sea | F6: EIFAAC/ICES | G6: Freshwater | H6: Age | I6: Commercial samples | J6: 375 | M6: 324 | N6: =M6/J6 -> 0.864 | O6: 3 | P6: 125 eels per lake in three lakes | Q6: Undersampled due to problems with a freezer at one fisher. Will be aged during spring 2019
A7: SWE | B7: SWE | C7: 2018 | D7: Anguilla anguilla | E7: Baltic Sea | F7: EIFAAC/ICES | G7: Freshwater | H7: Weight | I7: Commercial samples | J7: 375 | M7: 324 | N7: =M7/J7 -> 0.864 | O7: 3 | P7: 125 eels per lake in three lakes | Q7: Undersampled due to problems with a freezer at one fisher
A8: SWE | B8: SWE | C8: 2018 | D8: Anguilla anguilla | E8: Baltic Sea | F8: EIFAAC/ICES | G8: Freshwater | H8: Length | I8: Commercial samples | J8: 375 | M8: 324 | N8: 0.864 | O8: 3 | P8: 125 eels per lake in three lakes | Q8: Undersampled due to problems with a freezer at one fisher
A9: SWE | B9: SWE | C9: 2018 | D9: Anguilla anguilla | E9: Baltic Sea | F9: EIFAAC/ICES | G9: Freshwater | H9: Sex | I9: Commercial samples | J9: 375 | M9: 324 | N9: 0.864 | O9: 3 | P9: 125 eels per lake in three lakes | Q9: Undersampled due to problems with a freezer at one fisher
A10: SWE | B10: SWE | C10: 2018 | D10: Anguilla anguilla | E10: Baltic Sea | F10: EIFAAC/ICES | G10: Freshwater | H10: Maturity | I10: Commercial samples | J10: 375 | M10: 324 | N10: 0.864 | O10: 3 | P10: 125 eels per lake in three lakes | Q10: Undersampled due to problems with a freezer at one fisher
A11: SWE | B11: SWE | C11: 2018 | D11: Anguilla anguilla | E11: Baltic Sea | F11: EIFAAC/ICES/GFCM | G11: 22-32 | H11: Age | I11: Commercial | J11: 600 | M11: 349 | N11: =M11/J11 -> 0.5816666667 | O11: 35 | P11: Annual goal to sample 200 silver eel selected by length stratification (5-7 ind/cm and year) in SD 23, 25 and 27 respectively. | Q11: Undersampled due to restrictions in the fishery in SD 23
A12: SWE | B12: SWE | C12: 2018 | D12: Anguilla anguilla | E12: Baltic Sea | F12: EIFAAC/ICES/GFCM | G12: 22-32 | H12: Weight | I12: Commercial | J12: 600 | M12: 350 | N12: =M12/J12 -> 0.5833333333 | O12: 35 | P12: Annual goal to sample 200 silver eel selected by length stratification (5-7 ind/cm and year) in SD 23, 25 and 27 respectively. | Q12: Undersampled due to restrictions in the fishery in SD 23
A13: SWE | B13: SWE | C13: 2018 | D13: Anguilla anguilla | E13: Baltic Sea | F13: EIFAAC/ICES/GFCM | G13: 22-32 | H13: Length | I13: Commercial | J13: 1175 | M13: 1180 | N13: =M13/J13 -> 1.004255319 | O13: 35 | P13: Annual goal to sample 200 silver eel selected by length stratification (5-7 ind/cm and year) in SD 23, 25 and 27 respectively. | Q13: Undersampled due to restrictions in the fishery in SD 23
A14: SWE | B14: SWE | C14: 2018 | D14: Anguilla anguilla | E14: Baltic Sea | F14: EIFAAC/ICES/GFCM | G14: 22-32 | H14: Sex | I14: Commercial | J14: 600 | M14: 350 | N14: =M14/J14 -> 0.5833333333 | O14: 35 | P14: Annual goal to sample 200 silver eel selected by length stratification (5-7 ind/cm and year) in SD 23, 25 and 27 respectively. | Q14: Undersampled due to restrictions in the fishery in SD 23
A15: SWE | B15: SWE | C15: 2018 | D15: Anguilla anguilla | E15: Baltic Sea | F15: EIFAAC/ICES/GFCM | G15: 22-32 | H15: Maturity | I15: Commercial | J15: Not applicable | L15: Sexual maturity: Yellow eels and silver eels are handled separately, hence sampling stratified on maturity. | M15: Not applicable
A16: SWE | B16: SWE | C16: 2018 | D16: Anguilla anguilla | E16: Baltic Sea | F16: EIFAAC/ICES/GFCM | G16: 22-32 | H16: Age | I16: Survey | J16: 200 | M16: 239 | N16: =M16/J16 -> 1.195 | O16: 9 | P16: 200 yellow eel selected by length stratification (5-7 ind/cm).
A17: SWE | B17: SWE | C17: 2018 | D17: Anguilla anguilla | E17: Baltic Sea | F17: EIFAAC/ICES/GFCM | G17: 22-32 | H17: Weight | I17: Survey | J17: 200 | M17: 239 | N17: =M17/J17 -> 1.195 | O17: 9 | P17: 200 yellow eel selected by length stratification (5-7 ind/cm).
A18: SWE | B18: SWE | C18: 2018 | D18: Anguilla anguilla | E18: Baltic Sea | F18: EIFAAC/ICES/GFCM | G18: 22-32 | H18: Length | I18: Survey | J18: 650 | M18: 782 | N18: 1.203076923 | O18: 9 | P18: 200 yellow eel selected by length stratification (5-7 ind/cm).
A19: SWE | B19: SWE | C19: 2018 | D19: Anguilla anguilla | E19: Baltic Sea | F19: EIFAAC/ICES/GFCM | G19: 22-32 | H19: Sex | I19: Survey | J19: 200 | M19: 239 | N19: 1.195 | O19: 9 | P19: 200 yellow eel selected by length stratification (5-7 ind/cm).
A20: SWE | B20: SWE | C20: 2018 | D20: Anguilla anguilla | E20: Baltic Sea | F20: EIFAAC/ICES/GFCM | G20: 22-32 | H20: Maturity | I20: Survey | J20: Not applicable | L20: Sexual maturity: Yellow eels and silver eels are handled separately, hence sampling stratified on maturity. | M20: Not applicable
A21: SWE | B21: SWE | C21: 2018 | D21: Clupea harengus | E21: Baltic Sea | F21: ICES | G21: 22-24 | H21: Age | I21: Market | J21: 1480 | M21: 1494 | N21: 1.009459459 | O21: 14 | P21: max 150 ind/box : 4 box/SD/quarter | Q21: Fishing for herring in the area is conducted mainly in quarter 1 and 4. Not possible to determine the age in some cases.
A22: SWE | B22: SWE | C22: 2018 | D22: Clupea harengus | E22: Baltic Sea | F22: ICES | G22: 22-24 | H22: Weight | I22: Market | J22: 1480 | M22: 1494 | N22: 1.009459459 | O22: 14 | P22: max 150 ind/box : 4 box/SD/quarter | Q22: Fishing for herring in the area is conducted mainly in quarter 1 and 4.
A23: SWE | B23: SWE | C23: 2018 | D23: Clupea harengus | E23: Baltic Sea | F23: ICES | G23: 22-24 | H23: Length | I23: Market | J23: 1480 | M23: 1494 | N23: 1.009459459 | O23: 14 | P23: max 150 ind/box : 4 box/SD/quarter | Q23: Fishing for herring in the area is conducted mainly in quarter 1 and 4.
A24: SWE | B24: SWE | C24: 2018 | D24: Clupea harengus | E24: Baltic Sea | F24: ICES | G24: 22-24 | H24: Sex | I24: Market | J24: 1480 | M24: 1434 | N24: 0.9689189189 | O24: 14 | P24: max 150 ind/box : 4 box/SD/quarter | Q24: Fishing for herring in the area is conducted mainly in quarter 1 and 4.
A25: SWE | B25: SWE | C25: 2018 | D25: Clupea harengus | E25: Baltic Sea | F25: ICES | G25: 22-24 | H25: Maturity | I25: Market | J25: 1480 | M25: 1442 | N25: 0.9743243243 | O25: 14 | P25: max 150 ind/box : 4 box/SD/quarter | Q25: Fishing for herring in the area is conducted mainly in quarter 1 and 4.
A26: SWE | B26: SWE | C26: 2018 | D26: Clupea harengus | E26: Baltic Sea | F26: ICES | G26: 25-29, 32 | H26: Age | I26: Market | J26: 6125 | M26: 4970 | N26: 0.8114285714 | O26: 69 | P26: max 100 ind/box : 4 box/SD/quarter (SD 25-29,32) | Q26: Not all areas fully covered in sampling. No sampling in SD 29N and SD32. Landings not always accessible. Not possible to determine the age in some cases.
A27: SWE | B27: SWE | C27: 2018 | D27: Clupea harengus | E27: Baltic Sea | F27: ICES | G27: 25-29, 32 | H27: Weight | I27: Market | J27: 6170 | M27: 4970 | N27: 0.8055105348 | O27: 69 | P27: max 100 ind/box : 4 box/SD/quarter (SD 25-29,32) | Q27: Undersampled. Not all areas fully covered in sampling. No sampling in SD 29N and SD32. Landings not always accessible.
A28: SWE | B28: SWE | C28: 2018 | D28: Clupea harengus | E28: Baltic Sea | F28: ICES | G28: 25-29, 32 | H28: Length | I28: Market | J28: 6170 | M28: 5006 | N28: 0.8113452188 | O28: 69 | P28: max 100 ind/box : 4 box/SD/quarter (SD 25-29,32) | Q28: Undersampled. Not all areas fully covered in sampling. No sampling in SD 29N and SD32. Landings not always accessible.
A29: SWE | B29: SWE | C29: 2018 | D29: Clupea harengus | E29: Baltic Sea | F29: ICES | G29: 25-29, 32 | H29: Sex | I29: Market | J29: 5910 | M29: 4846 | N29: 0.8199661591 | O29: 69 | P29: max 100 ind/box : 4 box/SD/quarter (SD 25-29,32) | Q29: Undersampled. Not all areas fully covered in sampling. No sampling in SD 29N and SD32. Landings not always accessible.
A30: SWE | B30: SWE | C30: 2018 | D30: Clupea harengus | E30: Baltic Sea | F30: ICES | G30: 25-29, 32 | H30: Maturity | I30: Market | J30: 6170 | M30: 4970 | N30: 0.8055105348 | O30: 69 | P30: max 100 ind/box : 4 box/SD/quarter (SD 25-29,32) | Q30: Undersampled. Not all areas fully covered in sampling. No sampling in SD 29N and SD32. Landings not always accessible.
A31: SWE | B31: SWE | C31: 2018 | D31: Clupea harengus | E31: Baltic Sea | F31: ICES | G31: 25-29, 32 | H31: Age | I31: Survey | J31: 2430 | M31: 1998 | N31: 0.8222222222 | O31: 46 | P31: 5 ind/halfcm/haul | Q31: Undersampled, see general text No sampling in SD29N and 32. Not possible to determine the age in some cases.
A32: SWE | B32: SWE | C32: 2018 | D32: Clupea harengus | E32: Baltic Sea | F32: ICES | G32: 25-29, 32 | H32: Weight | I32: Survey | J32: 2430 | M32: 2010 | N32: 0.8271604938 | O32: 46 | P32: 5 ind/halfcm/haul | Q32: Undersampled, see general text No sampling in SD29N and 32.
A33: SWE | B33: SWE | C33: 2018 | D33: Clupea harengus | E33: Baltic Sea | F33: ICES | G33: 25-29, 32 | H33: Length | I33: Survey | J33: 10570 | M33: 9673 | N33: 0.9151371807 | O33: 46 | P33: subsample or total catch/haul
A34: SWE | B34: SWE | C34: 2018 | D34: Clupea harengus | E34: Baltic Sea | F34: ICES | G34: 25-29, 32 | H34: Sex | I34: Survey | J34: 2120 | M34: 1699 | N34: 0.8014150943 | O34: 46 | P34: 5 ind/halfcm/haul | Q34: Undersampled, see general text. No sampling in SD29N and 32.
A35: SWE | B35: SWE | C35: 2018 | D35: Clupea harengus | E35: Baltic Sea | F35: ICES | G35: 25-29, 32 | H35: Maturity | I35: Survey | J35: 2435 | M35: 2010 | N35: 0.8254620123 | O35: 46 | P35: 5 ind/halfcm/haul | Q35: Undersampled, see general text. No sampling in SD29N and 32.
A36: SWE | B36: SWE | C36: 2018 | D36: Clupea harengus | E36: Baltic Sea | F36: ICES | G36: 30.31 | H36: Age | I36: Commercial | J36: 890 | M36: 1186 | N36: 1.33258427 | O36: 11 | P36: 20 ind/halfcm/quarter, 2 and 3rd quarter
A37: SWE | B37: SWE | C37: 2018 | D37: Clupea harengus | E37: Baltic Sea | F37: ICES | G37: 30.31 | H37: Weight | I37: Commercial | J37: 890 | M37: 1186 | N37: 1.33258427 | O37: 11 | P37: 20 ind/halfcm/quarter, 2 and 3rd quarter
A38: SWE | B38: SWE | C38: 2018 | D38: Clupea harengus | E38: Baltic Sea | F38: ICES | G38: 30.31 | H38: Length | I38: Commercial | J38: 890 | M38: 1186 | N38: 1.33258427 | O38: 11 | P38: 20 ind/halfcm/quarter, 2 and 3rd quarter
A39: SWE | B39: SWE | C39: 2018 | D39: Clupea harengus | E39: Baltic Sea | F39: ICES | G39: 30.31 | H39: Sex | I39: Commercial | J39: 850 | M39: 1186 | N39: 1.395294118 | O39: 11 | P39: 20 ind/halfcm/quarter, 2 and 3rd quarter
A40: SWE | B40: SWE | C40: 2018 | D40: Clupea harengus | E40: Baltic Sea | F40: ICES | G40: 30.31 | H40: Maturity | I40: Commercial | J40: 890 | M40: 1186 | N40: 1.33258427 | O40: 11 | P40: 20 ind/halfcm/quarter, 2 and 3rd quarter
A41: SWE | B41: SWE | C41: 2018 | D41: Clupea harengus | E41: Baltic Sea | F41: ICES | G41: 30.31 | H41: Age | I41: Survey | J41: 890 | K41: 1110 | L41: "Planned No ...at regional level" presented here includes the part of the biological sampling that Sweden will be age reading according to the bilateral agreement | M41: 1636 | N41: =M41/K41 -> 1.473873874 | O41: 14 | P41: 10 ind/halfcm/statistical rectangle | Q41: Total number of individual herring samples was 3034 from which Finland did 1398 age readings and Sweden 1636 age-readings. The age-readings are divided randomly between the nations so that the individual samples from different hauls are held together. The number of individual samples per haul may differ quite a lot and therefore the division of otoliths is not always even. Achieved number of total samples in the survey is 27 but Sweden samples from 14 hauls.
A42: SWE | B42: SWE | C42: 2018 | D42: Clupea harengus | E42: Baltic Sea | F42: ICES | G42: 30.31 | H42: Weight | I42: Survey | J42: 890 | K42: 1110 | L42: "Planned No ...at regional level" presented here includes the part of the biological sampling that Sweden will be age reading according to the bilateral agreement | M42: 1636 | N42: =M42/K42 -> 1.473873874 | O42: 14 | P42: 10 ind/halfcm/statistical rectangle | Q42: Total number of individual herring samples was 3034 from which Finland did 1398 age readings and Sweden 1636 age-readings. The age-readings are divided randomly between the nations so that the individual samples from different hauls are held together. The number of individual samples per haul may differ quite a lot and therefore the division of otoliths is not always even. Achieved number of total samples in the survey is 27 but Sweden samples from 14 hauls.
A43: SWE | B43: SWE | C43: 2018 | D43: Clupea harengus | E43: Baltic Sea | F43: ICES | G43: 30.31 | H43: Length | I43: Survey | J43: 890 | K43: 6200 | L43: "Planned No ...at regional level" presented here includes the part of the biological sampling that Sweden will be age reading according to the bilateral agreement | M43: 8668 | N43: 1.398064516 | O43: 14 | P43: subsample or total catch/haul | Q43: The total sampling effort onboard the Research Vessel is not divided by nation. Therefore the achievement is announced as the total. See also Finnish AR.
A44: SWE | B44: SWE | C44: 2018 | D44: Clupea harengus | E44: Baltic Sea | F44: ICES | G44: 30.31 | H44: Sex | I44: Survey | J44: 850 | K44: 1110 | L44: "Planned No ...at regional level" presented here includes the part of the biological sampling that Sweden will be age reading according to the bilateral agreement | M44: 1636 | N44: 1.473873874 | O44: 14 | P44: 10 ind/halfcm/statistical rectangle | Q44: Total number of individual herring samples was 3034 from which Finland did 1398 age readings and Sweden 1636 age-readings. The age-readings are divided randomly between the nations so that the individual samples from different hauls are held together. The number of individual samples per haul may differ quite a lot and therefore the division of otoliths is not always even. Achieved number of total samples in the survey is 27 but Sweden samples from 14 hauls.
A45: SWE | B45: SWE | C45: 2018 | D45: Clupea harengus | E45: Baltic Sea | F45: ICES | G45: 30.31 | H45: Maturity | I45: Survey | J45: 890 | K45: 1110 | L45: "Planned No ...at regional level" presented here includes the part of the biological sampling that Sweden will be age reading according to the bilateral agreement | M45: 1636 | N45: 1.473873874 | O45: 14 | P45: 10 ind/halfcm/statistical rectangle | Q45: Total number of individual herring samples was 3034 from which Finland did 1398 age readings and Sweden 1636 age-readings. The age-readings are divided randomly between the nations so that the individual samples from different hauls are held together. The number of individual samples per haul may differ quite a lot and therefore the division of otoliths is not always even. Achieved number of total samples in the survey is 27 but Sweden samples from 14 hauls.
A46: SWE | B46: SWE | C46: 2018 | D46: Coregonus albula | E46: Baltic Sea | F46: ICES | G46: 22-32 | H46: Age | I46: Commercial | J46: 1050 | M46: 693 | N46: =M46/J46 -> 0.66 | O46: 15 | P46: Fish <110mm 10 ind/halfcm; 110-145 mm 30 ind/halfcm; >150mm all ind/halfcm | Q46: Rest of the age samples were sampled from the fishery independent survey. The WP needs to be updated for the next plan to include only half of the age samples from commercial sampling and other half from survey.
A47: SWE | B47: SWE | C47: 2018 | D47: Coregonus albula | E47: Baltic Sea | F47: ICES | G47: 22-32 | H47: Weight | I47: Commercial | J47: 1500 | M47: 1050 | N47: =M47/J47 -> 0.7 | O47: 15 | P47: Fish <110mm 10 ind/halfcm; 110-145 mm 30 ind/halfcm; >150mm all ind/halfcm | Q47: Numbers in WP should be 1050, to be corrected. Achievement 100 %
A48: SWE | B48: SWE | C48: 2018 | D48: Coregonus albula | E48: Baltic Sea | F48: ICES | G48: 22-32 | H48: Length | I48: Commercial | J48: 1500 | M48: 1050 | N48: =M48/J48 -> 0.7 | O48: 15 | P48: Fish <110mm 10 ind/halfcm; 110-145 mm 30 ind/halfcm; >150mm all ind/halfcm | Q48: Numbers in WP should be 1050. to be corrected. Achievement 100 %
A49: SWE | B49: SWE | C49: 2018 | D49: Coregonus albula | E49: Baltic Sea | F49: ICES | G49: 22-32 | H49: Sex | I49: Commercial | J49: 1050 | M49: 1050 | N49: =M49/J49 -> 1 | O49: 15 | P49: Fish <110mm 10 ind/halfcm; 110-145 mm 30 ind/halfcm; >150mm all ind/halfcm
A50: SWE | B50: SWE | C50: 2018 | D50: Coregonus albula | E50: Baltic Sea | F50: ICES | G50: 22-32 | H50: Maturity | I50: Commercial | J50: 1050 | M50: 1050 | N50: 1 | O50: 15 | P50: Fish <110mm 10 ind/halfcm; 110-145 mm 30 ind/halfcm; >150mm all ind/halfcm
A51: SWE | B51: SWE | C51: 2018 | D51: Gadus morhua | E51: Baltic Sea | F51: ICES | G51: 22-24 | H51: Age | I51: Market | J51: 2050 | M51: 1299 | N51: 0.6336585366 | O51: 33 | P51: For passive gears: five trips/quarter (observer or selfsampling) For Active gears: 2018 SD 24 was closed for fishing vessels with active gear and was opend for a short period and ad-hoc sampling was performed. | Q51: Sampling design was changed between 2016 and 2017. The planned number of sampled fish reflects the old samlingdesign, while the achieved number reflect the outcome of the new sampling design (as described in textbox 4A)
A52: SWE | B52: SWE | C52: 2018 | D52: Gadus morhua | E52: Baltic Sea | F52: ICES | G52: 22-24 | H52: Weight | I52: Market | J52: 2050 | M52: 2177 | N52: 1.06195122 | O52: 33 | P52: For passive gears: five trips/quarter (observer or selfsampling) For Active gears: 2018, SD 24 was closed for fishing vessels with active gears, it was opend for a short period and ad-hoc sampling was performed. | Q52: Sampling design was changed between 2016 and 2017. The planned number of sampled fish reflects the old samlingdesign, while the achieved number reflect the outcome of the new sampling design (as described in textbox 4A)
A53: SWE | B53: SWE | C53: 2018 | D53: Gadus morhua | E53: Baltic Sea | F53: ICES | G53: 22-24 | H53: Length | I53: Market | J53: 2050 | M53: 3418 | N53: 1.667317073 | O53: 33 | P53: For passive gears: five trips/quarter (observer or selfsampling) For Active gears: 2017 was SD 24 closed for fishing vessels with active gears, it was opend for a short period and ad-hoc sampling was performed. | Q53: Sampling design was changed between 2016 and 2017. The planned number of sampled fish reflects the old samlingdesign, while the achieved number reflect the outcome of the new sampling design (as described in textbox 4A) The oversampling has no significant cost implications
A54: SWE | B54: SWE | C54: 2018 | D54: Gadus morhua | E54: Baltic Sea | F54: ICES | G54: 22-24 | H54: Age | I54: Sea sampling | J54: 620 | M54: 1665 | N54: 2.685483871 | O54: 34 | P54: For passive gears: five trips/quarter (observer or selfsampling) | Q54: Market samples are included in sea sampling in subdivision 23-24 pasive gears.
A55: SWE | B55: SWE | C55: 2018 | D55: Gadus morhua | E55: Baltic Sea | F55: ICES | G55: 22-24 | H55: Weight | I55: Sea sampling | J55: 620 | M55: 2238 | N55: 3.609677419 | O55: 34 | P55: For passive gears: five trips/quarter (observer or selfsampling) | Q55: Individual weights, according to manual. Differs from size catagory and active/passive gears
A56: SWE | B56: SWE | C56: 2018 | D56: Gadus morhua | E56: Baltic Sea | F56: ICES | G56: 22-24 | H56: Length | I56: Sea sampling | J56: 620 | M56: 7424 | N56: 11.97419355 | O56: 34 | P56: For passive gears: five trips/quarter (observer or selfsampling) | Q56: All individuals in a fish box for each size landed are messured
A57: SWE | B57: SWE | C57: 2018 | D57: Gadus morhua | E57: Baltic Sea | F57: ICES | G57: 22-24 | H57: Age | I57: Survey | J57: 300 | L57: info on sampling 1 ind / haul | M57: 327 | N57: 1.09 | O57: 10 | P57: 8 st/cm/SD 23
A58: SWE | B58: SWE | C58: 2018 | D58: Gadus morhua | E58: Baltic Sea | F58: ICES | G58: 22-24 | H58: Weight | I58: Survey | J58: 300 | M58: 327 | N58: 1.09 | O58: 10 | P58: 8 st/cm/SD 23
A59: SWE | B59: SWE | C59: 2018 | D59: Gadus morhua | E59: Baltic Sea | F59: ICES | G59: 22-24 | H59: Length | I59: Survey | J59: 715 | M59: 897 | N59: 1.254545455 | O59: 10 | P59: total catch
A60: SWE | B60: SWE | C60: 2018 | D60: Gadus morhua | E60: Baltic Sea | F60: ICES | G60: 22-24 | H60: Sex | I60: Survey | J60: 300 | M60: 319 | N60: 1.063333333 | O60: 10 | P60: 8 st/cm/SD 23
A61: SWE | B61: SWE | C61: 2018 | D61: Gadus morhua | E61: Baltic Sea | F61: ICES | G61: 22-24 | H61: Maturity | I61: Survey | J61: 300 | M61: 326 | N61: 1.086666667 | O61: 10 | P61: 8 st/cm/SD 23
A62: SWE | B62: SWE | C62: 2018 | D62: Gadus morhua | E62: Baltic Sea | F62: ICES | G62: 25-32 | H62: Age | I62: Market | J62: 1945 | M62: 2564 | N62: 1.318251928 | O62: 56 | P62: For passive gears: five trips/quarter (observer or selfsampling) For Active gears: eight weeks/ quarter. On each week five active trawlers are picked randomly and hopfully sampled. | Q62: Market samples are included in sea sampling for passive gears. Otholites in SD 25-32 are collected but not aged.
A63: SWE | B63: SWE | C63: 2018 | D63: Gadus morhua | E63: Baltic Sea | F63: ICES | G63: 25-32 | H63: Weight | I63: Market | J63: 2250 | M63: 4515 | N63: 2.006666667 | O63: 56 | P63: For passive gears: five trips/quarter (observer or selfsampling) For Active gears: eight weeks/ quarter. On each week five active trawlers are picked randomly and hopfully sampled. | Q63: Sampling design was changed between 2016 and 2017. The planned number of sampled fish reflects the old samlingdesign, while the achieved number reflect the outcome of the new sampling design (as described in textbox 4A) The oversampling has no significant cost implications
A64: SWE | B64: SWE | C64: 2018 | D64: Gadus morhua | E64: Baltic Sea | F64: ICES | G64: 25-32 | H64: Length | I64: Market | J64: 2250 | M64: 12585 | N64: 5.593333333 | O64: 56 | P64: For passive gears: five trips/quarter (observer or selfsampling) For Active gears: eight weeks/ quarter. On each week five active trawlers are picked randomly and hopfully sampled. | Q64: Sampling design was changed between 2016 and 2017. The planned number of sampled fish reflects the old samlingdesign, while the achieved number reflect the outcome of the new sampling design (as described in textbox 4A) The oversampling has no significant cost implications
A65: SWE | B65: SWE | C65: 2018 | D65: Gadus morhua | E65: Baltic Sea | F65: ICES | G65: 25-32 | H65: Age | I65: Sea sampling | J65: 890 | M65: 2301 | N65: 2.585393258 | O65: 60 | P65: For passive gears: five trips/quarter (observer or selfsampling). For Active gears: Five trips/ quarter = 20 trips in a year | Q65: Sampling design was changed between 2016 and 2017. The planned number of sampled fish reflects the old samlingdesign, while the achieved number reflect the outcome of the new sampling design (as described in textbox 4A) The oversampling has no significant cost implications
A66: SWE | B66: SWE | C66: 2018 | D66: Gadus morhua | E66: Baltic Sea | F66: ICES | G66: 25-32 | H66: Weight | I66: Sea sampling | J66: 1010 | M66: 3499 | N66: 3.464356436 | O66: 60 | P66: For passive gears: five trips/quarter (observer or selfsampling). For Active gears: Five trips/ quarter = 20 trips in a year | Q66: Sampling design was changed between 2016 and 2017. The planned number of sampled fish reflects the old samlingdesign, while the achieved number reflect the outcome of the new sampling design (as described in textbox 4A) The oversampling has no significant cost implications
A67: SWE | B67: SWE | C67: 2018 | D67: Gadus morhua | E67: Baltic Sea | F67: ICES | G67: 25-32 | H67: Length | I67: Sea sampling | J67: 1010 | M67: 16868 | N67: 16.7009901 | O67: 60 | P67: For passive gears: five trips/quarter (observer or selfsampling). For Active gears: Five trips/ quarter = 20 trips in a year | Q67: Sampling design was changed between 2016 and 2017. The planned number of sampled fish reflects the old samlingdesign, while the achieved number reflect the outcome of the new sampling design (as described in textbox 4A) The oversampling has no significant cost implications
A68: SWE | B68: SWE | C68: 2018 | D68: Gadus morhua | E68: Baltic Sea | F68: ICES | G68: 25-32 | H68: Age | I68: Survey | J68: 1860 | M68: 1217 | N68: 0.6543010753 | O68: 108 | P68: 1st/cm/haul (on BITS adjustments are made depending on nr of hauls per SD) | Q68: Undersampled, see general text
A69: SWE | B69: SWE | C69: 2018 | D69: Gadus morhua | E69: Baltic Sea | F69: ICES | G69: 25-32 | H69: Weight | I69: Survey | J69: 1860 | M69: 1220 | N69: 0.6559139785 | O69: 108 | P69: 1st/cm/haul (on BITS adjustments are made depending on nr of hauls per SD) | Q69: Undersampled, see general text
A70: SWE | B70: SWE | C70: 2018 | D70: Gadus morhua | E70: Baltic Sea | F70: ICES | G70: 25-32 | H70: Length | I70: Survey | J70: 13680 | M70: 9421 | N70: 0.6886695906 | O70: 108 | P70: subsample or total catch/haul | Q70: Undersampled, see general text
A71: SWE | B71: SWE | C71: 2018 | D71: Gadus morhua | E71: Baltic Sea | F71: ICES | G71: 25-32 | H71: Sex | I71: Survey | J71: 1790 | M71: 1164 | N71: 0.6502793296 | O71: 108 | P71: 1st/cm/haul (on BITS adjustments are made depending on nr of hauls per SD) | Q71: Undersampled, see general text
A72: SWE | B72: SWE | C72: 2018 | D72: Gadus morhua | E72: Baltic Sea | F72: ICES | G72: 25-32 | H72: Maturity | I72: Survey | J72: 1790 | M72: 1164 | N72: 0.6502793296 | O72: 108 | P72: 1st/cm/haul (on BITS adjustments are made depending on nr of hauls per SD) | Q72: Undersampled, see general text
A73: SWE | B73: SWE | C73: 2018 | D73: Platichthys flesus | E73: Baltic Sea | F73: ICES | G73: 22-32 | H73: Age | I73: Sea sampling | J73: 330 | M73: NA | O73: NA | Q73: No sampling due <10 % of total landings
A74: SWE | B74: SWE | C74: 2018 | D74: Platichthys flesus | E74: Baltic Sea | F74: ICES | G74: 22-32 | H74: Weight | I74: Sea sampling | J74: 495 | M74: NA | O74: NA | Q74: No sampling due <10 % of total landings
A75: SWE | B75: SWE | C75: 2018 | D75: Platichthys flesus | E75: Baltic Sea | F75: ICES | G75: 22-32 | H75: Length | I75: Sea sampling | J75: 495 | M75: 10034 | N75: 20.27070707 | P75: For passive gears: five trips/quarter (observer or selfsampling). For Active gears: Five trips/ quarter = 20 trips in a year | Q75: Sampling design was changed between 2016 and 2017. The planned number of sampled fish reflects the old samlingdesign, while the achieved number reflect the outcome of the new sampling design (as described in textbox 4A) The oversampling has no significant cost implications
A76: SWE | B76: SWE | C76: 2018 | D76: Platichthys flesus | E76: Baltic Sea | F76: ICES | G76: 22-32 | H76: Sex | I76: Sea sampling | J76: 150 | M76: NA | O76: NA | Q76: No sampling due <10 % of total landings
A77: SWE | B77: SWE | C77: 2018 | D77: Platichthys flesus | E77: Baltic Sea | F77: ICES | G77: 22-32 | H77: Maturity | I77: Sea sampling | J77: 200 | M77: NA | O77: NA | Q77: No sampling due <10 % of total landings
A78: SWE | B78: SWE | C78: 2018 | D78: Platichthys flesus | E78: Baltic Sea | F78: ICES | G78: 22-32 | H78: Age | I78: survey | J78: 1860 | M78: 1912 | N78: 1.027956989 | O78: 56 | P78: 1 ind/cm/haul
A79: SWE | B79: SWE | C79: 2018 | D79: Platichthys flesus | E79: Baltic Sea | F79: ICES | G79: 22-32 | H79: Weight | I79: survey | J79: 1860 | M79: 1912 | N79: 1.027956989 | O79: 56 | P79: 1 ind/cm/haul
A80: SWE | B80: SWE | C80: 2018 | D80: Platichthys flesus | E80: Baltic Sea | F80: ICES | G80: 22-32 | H80: Length | I80: survey | J80: 6650 | M80: 6311 | N80: 0.9490225564 | O80: 56 | P80: subsample or total catch/haul
A81: SWE | B81: SWE | C81: 2018 | D81: Platichthys flesus | E81: Baltic Sea | F81: ICES | G81: 22-32 | H81: Sex | I81: survey | J81: 1860 | M81: 1912 | N81: 1.027956989 | O81: 56 | P81: 1 ind/cm/haul
A82: SWE | B82: SWE | C82: 2018 | D82: Platichthys flesus | E82: Baltic Sea | F82: ICES | G82: 22-32 | H82: Maturity | I82: survey | J82: 1860 | M82: 1912 | N82: 1.027956989 | O82: 56 | P82: 1 ind/cm/haul
A83: SWE | B83: SWE | C83: 2018 | D83: Salmo salar | E83: Baltic Sea | F83: ICES | G83: 22-31, 32 | H83: NA | I83: NA | J83: 0 | L83: Only number of individuals are used in stock assessment (ICES WGBAST). This data is collected from fishermen journals/logbooks, See Table 2A. | M83: NA | O83: NA | P83: NA | Q83: Only number of individuals are used in stock assessment (ICES WGBAST). This data is collected from fishermen journals/logbooks, See Table 2A.
A84: SWE | B84: SWE | C84: 2018 | D84: Salmo salar | E84: North sea and Eastern Arctic | F84: ICES/NASCO/Ospar/Helcon | G84: IIIa | H84: NA | I84: NA | J84: 0 | L84: Only number of individuals are used in stock assessment (ICES WGNAS). This data is collected from fishermen journals/logbooks, See Table 2A. | M84: NA | O84: NA | P84: NA | Q84: Only number of individuals are used in stock assessment (ICES WGNAS). This data is collected from fishermen journals/logbooks, See Table 2A.
A85: SWE | B85: SWE | C85: 2018 | D85: Salmo trutta | E85: Baltic Sea | F85: ICES | G85: 22-31, 32 | H85: NA | I85: NA | J85: 0 | L85: Only number of individuals are used for evaluation of status (ICES WGBAST). This data is collected from fishermen journals/logbooks, See Table 2A. | M85: NA | O85: NA | P85: NA | Q85: Only number of individuals are used for evaluation of status (ICES WGBAST). This data is collected from fishermen journals/logbooks, See Table 2A.
A86: SWE | B86: SWE | C86: 2018 | D86: Sprattus sprattus | E86: Baltic Sea | F86: ICES | G86: 22-32 | H86: Age | I86: Market | J86: 4840 | M86: 1181 | N86: 0.2440082645 | O86: 83 | P86: max 150 ind/box : 4 box/SD/quarter | Q86: Not all areas fully covered in sampling. No sampling in SD 29N and SD32. Landings not always accessible. Not possible to determine the age in some cases.
A87: SWE | B87: SWE | C87: 2018 | D87: Sprattus sprattus | E87: Baltic Sea | F87: ICES | G87: 22-32 | H87: Weight | I87: Market | J87: 4870 | M87: 1189 | N87: 0.2441478439 | O87: 83 | P87: max 150 ind/box : 4 box/SD/quarter | Q87: Not all areas fully covered in sampling. No sampling in SD 29N and SD32. Landings not always accessible.
A88: SWE | B88: SWE | C88: 2018 | D88: Sprattus sprattus | E88: Baltic Sea | F88: ICES | G88: 22-32 | H88: Length | I88: Market | J88: 4870 | M88: 1189 | N88: 0.2441478439 | O88: 83 | P88: max 150 ind/box : 4 box/SD/quarter | Q88: Not all areas fully covered in sampling. No sampling in SD 29N and SD32. Landings not always accessible.
A89: SWE | B89: SWE | C89: 2018 | D89: Sprattus sprattus | E89: Baltic Sea | F89: ICES | G89: 22-32 | H89: Sex | I89: Market | J89: 4820 | M89: 1186 | N89: =M89/J89 -> 0.2460580913 | O89: 83 | P89: max 150 ind/box : 4 box/SD/quarter | Q89: Not all areas fully covered in sampling. No sampling in SD 29N and SD32. Landings not always accessible.
A90: SWE | B90: SWE | C90: 2018 | D90: Sprattus sprattus | E90: Baltic Sea | F90: ICES | G90: 22-32 | H90: Maturity | I90: Market | J90: 4870 | M90: 1189 | N90: 0.2441478439 | O90: 83 | P90: max 150 ind/box : 4 box/SD/quarter | Q90: Not all areas fully covered in sampling. No sampling in SD 29N and SD32. Landings not always accessible.
A91: SWE | B91: SWE | C91: 2018 | D91: Sprattus sprattus | E91: Baltic Sea | F91: ICES | G91: 22-32 | H91: Age | I91: Survey | J91: 1320 | M91: 1470 | N91: 1.113636364 | O91: 46 | P91: 5 ind/halfcm/haul
A92: SWE | B92: SWE | C92: 2018 | D92: Sprattus sprattus | E92: Baltic Sea | F92: ICES | G92: 22-32 | H92: Weight | I92: Survey | J92: 1320 | M92: 1473 | N92: 1.115909091 | O92: 46 | P92: 5 ind/halfcm/haul
A93: SWE | B93: SWE | C93: 2018 | D93: Sprattus sprattus | E93: Baltic Sea | F93: ICES | G93: 22-32 | H93: Length | I93: Survey | J93: 9360 | M93: 8199 | N93: 0.8759615385 | O93: 46 | P93: subsample or total catch/haul | Q93: Undersampled, see general text
A94: SWE | B94: SWE | C94: 2018 | D94: Sprattus sprattus | E94: Baltic Sea | F94: ICES | G94: 22-32 | H94: Sex | I94: Survey | J94: 1120 | M94: 1376 | N94: 1.228571429 | O94: 46 | P94: 5 ind/halfcm/haul
A95: SWE | B95: SWE | C95: 2018 | D95: Sprattus sprattus | E95: Baltic Sea | F95: ICES | G95: 22-32 | H95: Maturity | I95: Survey | J95: 0 | M95: NA | O95: 0
A96: SWE | B96: SWE | C96: 2018 | D96: Anguilla anguilla | E96: North sea and Eastern Arctic | F96: EIFAAC/ICES/GFCM | G96: IIIa | H96: Age | I96: Survey | J96: 600 | M96: =459+210 -> 669 | N96: 1.115 | O96: 15 | P96: survey goal to sample 600 yellow eel in three different areas (200 per area) selected by length stratification (5-7 ind/cm). One area in SD 21 and two in SD 20. | Q96: 210 yellow eels are scheduled to be aged after the summer of 2019. (Besides the yellow eel, 15 silver eels were also sampled according to change in sampling scheme. When WP is updated, the addition of biological sampling of both stages of the species will be included)
A97: SWE | B97: SWE | C97: 2018 | D97: Anguilla anguilla | E97: North sea and Eastern Arctic | F97: EIFAAC/ICES/GFCM | G97: IIIa | H97: Weight | I97: Survey | J97: 600 | M97: 671 | N97: 1.118333333 | O97: 15 | P97: survey goal to sample 600 yellow eel in three different areas (200 per area) selected by length stratification (5-7 ind/cm). One area in SD 21 and two in SD 20. | Q97: Besides the yellow eel, 15 silver eels were also sampled according to change in sampling scheme. When WP is updated, the addition of biological sampling of both stages of the species will be included.
A98: SWE | B98: SWE | C98: 2018 | D98: Anguilla anguilla | E98: North sea and Eastern Arctic | F98: EIFAAC/ICES/GFCM | G98: IIIa | H98: Length | I98: Survey | J98: 2270 | M98: 2225 | N98: 0.9801762115 | O98: 15 | P98: All individuals collected are measured for length. | Q98: Besides these yellow eels, 15 silver eels were also sampled according to change in sampling scheme. When WP is updated, the addition of biological sampling of both stages of the species will be included.
A99: SWE | B99: SWE | C99: 2018 | D99: Anguilla anguilla | E99: North sea and Eastern Arctic | F99: EIFAAC/ICES/GFCM | G99: IIIa | H99: Sex | I99: Survey | J99: 600 | M99: 671 | N99: 1.118333333 | O99: 15 | P99: Set survey goal to sample 600 yellow eel in three different areas (200 per area) selected by length stratification (5-7 ind/cm). One area in SD 21 and two in SD 20. | Q99: Besides the yellow eel, 15 silver eels were also sampled according to change in sampling scheme. When WP is updated, the addition of biological sampling of both stages of the species will be included.
A100: SWE | B100: SWE | C100: 2018 | D100: Anguilla anguilla | E100: North sea and Eastern Arctic | F100: EIFAAC/ICES/GFCM | G100: IIIa | H100: Maturity | I100: Survey | J100: Not applicable | L100: Sexual maturity: Yellow eels and silver eels are handled separately, hence sampling stratified on maturity.
A101: SWE | B101: SWE | C101: 2018 | D101: Clupea harengus | E101: North Sea and Eastern Arctic | F101: ICES | G101: IIIa | H101: Age | I101: Market | J101: 4515 | M101: 2965 | N101: 0.6566998893 | O101: 46 | P101: max 150 ind/box : 4 box/SD/quarter | Q101: Undersampled due to to no/ low landings in some areas and quarters
A102: SWE | B102: SWE | C102: 2018 | D102: Clupea harengus | E102: North Sea and Eastern Arctic | F102: ICES | G102: IIIa | H102: Weight | I102: Market | J102: 4520 | M102: 2971 | N102: 0.657300885 | O102: 46 | P102: max 150 ind/box : 4 box/SD/quarter | Q102: Undersampled due to to no/ low landings in some areas and quarters
A103: SWE | B103: SWE | C103: 2018 | D103: Clupea harengus | E103: North Sea and Eastern Arctic | F103: ICES | G103: IIIa | H103: Length | I103: Market | J103: 4520 | M103: 2971 | N103: 0.657300885 | O103: 46 | P103: max 150 ind/box : 4 box/SD/quarter | Q103: Undersampled due to to no/ low landings in some areas and quarters
A104: SWE | B104: SWE | C104: 2018 | D104: Clupea harengus | E104: North Sea and Eastern Arctic | F104: ICES | G104: IIIa | H104: Sex | I104: Market | J104: 4345 | M104: 2953 | N104: 0.6796317606 | O104: 46 | P104: max 150 ind/box : 4 box/SD/quarter | Q104: Undersampled due to to no/ low landings in some areas and quarters
A105: SWE | B105: SWE | C105: 2018 | D105: Clupea harengus | E105: North Sea and Eastern Arctic | F105: ICES | G105: IIIa | H105: Maturity | I105: Market | J105: 4400 | M105: 2970 | N105: 0.675 | O105: 46 | P105: max 150 ind/box : 4 box/SD/quarter | Q105: Undersampled due to to no/ low landings in some areas and quarters
A106: SWE | B106: SWE | C106: 2018 | D106: Clupea harengus | E106: North Sea and Eastern Arctic | F106: ICES | G106: IIIa | H106: Age | I106: Survey | J106: 3090 | M106: 2372 | N106: 0.7676375405 | O106: 91 | P106: 2 ind/halfcm/haul | Q106: Undersampled, see general text
A107: SWE | B107: SWE | C107: 2018 | D107: Clupea harengus | E107: North Sea and Eastern Arctic | F107: ICES | G107: IIIa | H107: Weight | I107: Survey | J107: 3090 | M107: 2380 | N107: 0.7702265372 | O107: 91 | P107: 2 ind/halfcm/haul | Q107: Undersampled, see general text
A108: SWE | B108: SWE | C108: 2018 | D108: Clupea harengus | E108: North Sea and Eastern Arctic | F108: ICES | G108: IIIa | H108: Length | I108: Survey | J108: 14240 | M108: 10923 | N108: 0.7670646067 | O108: 91 | P108: subsample or total catch/haul | Q108: Undersampled, see general text
A109: SWE | B109: SWE | C109: 2018 | D109: Clupea harengus | E109: North Sea and Eastern Arctic | F109: ICES | G109: IIIa | H109: Sex | I109: Survey | J109: 2595 | M109: 1860 | N109: 0.7167630058 | O109: 91 | P109: 2 ind/halfcm/haul | Q109: Undersampled, see general text
A110: SWE | B110: SWE | C110: 2018 | D110: Clupea harengus | E110: North Sea and Eastern Arctic | F110: ICES | G110: IIIa | H110: Maturity | I110: Survey | J110: 3090 | M110: 2380 | N110: 0.7702265372 | O110: 91 | P110: 2 ind/halfcm/haul | Q110: Undersampled, see general text
A111: SWE | B111: SWE | C111: 2018 | D111: Gadus morhua | E111: North Sea and Eastern Arctic | F111: ICES | G111: IIIaN | H111: Age | I111: Market | J111: 1985 | M111: 1778 | N111: 0.8957178841 | O111: 64 | P111: max 100 ind/EU scale size/quarter
A112: SWE | B112: SWE | C112: 2018 | D112: Gadus morhua | E112: North Sea and Eastern Arctic | F112: ICES | G112: IIIaN | H112: Weight | I112: Market | J112: 1985 | M112: 1780 | N112: 0.8967254408 | O112: 64 | P112: max 100 ind/EU scale size/quarter
A113: SWE | B113: SWE | C113: 2018 | D113: Gadus morhua | E113: North Sea and Eastern Arctic | F113: ICES | G113: IIIaN | H113: Length | I113: Market | J113: 1985 | M113: 1780 | N113: 0.8967254408 | O113: 64 | P113: generated from specimen
A114: SWE | B114: SWE | C114: 2018 | D114: Gadus morhua | E114: North Sea and Eastern Arctic | F114: ICES | G114: IIIaN | H114: Age | I114: Sea sampling | J114: 730 | M114: 413 | N114: 0.5657534247 | O114: 40 | P114: 3st/cm/trip | Q114: Undersampled due to low fishing activity and limited number of length classes in catch
A115: SWE | B115: SWE | C115: 2018 | D115: Gadus morhua | E115: North Sea and Eastern Arctic | F115: ICES | G115: IIIaN | H115: Weight | I115: Sea sampling | J115: 730 | M115: 413 | N115: 0.5657534247 | O115: 40 | P115: 3st/cm/trip | Q115: Undersampled due to low fishing activity and limited number of length classes in catch
A116: SWE | B116: SWE | C116: 2018 | D116: Gadus morhua | E116: North Sea and Eastern Arctic | F116: ICES | G116: IIIaN | H116: Length | I116: Sea sampling | J116: 730 | M116: 3984 | N116: 5.457534247 | O116: 40 | P116: total amount in subsample
A117: SWE | B117: SWE | C117: 2018 | D117: Gadus morhua | E117: North Sea and Eastern Arctic | F117: ICES | G117: IIIaN | H117: Age | I117: Survey | J117: 870 | M117: 416 | N117: 0.4781609195 | O117: 53 | P117: 1 ind/cm/haul | Q117: Undersampled, see general text
A118: SWE | B118: SWE | C118: 2018 | D118: Gadus morhua | E118: North Sea and Eastern Arctic | F118: ICES | G118: IIIaN | H118: Weight | I118: Survey | J118: 870 | M118: 416 | N118: 0.4781609195 | O118: 53 | P118: 1 ind/cm/haul | Q118: Undersampled, see general text
A119: SWE | B119: SWE | C119: 2018 | D119: Gadus morhua | E119: North Sea and Eastern Arctic | F119: ICES | G119: IIIaN | H119: Length | I119: Survey | J119: 2520 | M119: 1052 | N119: 0.4174603175 | O119: 53 | P119: subsample or total catch/haul | Q119: Undersampled, see general text
A120: SWE | B120: SWE | C120: 2018 | D120: Gadus morhua | E120: North Sea and Eastern Arctic | F120: ICES | G120: IIIaN | H120: Sex | I120: Survey | J120: 840 | M120: 403 | N120: 0.4797619048 | O120: 53 | P120: 1 ind/cm/haul | Q120: Undersampled, see general text
A121: SWE | B121: SWE | C121: 2018 | D121: Gadus morhua | E121: North Sea and Eastern Arctic | F121: ICES | G121: IIIaN | H121: Maturity | I121: Survey | J121: 840 | M121: 403 | N121: 0.4797619048 | O121: 53 | P121: 1 ind/cm/haul | Q121: Undersampled, see general text
A122: SWE | B122: SWE | C122: 2018 | D122: Gadus morhua | E122: North Sea and Eastern Arctic | F122: ICES | G122: IIIaS | H122: Age | I122: Market | J122: 1140 | M122: 642 | N122: 0.5631578947 | O122: 34 | P122: max 100 ind/EU scale size/quarter | Q122: Undersampled due to low landings
A123: SWE | B123: SWE | C123: 2018 | D123: Gadus morhua | E123: North Sea and Eastern Arctic | F123: ICES | G123: IIIaS | H123: Weight | I123: Market | J123: 1140 | M123: 642 | N123: 0.5631578947 | O123: 34 | P123: max 100 ind/EU scale size/quarter | Q123: Undersampled due to low landings
A124: SWE | B124: SWE | C124: 2018 | D124: Gadus morhua | E124: North Sea and Eastern Arctic | F124: ICES | G124: IIIaS | H124: Length | I124: Market | J124: 1140 | M124: 642 | N124: 0.5631578947 | O124: 34 | P124: max 100 ind/EU scale size/quarter | Q124: Undersampled due to low landings
A125: SWE | B125: SWE | C125: 2018 | D125: Gadus morhua | E125: North Sea and Eastern Arctic | F125: ICES | G125: IIIaS | H125: Age | I125: Sea sampling | J125: 550 | M125: 218 | N125: 0.3963636364 | O125: 23 | P125: 3st/cm/trip | Q125: Undersampled due to low fishing activity and limited number of length classes in catch
A126: SWE | B126: SWE | C126: 2018 | D126: Gadus morhua | E126: North Sea and Eastern Arctic | F126: ICES | G126: IIIaS | H126: Weight | I126: Sea sampling | J126: 550 | M126: 218 | N126: 0.3963636364 | O126: 23 | P126: 3st/cm/trip | Q126: Undersampled due to low fishing activity and limited number of length classes in catch
A127: SWE | B127: SWE | C127: 2018 | D127: Gadus morhua | E127: North Sea and Eastern Arctic | F127: ICES | G127: IIIaS | H127: Length | I127: Sea sampling | J127: 550 | M127: 311 | N127: 0.5654545455 | O127: 23 | P127: 3st/cm/trip | Q127: Undersampled due to low fishing activity and limited number of length classes in catch
A128: SWE | B128: SWE | C128: 2018 | D128: Gadus morhua | E128: North Sea and Eastern Arctic | F128: ICES | G128: IIIaS | H128: Age | I128: Survey | J128: 570 | M128: 134 | N128: 0.2350877193 | O128: 38 | P128: 1 ind/cm/haul | Q128: Undersampled, see general text
A129: SWE | B129: SWE | C129: 2018 | D129: Gadus morhua | E129: North Sea and Eastern Arctic | F129: ICES | G129: IIIaS | H129: Weight | I129: Survey | J129: 570 | M129: 134 | N129: 0.2350877193 | O129: 38 | P129: 1 ind/cm/haul | Q129: Undersampled, see general text
A130: SWE | B130: SWE | C130: 2018 | D130: Gadus morhua | E130: North Sea and Eastern Arctic | F130: ICES | G130: IIIaS | H130: Length | I130: Survey | J130: 955 | M130: 166 | N130: 0.1738219895 | O130: 38 | P130: subsample or total catch/haul | Q130: Undersampled, see general text
A131: SWE | B131: SWE | C131: 2018 | D131: Gadus morhua | E131: North Sea and Eastern Arctic | F131: ICES | G131: IIIaS | H131: Sex | I131: Survey | J131: 570 | M131: 128 | N131: 0.2245614035 | O131: 38 | P131: 1 ind/cm/haul | Q131: Undersampled, see general text
A132: SWE | B132: SWE | C132: 2018 | D132: Gadus morhua | E132: North Sea and Eastern Arctic | F132: ICES | G132: IIIaS | H132: Maturity | I132: Survey | J132: 570 | M132: 128 | N132: 0.2245614035 | O132: 38 | P132: 1 ind/cm/haul | Q132: Undersampled, see general text
A133: SWE | B133: SWE | C133: 2018 | D133: Glyptocephalus cynoglossus | E133: North Sea and Eastern Arctic | F133: ICES | G133: IIIa | H133: Age | I133: Market + Seasampling | J133: 1090 | M133: 1031 | N133: 0.9458715596 | O133: 75 | P133: Seasampling: 3 ind/cm/trip; Market: min 50 individuals unsorted catch / trip
A134: SWE | B134: SWE | C134: 2018 | D134: Glyptocephalus cynoglossus | E134: North Sea and Eastern Arctic | F134: ICES | G134: IIIa | H134: Weight | I134: Market + Seasampling | J134: 1090 | M134: 1032 | N134: 0.9467889908 | O134: 75 | P134: Seasampling: 3 ind/cm/trip; Market: min 50 individuals unsorted catch / trip
A135: SWE | B135: SWE | C135: 2018 | D135: Glyptocephalus cynoglossus | E135: North Sea and Eastern Arctic | F135: ICES | G135: IIIa | H135: Length | I135: Market + Seasampling | J135: 1090 | M135: 3100 | N135: 2.844036697 | O135: 75 | P135: Seasampling: 3 ind/cm/trip; Market: min 50 individuals unsorted catch / trip
A136: SWE | B136: SWE | C136: 2018 | D136: Glyptocephalus cynoglossus | E136: North Sea and Eastern Arctic | F136: ICES | G136: IIIa | H136: Sex | I136: Market + Seasampling | J136: 645 | M136: 748 | N136: 1.159689922 | O136: 75 | P136: Seasampling: 3 ind/cm/trip; Market: min 50 individuals unsorted catch / trip
A137: SWE | B137: SWE | C137: 2018 | D137: Glyptocephalus cynoglossus | E137: North Sea and Eastern Arctic | F137: ICES | G137: IIIa | H137: Maturity | I137: Market + Seasampling | J137: 645 | M137: 748 | N137: 1.159689922 | O137: 75 | P137: Seasampling: 3 ind/cm/trip; Market: min 50 individuals unsorted catch / trip
A138: SWE | B138: SWE | C138: 2018 | D138: Glyptocephalus cynoglossus | E138: North Sea and Eastern Arctic | F138: ICES | G138: IIIa | H138: Age | I138: Survey | J138: 305 | M138: 85 | N138: 0.2786885246 | O138: 91 | P138: total catch | Q138: Undersampled, see general text
A139: SWE | B139: SWE | C139: 2018 | D139: Glyptocephalus cynoglossus | E139: North Sea and Eastern Arctic | F139: ICES | G139: IIIa | H139: Weight | I139: Survey | J139: 305 | M139: 86 | N139: 0.2819672131 | O139: 91 | P139: total catch | Q139: Undersampled, see general text
A140: SWE | B140: SWE | C140: 2018 | D140: Glyptocephalus cynoglossus | E140: North Sea and Eastern Arctic | F140: ICES | G140: IIIa | H140: Length | I140: Survey | J140: 305 | M140: 92 | N140: 0.3016393443 | O140: 91 | P140: total catch | Q140: Undersampled, see general text
A141: SWE | B141: SWE | C141: 2018 | D141: Glyptocephalus cynoglossus | E141: North Sea and Eastern Arctic | F141: ICES | G141: IIIa | H141: Sex | I141: Survey | J141: 290 | M141: 77 | N141: 0.2655172414 | O141: 91 | P141: total catch | Q141: Undersampled, see general text
A142: SWE | B142: SWE | C142: 2018 | D142: Glyptocephalus cynoglossus | E142: North Sea and Eastern Arctic | F142: ICES | G142: IIIa | H142: Maturity | I142: Survey | J142: 290 | M142: 77 | N142: 0.2655172414 | O142: 91 | P142: total catch | Q142: Undersampled, see general text
A143: SWE | B143: SWE | C143: 2018 | D143: Melanogrammus aeglefinus | E143: North Sea and Eastern Arctic | F143: ICES | G143: IV, IIIa | H143: Age | I143: Survey | J143: 485 | M143: 237 | N143: 0.4886597938 | O143: 91 | P143: 1 ind/cm/haul | Q143: Undersampled, see general text
A144: SWE | B144: SWE | C144: 2018 | D144: Melanogrammus aeglefinus | E144: North Sea and Eastern Arctic | F144: ICES | G144: IV, IIIa | H144: Weight | I144: Survey | J144: 485 | M144: 237 | N144: 0.4886597938 | O144: 91 | P144: 1 ind/cm/haul | Q144: Undersampled, see general text
A145: SWE | B145: SWE | C145: 2018 | D145: Melanogrammus aeglefinus | E145: North Sea and Eastern Arctic | F145: ICES | G145: IV, IIIa | H145: Length | I145: Survey | J145: 1965 | M145: 561 | N145: 0.2854961832 | O145: 91 | P145: subsample or total catch/haul | Q145: Undersampled, see general text
A146: SWE | B146: SWE | C146: 2018 | D146: Melanogrammus aeglefinus | E146: North Sea and Eastern Arctic | F146: ICES | G146: IV, IIIa | H146: Sex | I146: Survey | J146: 415 | M146: 188 | N146: 0.4530120482 | O146: 91 | P146: 1 ind/cm/haul | Q146: Undersampled, see general text
A147: SWE | B147: SWE | C147: 2018 | D147: Melanogrammus aeglefinus | E147: North Sea and Eastern Arctic | F147: ICES | G147: IV, IIIa | H147: Maturity | I147: Survey | J147: 415 | M147: 188 | N147: 0.4530120482 | O147: 91 | P147: 1 ind/cm/haul | Q147: Undersampled, see general text
A148: SWE | B148: SWE | C148: 2018 | D148: Nephrops norvegicus | E148: North Sea and Eastern Arctic | F148: ICES | G148: Functional unit 3 | H148: Weight | I148: Sea sampling | J148: NA | L148: standard weight-length key is used in both Sweden Denmark and Norway. Weights are not taken during sea sampling. | M148: NA | O148: NA
A149: SWE | B149: SWE | C149: 2018 | D149: Nephrops norvegicus | E149: North Sea and Eastern Arctic | F149: ICES | G149: Functional unit 3 | H149: Length | I149: Sea sampling | J149: 8855 | M149: 9615 | N149: 1.085827216 | O149: 36 | P149: Pots; 3 trips/quarter sampled. Trawl with grid; 3 trips/quarter sampled. Trawls without grid;catch-dependent, if there is a landing of Nephrops, then there is a sample.
A150: SWE | B150: SWE | C150: 2018 | D150: Nephrops norvegicus | E150: North Sea and Eastern Arctic | F150: ICES | G150: Functional unit 3 | H150: Sex | I150: Sea sampling | J150: 8855 | M150: 9615 | N150: 1.085827216 | O150: 36 | P150: Pots; 3 trips/quarter sampled. Trawl with grid; 3 trips/quarter sampled. Trawls without grid;catch-dependent, if there is a landing of Nephrops, then there is a sample.
A151: SWE | B151: SWE | C151: 2018 | D151: Nephrops norvegicus | E151: North Sea and Eastern Arctic | F151: ICES | G151: Functional unit 3 | H151: Maturity | I151: Sea sampling | J151: 8855 | M151: 9615 | N151: 1.085827216 | O151: 36 | P151: Pots; 3 trips/quarter sampled. Trawl with grid; 3 trips/quarter sampled. Trawls without grid;catch-dependent, if there is a landing of Nephrops, then there is a sample.
A152: SWE | B152: SWE | C152: 2018 | D152: Nephrops norvegicus | E152: North Sea and Eastern Arctic | F152: ICES | G152: Functional unit 4 | H152: Weight | I152: Sea sampling | J152: NA | L152: standard weight-length key is used in both Sweden Denmark and Norway. Weights are not taken during sea sampling. | M152: NA | O152: NA
A153: SWE | B153: SWE | C153: 2018 | D153: Nephrops norvegicus | E153: North Sea and Eastern Arctic | F153: ICES | G153: Functional unit 4 | H153: Length | I153: Sea sampling | J153: 4925 | M153: 8696 | N153: =M153/J153 -> 1.765685279 | O153: 23 | P153: Trawl with grid; 3 trips/quarter sampled. Trawls without grid; catch-dependent, samples taken if there is a landing of Nephrops
A154: SWE | B154: SWE | C154: 2018 | D154: Nephrops norvegicus | E154: North Sea and Eastern Arctic | F154: ICES | G154: Functional unit 4 | H154: Sex | I154: Sea sampling | J154: 4925 | M154: 8696 | N154: 1.765685279 | O154: 23 | P154: Trawl with grid; 3 trips/quarter sampled. Trawls without grid; catch-dependent, samples taken if there is a landing of Nephrops
A155: SWE | B155: SWE | C155: 2018 | D155: Nephrops norvegicus | E155: North Sea and Eastern Arctic | F155: ICES | G155: Functional unit 4 | H155: Maturity | I155: Sea sampling | J155: 4925 | M155: 8696 | N155: 1.765685279 | O155: 23 | P155: Trawl with grid; 3 trips/quarter sampled. Trawls without grid; catch-dependent, samples taken if there is a landing of Nephrops
A156: SWE | B156: SWE | C156: 2018 | D156: Pandalus borealis | E156: North Sea and Eastern Arctic | F156: ICES | G156: IIIa, IVa east | H156: Weight | I156: Sea sampling | J156: 3840 | M156: 3864 | N156: 1.00625 | O156: 21 | P156: 1 samp/trip á 6 trips per quarter (3 trips observer, 3 trips selfsample)
A157: SWE | B157: SWE | C157: 2018 | D157: Pandalus borealis | E157: North Sea and Eastern Arctic | F157: ICES | G157: IIIa, IVa east | H157: Length | I157: Sea sampling | J157: 13150 | M157: 20898 | N157: 1.589201521 | O157: 21 | P157: 1 samp/trip á 6 trips per quarter (3 trips observer, 3 trips selfsample)
A158: SWE | B158: SWE | C158: 2018 | D158: Pandalus borealis | E158: North Sea and Eastern Arctic | F158: ICES | G158: IIIa, IVa east | H158: Sex | I158: Sea sampling | J158: 13150 | M158: 12911 | N158: 0.9818250951 | O158: 21 | P158: 1 samp/trip á 6 trips per quarter (3 trips observer, 3 trips selfsample)
A159: SWE | B159: SWE | C159: 2018 | D159: Pandalus borealis | E159: North Sea and Eastern Arctic | F159: ICES | G159: IIIa, IVa east | H159: Maturity | I159: Sea sampling | J159: 13150 | M159: 12911 | N159: 0.9818250951 | O159: 21 | P159: 1 samp/trip á 6 trips per quarter (3 trips observer, 3 trips selfsample)
A160: SWE | B160: SWE | C160: 2018 | D160: Pleuronectes platessa | E160: North Sea and Eastern Arctic | F160: ICES | G160: IIIa | H160: Age | I160: Survey | J160: 1525 | M160: 855 | N160: 0.5606557377 | O160: 91 | P160: 1 ind/cm/haul | Q160: Undersampled, see general text
A161: SWE | B161: SWE | C161: 2018 | D161: Pleuronectes platessa | E161: North Sea and Eastern Arctic | F161: ICES | G161: IIIa | H161: Weight | I161: Survey | J161: 1525 | M161: 877 | N161: 0.5750819672 | O161: 91 | P161: 1 ind/cm/haul | Q161: Undersampled, see general text
A162: SWE | B162: SWE | C162: 2018 | D162: Pleuronectes platessa | E162: North Sea and Eastern Arctic | F162: ICES | G162: IIIa | H162: Length | I162: Survey | J162: 5230 | M162: 2426 | N162: 0.4638623327 | O162: 91 | P162: subsample or total catch/haul | Q162: Undersampled, see general text
A163: SWE | B163: SWE | C163: 2018 | D163: Pleuronectes platessa | E163: North Sea and Eastern Arctic | F163: ICES | G163: IIIa | H163: Sex | I163: Survey | J163: 1525 | M163: 867 | N163: 0.5685245902 | O163: 91 | P163: 1 ind/cm/haul | Q163: Undersampled, see general text
A164: SWE | B164: SWE | C164: 2018 | D164: Pleuronectes platessa | E164: North Sea and Eastern Arctic | F164: ICES | G164: IIIa | H164: Maturity | I164: Survey | J164: 1525 | M164: 867 | N164: 0.5685245902 | O164: 91 | P164: 1 ind/cm/haul | Q164: Undersampled, see general text
A165: SWE | B165: SWE | C165: 2018 | D165: Pleuronectes platessa | E165: North Sea and Eastern Arctic | F165: ICES | G165: IIIa | H165: Age | I165: Sea sampling | J165: 1120 | M165: 1377 | N165: 1.229464286 | O165: 63 | P165: 3st/cm/trip
A166: SWE | B166: SWE | C166: 2018 | D166: Pleuronectes platessa | E166: North Sea and Eastern Arctic | F166: ICES | G166: IIIa | H166: Weight | I166: Sea sampling | J166: 1120 | M166: 1393 | N166: 1.24375 | O166: 63 | P166: 3st/cm/trip
A167: SWE | B167: SWE | C167: 2018 | D167: Pleuronectes platessa | E167: North Sea and Eastern Arctic | F167: ICES | G167: IIIa | H167: Length | I167: Sea sampling | J167: 1120 | M167: 5721 | N167: 5.108035714 | O167: 63 | P167: total amount in subsample
A168: SWE | B168: SWE | C168: 2018 | D168: Sprattus sprattus | E168: North Sea and Eastern Arctic | F168: ICES | G168: IIIa | H168: Age | I168: Survey | J168: 1680 | M168: 2951 | N168: 1.756547619 | O168: 91 | P168: 5 ind/halfcm/haul | Q168: Oversampled, see general text, no cost implications
A169: SWE | B169: SWE | C169: 2018 | D169: Sprattus sprattus | E169: North Sea and Eastern Arctic | F169: ICES | G169: IIIa | H169: Weight | I169: Survey | J169: 1680 | M169: 2960 | N169: 1.761904762 | O169: 91 | P169: 5 ind/halfcm/haul | Q169: Oversampled, see general text, no cost implications
A170: SWE | B170: SWE | C170: 2018 | D170: Sprattus sprattus | E170: North Sea and Eastern Arctic | F170: ICES | G170: IIIa | H170: Length | I170: Survey | J170: 5370 | M170: 8685 | N170: 1.617318436 | O170: 91 | P170: subsample or total catch/haul | Q170: Oversampled, see general text, no cost implications
A171: SWE | B171: SWE | C171: 2018 | D171: Sprattus sprattus | E171: North Sea and Eastern Arctic | F171: ICES | G171: IIIa | H171: Sex | I171: Survey | J171: 1600 | M171: 2927 | N171: 1.829375 | O171: 91 | P171: 5 ind/halfcm/haul | Q171: Oversampled, see general text, no cost implications
A172: SWE | B172: SWE | C172: 2018 | D172: Sprattus sprattus | E172: North Sea and Eastern Arctic | F172: ICES | G172: IIIa | H172: Maturity | I172: Survey | J172: 1680 | M172: 2960 | N172: 1.761904762 | O172: 91 | P172: 5 ind/halfcm/haul | Q172: Oversampled, see general text, no cost implications
A173: SWE | B173: SWE | C173: 2018 | D173: Sprattus sprattus | E173: North Sea and Eastern Arctic | F173: ICES | G173: IIIa | H173: Age | I173: Market | J173: 1140 | M173: 786 | N173: 0.6894736842 | O173: 13 | P173: max 150 ind/box : 4 box/SD/quarter | Q173: Undersampled due to to no/ low landings in quater 2 and 3
A174: SWE | B174: SWE | C174: 2018 | D174: Sprattus sprattus | E174: North Sea and Eastern Arctic | F174: ICES | G174: IIIa | H174: Weight | I174: Market | J174: 1140 | M174: 947 | N174: 0.8307017544 | O174: 13 | P174: max 150 ind/box : 4 box/SD/quarter | Q174: Undersampled due to to no/ low landings in quater 2 and 3
A175: SWE | B175: SWE | C175: 2018 | D175: Sprattus sprattus | E175: North Sea and Eastern Arctic | F175: ICES | G175: IIIa | H175: Length | I175: Market | J175: 1140 | M175: 947 | N175: 0.8307017544 | O175: 13 | P175: max 150 ind/box : 4 box/SD/quarter | Q175: Undersampled due to to no/ low landings in quater 2 and 3
A176: SWE | B176: SWE | C176: 2018 | D176: Sprattus sprattus | E176: North Sea and Eastern Arctic | F176: ICES | G176: IIIa | H176: Sex | I176: Market | J176: 1140 | M176: 947 | N176: 0.8307017544 | O176: 13 | P176: max 150 ind/box : 4 box/SD/quarter | Q176: Undersampled due to to no/ low landings in quater 2 and 3
A177: SWE | B177: SWE | C177: 2018 | D177: Sprattus sprattus | E177: North Sea and Eastern Arctic | F177: ICES | G177: IIIa | H177: Maturity | I177: Market | J177: 1140 | M177: 947 | N177: 0.8307017544 | O177: 13 | P177: max 150 ind/box : 4 box/SD/quarter | Q177: Undersampled due to to no/ low landings in quater 2 and 3
A178: SWE | B178: SWE | C178: 2018 | D178: Trisopterus esmarki | E178: North Sea and Eastern Arctic | F178: ICES | G178: IIIa | H178: Age | I178: Survey | J178: 245 | M178: 366 | N178: 1.493877551 | O178: 91 | P178: 1 ind/cm/haul
A179: SWE | B179: SWE | C179: 2018 | D179: Trisopterus esmarki | E179: North Sea and Eastern Arctic | F179: ICES | G179: IIIa | H179: Weight | I179: Survey | J179: 245 | M179: 366 | N179: 1.493877551 | O179: 91 | P179: 1 ind/cm/haul
A180: SWE | B180: SWE | C180: 2018 | D180: Trisopterus esmarki | E180: North Sea and Eastern Arctic | F180: ICES | G180: IIIa | H180: Length | I180: Survey | J180: 2370 | M180: 3254 | N180: 1.372995781 | O180: 91 | P180: subsample or total catch/haul
A181: SWE | B181: SWE | C181: 2018 | D181: Trisopterus esmarki | E181: North Sea and Eastern Arctic | F181: ICES | G181: IIIa | H181: Sex | I181: Survey | J181: 170 | M181: 297 | N181: 1.747058824 | O181: 91 | P181: 1 ind/cm/haul | Q181: Oversampled, see general text, no cost implications
A182: SWE | B182: SWE | C182: 2018 | D182: Trisopterus esmarki | E182: North Sea and Eastern Arctic | F182: ICES | G182: IIIa | H182: Maturity | I182: Survey | J182: 170 | M182: 297 | N182: 1.747058824 | O182: 91 | P182: 1 ind/cm/haul | Q182: Oversampled, see general text, no cost implications
A183: SWE | B183: SWE | C183: 2018 | D183: Pollachius virens | E183: North Sea and Eastern Arctic | F183: ICES | G183: IIIa | H183: Age | I183: Survey | J183: 190 | M183: 191 | N183: 1.005263158 | O183: 91 | P183: 1 ind/cm/haul
A184: SWE | B184: SWE | C184: 2018 | D184: Pollachius virens | E184: North Sea and Eastern Arctic | F184: ICES | G184: IIIa | H184: Weight | I184: Survey | J184: 190 | M184: 191 | N184: 1.005263158 | O184: 91 | P184: 1 ind/cm/haul
A185: SWE | B185: SWE | C185: 2018 | D185: Pollachius virens | E185: North Sea and Eastern Arctic | F185: ICES | G185: IIIa | H185: Length | I185: Survey | J185: 360 | M185: 313 | N185: 0.8694444444 | O185: 91 | P185: subsample or total catch/haul | Q185: Undersampled, see general text
A186: SWE | B186: SWE | C186: 2018 | D186: Pollachius virens | E186: North Sea and Eastern Arctic | F186: ICES | G186: IIIa | H186: Sex | I186: Survey | J186: 190 | M186: 102 | N186: 0.5368421053 | O186: 91 | P186: 1 ind/cm/haul | Q186: Undersampled, see general text
A187: SWE | B187: SWE | C187: 2018 | D187: Pollachius virens | E187: North Sea and Eastern Arctic | F187: ICES | G187: IIIa | H187: Maturity | I187: Survey | J187: 190 | M187: 102 | N187: 0.5368421053 | O187: 91 | P187: 1 ind/cm/haul | Q187: Undersampled, see general text
A188: SWE | B188: SWE | C188: 2018 | D188: Merlangius merlangus | E188: North Sea and Eastern Arctic | F188: ICES | G188: IIIa | H188: Age | I188: Survey | J188: 840 | M188: 1474 | N188: 1.754761905 | O188: 91 | P188: 1 ind/cm/haul | Q188: Oversampled, see general text, no cost implications
A189: SWE | B189: SWE | C189: 2018 | D189: Merlangius merlangus | E189: North Sea and Eastern Arctic | F189: ICES | G189: IIIa | H189: Weight | I189: Survey | J189: 850 | M189: 1474 | N189: 1.734117647 | O189: 91 | P189: 1 ind/cm/haul | Q189: Oversampled, see general text, no cost implications
A190: SWE | B190: SWE | C190: 2018 | D190: Merlangius merlangus | E190: North Sea and Eastern Arctic | F190: ICES | G190: IIIa | H190: Length | I190: Survey | J190: 850 | M190: 10390 | N190: 12.22352941 | O190: 91 | P190: subsample or total catch/haul | Q190: Oversampled, see general text, no cost implications
A191: SWE | B191: SWE | C191: 2018 | D191: Merlangius merlangus | E191: North Sea and Eastern Arctic | F191: ICES | G191: IIIa | H191: Sex | I191: Survey | J191: 690 | M191: 1174 | N191: 1.701449275 | O191: 91 | P191: 1 ind/cm/haul | Q191: Oversampled, see general text, no cost implications
A192: SWE | B192: SWE | C192: 2018 | D192: Merlangius merlangus | E192: North Sea and Eastern Arctic | F192: ICES | G192: IIIa | H192: Maturity | I192: Survey | J192: 690 | M192: 1176 | N192: 1.704347826 | O192: 91 | P192: 1 ind/cm/haul | Q192: Oversampled, see general text, no cost implications

Sheet Table1D Recreational Fisher
A1: Table 1D: Recreational fisheries
X2: WP years | Y2: 2018-2019
X3: AR year | Y3: 2018
A4: MS | B4: Sampling year | C4: Area/EMU | D4: RFMO/RFO/IO | E4: Species | F4: Applicable (Species present in the MS?) | G4: Reasons for not sampling | H4: Threshold (Y/N) | I4: Annual estimate of catch? (Y/N) | J4: Annual percentage of released catch? (Y/N) | K4: Collection of catch composition data? (Y/N) | L4: Type of Survey | M4: Comments | N4: Unique Survey ID or Name of sampling scheme (Linked to Table 5A) | O4: Is the survey part of a pilot study or part of an established programme? | P4: Frequency | Q4: Is the sampling design documented? (Linked to Table 5A) | R4: Are non-response and refusal recorded? (Linked to Table 5A) | S4: Are the editing and imputation methods documented? (Linked to Table 5A) | T4: Estimation of the yearly weight and numbers of catch (Y/N) | U4: Estimation of the yearly percentage release (Y/N) | V4: Collection of catch composition data (Y/N) | W4: Evaluated by external experts/bodies (Y/N) | X4: Conform with accepted standards Y/N | Y4: AR Comments
A5: SWE | B5: 2018 | C5: Baltic Sea | D5: ICES | E5: Salmo salar | F5: Y | H5: N | I5: Y | J5: Y | K5: Y | L5: Total river catches estimated (enquiries, interviews, catch reports from fishing right owners). In addition, a yearly postal questionnaire sent to approximately 10,000 randomly selected permanent residents in Sweden, age 16-80 years. Estimates of trolling catches every second year (site studies combined with effort estimates). Recreational fisheries with trap nets estimated every 4th year. | M5: Recreational fisheries is defined as all fishing activities carried out by those without a commercial fishing license. | N5: Recreational river catches survey & recreational fisheries- postal questionnaire | O5: Routine | P5: annual | Q5: Partly for River catches, Y for postal questionair | R5: N for River catches, Y for postal questionair | S5: N for River catches, Y for postal questionair | T5: Y (for River catch survey numbers and weight, for postal questionaire weight) | U5: Y | V5: Y for postal questionaire, partly for river catches survey | W5: Y | X5: Y | Y5: WGBAST, General comment regarding postal questionnaire: in 2018 the questionnaire increased to approx. 19 000 send-outs
A6: SWE | B6: 2018 | C6: Baltic Sea | D6: ICES | E6: Salmo trutta | F6: Y | H6: Y | I6: Y | J6: Y | K6: Y | L6: Total river catches estimated (enquieries, interviews, catch reports from fishing right owners). In addition, a yearly postal questionnaire sent to approximately 10,000 randomly selected permanent residents in Sweden, age 16-80 years. | M6: Recreational fisheries is defined as all fishing activities carried out by those without a commercial fishing license. | N6: recreational fisheries- postal questionnaire | O6: Routine | P6: annual | Q6: Y | R6: Y | S6: Y | T6: Y (weight) | U6: Y | V6: N | W6: Y | X6: Y | Y6: WGTRUTTA, General comment regarding postal questionnaire: in 2018 the questionnaire increased to approx. 19 000 send-out
A7: SWE | B7: 2018 | C7: Baltic Sea | D7: ICES, Helcom | E7: Anguilla anguilla | F7: Y | G7: Recreational catches is not allowed due to Swedish legislation (FIFS 2004:36) | H7: Y | I7: N | J7: N | K7: N | L7: NA | N7: NA | O7: NA | P7: NA | Q7: NA | R7: NA | S7: NA | T7: NA | U7: NA | V7: NA | W7: NA | X7: NA | Y7: No pilot study was implemented as recreational catches is not allowed due to Swedish legislation (FIFS 2004:36).
A8: SWE | B8: 2018 | C8: Baltic Sea | D8: ICES | E8: Gadus morhua | F8: Y | H8: N | I8: Y | J8: N | K8: Y | L8: A) A yerly postal questionnaire sent to 10,0000 randomly selected permanent residents in Sweden, age 16-80 year. The questionnaire will be combined with a pilotstudy as an on site study for 2017 -2018 in ICES area 24 and 23 to get more detailed information on catches and catch composition data B) An on site study for 2017 -2018 in ICES area 23 and 24 render more detailed information on effort, catches and catch composition. | M8: See details about Pilot Study1 in text box | N8: A) recreational fisheries- postal questionnaire B) SLU-MRFS | O8: A) Routine B) Pilot study | P8: A)Annual B) Quarterly | Q8: A) Y B) Y, on internal server | R8: A) Y B) Y | S8: A) Y B) Y, on internal server | T8: A) Y (weight) B) Y | U8: A) Y B) Y | V8: A) N B) Y | W8: A) Y B) Y (WGRFS/WGBFAS) | X8: A) Y B) Y | Y8: A) General comment regarding postal questionnaire: in 2018 the questionnaire increased to approx. 19 000 send-out B) Intercepting methods concerning a rare occurance as RecFish need substantial sampling or supporting information.
A9: SWE | B9: 2018 | C9: North Sea and Eastern Arctic | D9: NASCO, ICES, Ospar, Helcom | E9: Salmo salar | F9: Y | H9: N | I9: Y | J9: Y | K9: Y | L9: Total river catches estimated (enquieries, interviews, catch reports from fishing right owners). In addition, a yearly postal questionnaire sent to approximately 10,000 randomly selected permanent residents in Sweden, age 16-80 years. | M9: Recreational fisheries is defined as all fishing activities carried out by those without a commercial fishing license. | N9: recreational fisheries- postal questionnaire | O9: Routine | P9: annual | Q9: Y | R9: Y | S9: Y | T9: Y (weight) | U9: Y | V9: N | W9: Y | X9: Y | Y9: WGNAS, General comment regarding postal questionnaire: in 2018 the questionnaire increased to approx. 19 000 send-out
A10: SWE | B10: 2018 | C10: North Sea and Eastern Arctic | D10: EIFAAC/ICES | E10: Anguilla anguilla | F10: Y | G10: Recreational catches is not allowed due to Swedish legislation (FIFS 2004:36) | H10: Y | I10: N | J10: N | K10: N | L10: NA | N10: NA | O10: NA | P10: NA | Q10: NA | R10: NA | S10: NA | T10: NA | U10: NA | V10: NA | W10: NA | X10: NA | Y10: See Reasons for not sampling in WP.
A11: SWE | B11: 2018 | C11: Freshwater Sweden (one single EMU only) | D11: EIFAAC/ICES | E11: Anguilla anguilla | F11: Y | G11: See details in Pilot Study 1 and text box 1D | H11: N | I11: Y | J11: Y | K11: Y | L11: NA | M11: See details in Pilot Study 1 and text box 1E | N11: NA | O11: NA | P11: NA | Q11: NA | R11: NA | S11: NA | T11: NA | U11: NA | V11: NA | W11: NA | X11: NA | Y11: No pilot study was implemented as recreational catches is not allowed due to Swedish legislation (FIFS 2004:36).
A12: SWE | B12: 2018 | C12: North Sea and Eastern Arctic | D12: ICES | E12: Gadus morhua | F12: Y | H12: N | I12: Y | J12: N | K12: N | L12: A postal questionnaire sent to approximately 10,000 randomly selected permanent residents in Sweden, age 16-80 year | M12: Recreational fisheries is defined as all fishing activities carried out by those without a commercial fishing license. | N12: recreational fisheries- postal questionnaire | O12: Routine | P12: annual | Q12: Y | R12: Y | S12: Y | T12: N (only weight) | U12: Y | V12: N | W12: N | X12: Y | Y12: For Skagerrak and Kattegat, General comment regarding postal questionnaire: in 2018 the questionnaire increased to approx. 19 000 send-out
A13: SWE | B13: 2018 | C13: North Sea and Eastern Arctic | D13: ICES, Ospar, Helcom | E13: Pollachius pollachius | F13: Y | H13: Y | I13: Y | J13: N | K13: N | L13: A postal questionnaire sent to approximately 10,000 randomly selected permanent residents in Sweden, age 16-80 year | M13: Recreational fisheries is defined as all fishing activities carried out by those without a commercial fishing license. | N13: recreational fisheries- postal questionnaire | O13: Routine | P13: annual | Q13: Y | R13: Y | S13: Y | T13: N (only weight) | U13: Y | V13: N | W13: N | X13: Y | Y13: For Skagerrak and Kattegat, General comment regarding postal questionnaire: in 2018 the questionnaire increased to approx. 19 000 send-out
A14: SWE | B14: 2018 | C14: North Sea and Eastern Arctic | D14: ICES, Ospar, Helcom | E14: Dicentrarchus labrax | F14: Y | G14: Recreational catches is not consider to be a limiting factor for populations of labrax in Swedish waters, their occurence is mainly regulated by warm water outflows. | H14: Y | I14: N | J14: N | K14: N | L14: A postal questionnaire sent to approximately 10,000 randomly selected permanent residents in Sweden, age 16-80 years. | M14: Recreational fisheries is defined as all fishing activities carried out by those without a commercial fishing license. | N14: recreational fisheries- postal questionnaire | O14: Routine | P14: annual | Q14: Y | R14: Y | S14: Y | T14: N (only weight) | U14: Y | V14: N | W14: N | X14: Y | Y14: For Skagerrak and Kattegat,General comment regarding postal questionnaire: in 2018 the questionnaire increased to approx. 19 000 send-out
A15: SWE | B15: 2018 | C15: North Sea and Eastern Arctic | D15: ICES, Ospar, Helcom | E15: Elasmobranchii, Rajiformes | F15: Y | G15: Recreational catches is nearly none due to Swedish legislation (FIFS 2004:36). | H15: Y | I15: N | J15: N | K15: N | L15: A postal questionnaire sent to approximately 10,000 randomly selected permanent residents in Sweden, age 16-80 years. | M15: Recreational fisheries is defined as all fishing activities carried out by those without a commercial fishing license. | N15: recreational fisheries- postal questionnaire | O15: Routine | P15: annual | Q15: Y | R15: Y | S15: Y | T15: N (only weight) | U15: Y | V15: N | W15: N | X15: Y | Y15: For Skagerrak and Kattegat, General comment regarding postal questionnaire: in 2018 the questionnaire increased to approx. 19 000 send-out

Sheet Table1E Anadromous catadromous
A1: Table 1E: Anadromous and catadromous species data collection in fresh water
T2: WP years | U2: 2018-2019
T3: AR year | U3: 2018
A4: MS | B4: Sampling period | C4: Area | D4: RFMO/RFO/IO | E4: Species | F4: Applicable (Y/N) | G4: Reasons for not sampling | H4: Water Body | I4: Life stage | J4: Fishery / Independent data collection | K4: Method | L4: Unit | M4: Planned nos | N4: Frequency | O4: Comments | P4: Achieved numbers | Q4: % of achievement (100*P/M) | R4: Reasons for non-conformity | S4: Survey ID | T4: Agreed at RCG level? | U4: AR Comments
A6: SWE | B6: 2018 | C6: Baltic Sea | D6: ICES | E6: Salmo salar | F6: Y | H6: River Torneälv | I6: parr | J6: I | K6: electrofishing | L6: n. sites | M6: 25 | N6: annually | P6: 26 | Q6: =100*P6/M6 -> 104 | R6: See textbox 1E | S6: SWE-SAL-FRW-MEL-fishery-independant | T6: Y | U6: Got one site extra for free.
A7: SWE | B7: 2018 | C7: Baltic Sea | D7: ICES | E7: Salmo salar | F7: Y | H7: River Ume/Vindelälven | I7: parr | J7: I | K7: electrofishing | L7: n. sites | M7: 28 | N7: annually | P7: 27 | Q7: =100*P7/M7 -> 96.42857143 | R7: See textbox 1E | S7: SWE-SAL-FRW-MEL-fishery-independant | T7: Y | U7: WP was sent in before negotiations with consultants finished, hence discrepancies between planned numbers and achieved numbers.
A8: SWE | B8: 2018 | C8: Baltic Sea | D8: ICES | E8: Salmo salar | F8: Y | H8: River Ume/Vindelälven | I8: smolt | J8: I | K8: trap | L8: n. smolt traps | M8: 1 | N8: annually | P8: 1 | Q8: 100 | S8: SWE-SAL-FRW-FIX-fishery-independant | T8: Y
A9: SWE | B9: 2018 | C9: Baltic Sea | D9: ICES | E9: Salmo salar | F9: Y | H9: River Ume/Vindelälven | I9: adult | J9: I | K9: counter | L9: n. counter | M9: 1 | N9: annually | P9: 1 | Q9: 100 | S9: SWE-SAL-FRW-NK-fishery-independant | T9: Y
A10: SWE | B10: 2018 | C10: Baltic Sea | D10: ICES | E10: Salmo salar | F10: Y | H10: River Testeboån | I10: parr | J10: I | K10: electrofishing | L10: n. sites | M10: 11 | N10: annually | P10: 11 | Q10: 100 | S10: SWE-SAL-FRW-MEL-fishery-independant | T10: Y
A11: SWE | B11: 2018 | C11: Baltic Sea | D11: ICES | E11: Salmo salar | F11: Y | H11: River Testeboån | I11: adult | J11: I | K11: counter | L11: n. counter | M11: 1 | N11: annually | P11: 1 | Q11: 100 | S11: SWE-SAL-FRW-NK-fishery-independant | T11: Y
A12: SWE | B12: 2018 | C12: Baltic Sea | D12: ICES | E12: Salmo salar | F12: Y | H12: River Testeboån | I12: smolt | J12: I | K12: trap | L12: n. smolt traps | M12: 1 | N12: annually | P12: 1 | Q12: 100 | S12: SWE-SAL-FRW-FIX-fishery-independant | T12: Y
A13: SWE | B13: 2018 | C13: Baltic Sea | D13: ICES | E13: Salmo salar | F13: Y | H13: River Mörrumsån | I13: parr | J13: I | K13: electrofishing | L13: n. sites | M13: 23 | N13: annually | P13: 19 | Q13: 82.60869565 | R13: See textbox 1E | S13: SWE-SAL-FRW-MEL-fishery-independant | T13: Y | U13: WP was sent in before negotiations with consultants finished, hence discrepancies between planned numbers and achieved numbers.
A14: SWE | B14: 2018 | C14: Baltic Sea | D14: ICES | E14: Salmo salar | F14: Y | H14: River Mörrumsån | I14: smolt | J14: I | K14: trap | L14: n. smolt traps | M14: 1 | N14: annually | P14: 1 | Q14: 100 | S14: SWE-SAL-FRW-FIX-fishery-independant | T14: Y
A15: SWE | B15: 2018 | C15: Baltic Sea | D15: ICES | E15: Salmo salar | F15: Y | H15: River Mörrumsån | I15: adult | J15: I | K15: counter | L15: n. counter | M15: 1 | N15: annually | P15: 1 | Q15: 100 | S15: SWE-SAL-FRW-NK-fishery-independant | T15: Y
A16: SWE | B16: 2018 | C16: Baltic Sea | D16: ICES | E16: Salmo salar | F16: Y | H16: River Kalixälven | I16: parr | J16: I | K16: electrofishing | L16: n. sites | M16: 40 | N16: annually | P16: 30 | Q16: 75 | R16: See textbox 1E | S16: SWE-SAL-FRW-MEL-fishery-independant | T16: Y | U16: WP was sent in before negotiations with consultants finished, hence discrepancies between planned numbers and achieved numbers.
A17: SWE | B17: 2018 | C17: Baltic Sea | D17: ICES | E17: Salmo salar | F17: Y | H17: River Kalixälven | I17: adult | J17: I | K17: counter | L17: n. counter | M17: 1 | N17: annually | P17: 1 | Q17: 100 | S17: SWE-SAL-FRW-NK-fishery-independant | T17: Y
A18: SWE | B18: 2018 | C18: Baltic Sea | D18: ICES | E18: Salmo salar | F18: Y | H18: River Råneälven | I18: parr | J18: I | K18: electrofishing | L18: n. sites | M18: 19 | N18: annually | P18: 14 | Q18: 73.68421053 | R18: See textbox 1E | S18: SWE-SAL-FRW-MEL-fishery-independant | T18: Y | U18: WP was sent in before negotiations with consultants finished, hence discrepancies between planned numbers and achieved numbers.
A19: SWE | B19: 2018 | C19: Baltic Sea | D19: ICES | E19: Salmo salar | F19: Y | H19: River Åbyälven | I19: parr | J19: I | K19: electrofishing | L19: n. sites | M19: 20 | N19: annually | P19: 16 | Q19: 80 | R19: See textbox 1E | S19: SWE-SAL-FRW-MEL-fishery-independant | T19: Y | U19: WP was sent in before negotiations with consultants finished, hence discrepancies between planned numbers and achieved numbers.
A20: SWE | B20: 2018 | C20: Baltic Sea | D20: ICES | E20: Salmo salar | F20: Y | H20: River Byskeälven | I20: parr | J20: I | K20: electrofishing | L20: n. sites | M20: 15 | N20: annually | P20: 15 | Q20: 100 | S20: SWE-SAL-FRW-MEL-fishery-independant | T20: Y
A21: SWE | B21: 2018 | C21: Baltic Sea | D21: ICES | E21: Salmo salar | F21: Y | H21: River Kågeälven | I21: parr | J21: I | K21: electrofishing | L21: n. sites | M21: 12 | N21: annually | P21: 12 | Q21: 100 | S21: SWE-SAL-FRW-MEL-fishery-independant | T21: Y
A22: SWE | B22: 2018 | C22: Baltic Sea | D22: ICES | E22: Salmo salar | F22: Y | H22: River Rickleån | I22: parr | J22: I | K22: electrofishing | L22: n. sites | M22: 15 | N22: annually | P22: 12 | Q22: 80 | R22: See textbox 1E | S22: SWE-SAL-FRW-MEL-fishery-independant | T22: Y | U22: WP was sent in before negotiations with consultants finished, hence discrepancies between planned numbers and achieved numbers.
A23: SWE | B23: 2018 | C23: Baltic Sea | D23: ICES | E23: Salmo salar | F23: Y | H23: River Rickleån | I23: smolt | J23: I | K23: trap | L23: n. smolt traps | M23: 1 | N23: annually | P23: 1 | Q23: 100 | S23: SWE-SAL-FRW-FIX-fishery-independant | T23: Y
A24: SWE | B24: 2018 | C24: Baltic Sea | D24: ICES | E24: Salmo salar | F24: Y | H24: River Sävarån | I24: parr | J24: I | K24: electrofishing | L24: n. sites | M24: 15 | N24: annually | P24: 14 | Q24: 93.33333333 | R24: See textbox 1E | S24: SWE-SAL-FRW-MEL-fishery-independant | T24: Y | U24: WP was sent in before negotiations with consultants finished, hence discrepancies between planned numbers and achieved numbers.
A25: SWE | B25: 2018 | C25: Baltic Sea | D25: ICES | E25: Salmo salar | F25: Y | H25: River Öreälven | I25: parr | J25: I | K25: electrofishing | L25: n. sites | M25: 16 | N25: annually | P25: 16 | Q25: 100 | S25: SWE-SAL-FRW-MEL-fishery-independent | T25: Y
A26: SWE | B26: 2018 | C26: Baltic Sea | D26: ICES | E26: Salmo salar | F26: Y | H26: River Lögdeälven | I26: smolt | J26: I | K26: trap | L26: n. smolt traps | M26: 1 | N26: annually | P26: 0 | Q26: 0 | R26: See textbox 1E | S26: SWE-SAL-FRW-FIX-fishery-independant | T26: Y | U26: Trap was moved from Lögdeälven to Åbyälven.
A27: SWE | B27: 2018 | C27: Baltic Sea | D27: ICES | E27: Salmo salar | F27: Y | H27: River Lögdeälven | I27: parr | J27: I | K27: electrofishing | L27: n. sites | M27: 14 | N27: annually | P27: 13 | Q27: 92.85714286 | R27: See textbox 1E | S27: SWE-SAL-FRW-MEL-fishery-independant | T27: Y | U27: WP was sent in before negotiations with consultants finished, hence discrepancies between planned numbers and achieved numbers.
A28: SWE | B28: 2018 | C28: Baltic Sea | D28: ICES | E28: Salmo salar | F28: Y | H28: River Ljungan | I28: parr | J28: I | K28: electrofishing | L28: n. sites | M28: 10 | N28: annually | P28: 10 | Q28: 100 | S28: SWE-SAL-FRW-MEL-fishery-independant | T28: Y
A29: SWE | B29: 2018 | C29: Baltic Sea | D29: ICES | E29: Salmo salar | F29: Y | H29: River Emån | I29: parr | J29: I | K29: electrofishing | L29: n. sites | M29: 13 | N29: annually | P29: 10 | Q29: 76.92307692 | R29: See textbox 1E | S29: SWE-SAL-FRW-MEL-fishery-independant | T29: Y | U29: WP was sent in before negotiations with consultants finished, hence discrepancies between planned numbers and achieved numbers.
A30: SWE | B30: 2018 | C30: Baltic Sea | D30: ICES | E30: Salmo salar | F30: Y | H30: River Luleälven | I30: adult | J30: F | K30: fishery statistics | L30: n. trips | M30: NA | N30: annually | O30: As described in Table 4A and 4B. | P30: NA | S30: SWE-SAL-FRW-NK-commercial fishing | T30: N
A31: SWE | B31: 2018 | C31: Baltic Sea | D31: ICES | E31: Salmo salar | F31: Y | H31: River Ljusnan | I31: adult | J31: F | K31: fishery statistics | L31: n. trips | M31: NA | N31: annually | O31: As described in Table 4A and 4B. | P31: NA | S31: SWE-SAL-FRW-NK-commercial fishing | T31: N
A32: SWE | B32: 2018 | C32: Baltic Sea | D32: ICES | E32: Salmo salar | F32: Y | H32: River Indalsälven | I32: adult | J32: F | K32: fishery statistics | L32: n. trips | M32: NA | N32: annually | O32: As described in Table 4A and 4B. | P32: NA | S32: SWE-SAL-FRW-NK-commercial fishing | T32: N
A33: SWE | B33: 2018 | C33: North sea and Eastern Arctic | D33: ICES/NASCO | E33: Salmo salar | F33: Y | H33: River Högvadsån | I33: parr | J33: I | K33: electrofishing | L33: n. sites | M33: 16 | N33: annually | P33: 16 | Q33: 100 | S33: SWE-SAL-FRW-NK-fishery-independant | T33: Y
A34: SWE | B34: 2018 | C34: North sea and Eastern Arctic | D34: ICES/NASCO | E34: Salmo salar | F34: Y | H34: River Högvadsån | I34: smolt | J34: I | K34: trap | L34: n. smolt traps | M34: 1 | N34: annually | P34: 1 | Q34: 100 | S34: SWE-SAL-FRW-FIX-fishery-independant | T34: Y
A35: SWE | B35: 2018 | C35: North sea and Eastern Arctic | D35: ICES/NASCO | E35: Salmo salar | F35: Y | H35: River Högvadsån | I35: adult | J35: I | K35: counter | L35: n. counter | M35: 1 | N35: annually | P35: 1 | Q35: 100 | S35: SWE-SAL-FRW-NK-fishery-independant | T35: Y
A36: SWE | B36: 2018 | C36: North sea and Eastern Arctic | D36: ICES/NASCO | E36: Salmo salar | F36: Y | H36: 25 rivers in Skagerrak and Kattegatt River Basin District | I36: parr | J36: I | K36: electrofishing | L36: n. sites | M36: 30 | N36: annually | O36: Rivers are sampled according to a rotating schedule. | P36: 30 | Q36: 100 | S36: SWE-SAL-FRW-NK-fishery-independant | T36: Y
A37: SWE | B37: 2018 | C37: North sea and Eastern Arctic | D37: EIFAAC/ICES/GFCM | E37: Anguilla anguilla | F37: Y | H37: 20 rivers in Skagerrak and Kattegatt River Basin District | I37: yellow | J37: I | K37: electofishing | L37: n. sites | M37: 20 | N37: annually | O37: To estimate recruitment from a number of sites in several rivers. | T37: Y
A38: SWE | B38: 2018 | C38: North sea and Eastern Arctic | D38: EIFAAC/ICES/GFCM | E38: Anguilla anguilla | F38: Y | H38: River Göta älv | I38: yellow | J38: I | K38: traps | L38: n. traps | M38: 1 | N38: annually | O38: To estimate recruitment to 7 rivers | P38: 0 | Q38: =100*P38/M38 -> 0 | R38: The responsible county board was not able to replace a retired trap keeper in time | T38: Y
A39: SWE | B39: 2018 | C39: North sea and Eastern Arctic | D39: EIFAAC/ICES/GFCM | E39: Anguilla anguilla | F39: Y | H39: River Viskan | I39: yellow | J39: I | K39: traps | L39: n. traps | M39: 1 | N39: annually | O39: To estimate recruitment to 7 rivers | P39: 1 | Q39: 100 | T39: Y
A40: SWE | B40: 2018 | C40: North sea and Eastern Arctic | D40: EIFAAC/ICES/GFCM | E40: Anguilla anguilla | F40: Y | H40: River Lagan | I40: yellow | J40: I | K40: traps | L40: n. traps | M40: 1 | N40: annually | O40: To estimate recruitment to 7 rivers | P40: 1 | Q40: 100 | T40: Y
A41: SWE | B41: 2018 | C41: North sea and Eastern Arctic | D41: EIFAAC/ICES/GFCM | E41: Anguilla anguilla | F41: Y | H41: River Rönneå | I41: yellow | J41: I | K41: traps | L41: n. traps | M41: 1 | N41: annually | O41: To estimate recruitment to 7 rivers | P41: 1 | Q41: 100 | T41: Y
A42: SWE | B42: 2018 | C42: Baltic Sea | D42: EIFAAC/ICES/GFCM | E42: Anguilla anguilla | F42: Y | H42: River Helgeån | I42: yellow | J42: I | K42: traps | L42: n. traps | M42: 1 | N42: annually | O42: To estimate recruitment to 4 rivers | P42: 1 | Q42: 100 | T42: Y
A43: SWE | B43: 2018 | C43: Baltic Sea | D43: EIFAAC/ICES/GFCM | E43: Anguilla anguilla | F43: Y | H43: River Mörrumsån | I43: yellow | J43: I | K43: traps | L43: n. traps | M43: 1 | N43: annually | O43: To estimate recruitment to 4 rivers | P43: 1 | Q43: 100 | T43: Y
A44: SWE | B44: 2018 | C44: Baltic Sea | D44: EIFAAC/ICES/GFCM | E44: Anguilla anguilla | F44: Y | H44: River Motala Ström | I44: yellow | J44: I | K44: traps | L44: n. traps | M44: 1 | N44: annually | O44: To estimate recruitment to 4 rivers | P44: 1 | Q44: 100 | T44: Y
A45: SWE | B45: 2018 | C45: Baltic Sea | D45: EIFAAC/ICES/GFCM | E45: Anguilla anguilla | F45: Y | H45: River Emån | I45: yellow | J45: I | K45: traps | L45: n. traps | M45: 1 | N45: annually | O45: To estimate recruitment to 4 rivers | P45: 0 | Q45: 0 | R45: This trap is no longer in operation | T45: Y
A46: SWE | B46: 2018 | C46: Baltic Sea | D46: EIFAAC/ICES/GFCM | E46: Anguilla anguilla | F46: Y | H46: River Nyköpingsån | I46: yellow | J46: I | K46: traps | L46: n. traps | M46: 1 | N46: annually | O46: To estimate recruitment to 4 rivers | P46: 1 | Q46: 100 | T46: Y
A47: SWE | B47: 2018 | C47: Baltic Sea | D47: EIFAAC/ICES/GFCM | E47: Anguilla anguilla | F47: Y | H47: River Dalälven | I47: yellow | J47: I | K47: traps | L47: n. traps | M47: 1 | N47: annually | O47: To estimate recruitment to 4 rivers | P47: 1 | Q47: 100 | T47: Y
A48: SWE | B48: 2018 | C48: Baltic Sea | D48: EIFAAC/ICES/GFCM | E48: Anguilla anguilla | F48: Y | H48: River Ljusnan | I48: yellow | J48: I | K48: traps | L48: n. traps | M48: 1 | N48: annually | O48: To estimate recruitment to 4 rivers | P48: 1 | Q48: 100 | T48: Y
A49: SWE | B49: 2018 | C49: Baltic Sea | D49: EIFAAC/ICES/GFCM | E49: Anguilla anguilla | F49: Y | H49: Lake Mälaren | I49: yellow + silver | J49: I | K49: fyke netting | L49: n. sites | M49: 1 | N49: annually | O49: Monitoring of introduced populations | P49: 1 | Q49: 100 | T49: Y
A50: SWE | B50: 2018 | C50: Baltic Sea | D50: EIFAAC/ICES/GFCM | E50: Anguilla anguilla | F50: Y | H50: Lake Fardume träsk | I50: silver | J50: I | K50: fixed trap | L50: n. sites | M50: 1 | N50: annually | O50: Monitoring of introduced populations | P50: 1 | Q50: 100 | T50: Y
A51: SWE | B51: 2018 | C51: Baltic Sea | D51: EIFAAC/ICES/GFCM | E51: Anguilla anguilla | F51: Y | H51: River to the Baltic | I51: all | J51: F/I | K51: planning | L51: n. rivers | M51: 1 | N51: annually | O51: Planning of full life history study will be conducted in 2017 to be able to assess the methodologises needed for data collection on recruites, standing stock and migrating individuals. | P51: 1 | Q51: 100 | T51: Y
A52: SWE | B52: 2018 | C52: North sea and Eastern Arctic | D52: EIFAAC/ICES/GFCM | E52: Anguilla anguilla | F52: Y | H52: River to Skagerrak | I52: all | J52: F/I | K52: planning | L52: n. rivers | M52: 1 | N52: annually | O52: Planning of full life history study will be conducted in 2017 to be able to assess the methodologises needed for data collection on recruites, standing stock and migrating individuals. | P52: 0 | Q52: 0 | R52: We will start with one river to get experience | T52: Y
A53: SWE | B53: 2018 | C53: Baltic Sea | D53: EIFAAC/ICES/GFCM | E53: Anguilla anguilla | F53: Y | H53: Baltic | I53: silver | J53: F/I | K53: Mark-recapure | L53: n. marked eels | M53: 400 | N53: annually | O53: data collection of stocked amounts and sites. Sites may be changed due to unforessen reasons | P53: 467 | Q53: 116.75 | R53: Planned for 600 marked eels in total, but due to drought and heat too few eels were available for marking. | T53: Y
A54: SWE | B54: 2018 | C54: Baltic Sea | D54: EIFAAC/ICES/GFCM | E54: Anguilla anguilla | F54: Y | H54: Lake Mälaren | I54: silver | J54: F/I | K54: Mark-recapure | L54: n. marked eels | M54: 200 | N54: annually | O54: Sites may be changed due to unforessen reasons | P54: 0 | Q54: 0 | R54: No tagging in freshwater in 2018 | T54: Y
A55: SWE | B55: 2018 | C55: Baltic Sea | D55: EIFAAC/ICES/GFCM | E55: Anguilla anguilla | F55: Y | H55: 3 lakes | I55: silver | J55: F | K55: sampling | L55: n. eels | M55: 375 | N55: annually | O55: sampling from the commercial fishery. Also listed in 1b and 1c | P55: 324 | Q55: 86.4 | R55: Problems with a freezer at one of the fishers. | T55: Y
A56: SWE | B56: 2018 | C56: North sea and Eastern Arctic | D56: EIFAAC/ICES/GFCM | E56: Anguilla anguilla | F56: Y | H56: Coastal sites | I56: yellow | J56: I | K56: statistics | L56: n. eels | M56: 2500000 | N56: annually | O56: Updating the database of stocked recruits i.e. data collection of stocked amounts and sites | P56: 1524268 | Q56: 60.97072 | R56: Actual numbers depends on the annual price vs national fundings | T56: Y
A57: SWE | B57: 2018 | C57: Baltic Sea | D57: EIFAAC/ICES/GFCM | E57: Anguilla anguilla | F57: Y | H57: Freshwater sites | I57: yellow | J57: I | K57: statistics | L57: n. eels | M57: 2500000 | N57: annually | O57: Updating the database of stocked recruits i.e. data collection of stocked amounts and sites | P57: 1584371 | Q57: 63.37484 | R57: Actual numbers depends on the annual price vs national fundings | T57: Y
A58: SWE | B58: 2018 | C58: Baltic Sea | D58: EIFAAC/ICES/GFCM | E58: Anguilla anguilla | F58: Y | H58: Coastal sites | I58: yellow | J58: I | K58: annual | L58: n. sites | M58: 1 | N58: annually | O58: A survey is run yearly in August in order to continue following the eel stock in this area. The commercial fishery was indirectly closed due to that the minimum landing size was increased, hence it is no longer possible to continue the commercial sampling. The survey set-up include catching a predefined number of yellow eels, all of which are length measured. Using length-stratification, a sub-sample from the total catch of yellow eel is then collected for biological (age) sampling. Silver eels caught are also measured for length, but not sampled for age. In the survey manual, the maximum effort (gear-days) to be aiming for is defined. No other species than eel are sampled. | P58: 1 | Q58: 100 | S58: No ID exist | T58: Y
A59: SWE | B59: 2018 | C59: North sea and Eastern Arctic | D59: EIFAAC/ICES/GFCM | E59: Anguilla anguilla | F59: Y | H59: Coastal sites | I59: yellow | J59: I | K59: annual | L59: n.sites | M59: 3 | N59: annually | O59: A survey is run yearly in August in order in order to continue following the eel stock in this area . The commercial fishery was indirectly closed due to that the minimum landing size was increased, hence it is no longer possible to continue the commercial sampling. The survey set-up include catching a predefined number of yellow eels, all of which are length measured. Using length-stratification, a sub-sample from the total catch of yellow eel is then collected for biological (age) sampling. Silver eels caught are also measured for length, but not sampled for age. In the survey manual, the maximum effort (gear-days) to be aiming for is defined. No other species than eel are sampled. | P59: 3 | Q59: 100 | S59: No ID exist | T59: Y

Sheet Table1F Incidental by catch
A1: Table 1F: Incidental by-catch of birds, mammals, reptiles and fish
V2: WP years | W2: 2018-2019
V3: AR year | W3: 2018
P4: Has there be occurrence of bycatch?
A5: MS | B5: Sampling period/year(s) | C5: Region | D5: RFMO/RFO/IO | E5: Sub-area / Fishing ground | F5: Scheme | G5: Stratum ID code / Name of the survey | H5: Group of vulnerable species | I5: Expected occurence of recordings | J5: Comments | K5: Total number of PSU in the sampling year | L5: Achieved number of PSU in the sampling year | M5: Number of PSU sampled in which observers have been instructed to look for bycatch | N5: Does your sampling protocol allow for the calculation of observation effort “at haul level” (Y/N) | O5: Is there any mitigation device? (Y/N) | P5: Fish (Y/N/NA) | Q5: Mammals (Y/N/NA) | R5: Birds (Y/N/NA) | S5: Reptiles (Y/N/NA) | T5: Other (Y/N/NA) | U5: Are data stored in a national database? | V5: Are data stored in international database(s)? | W5: AR Comments
A7: SWE | B7: 2018-2019 | C7: North Sea and Eastern Arctic | D7: ICES | E7: IIIa | F7: Skagerrak/Kattegat at-sea | G7: SWE - SkaKat (at-sea) - Act - 20/21 - PanTrawlTun, SWE - SkaKat (at-sea) - Act - 20/21 - PanTrawlNoTun, SWE - SkaKat (at-sea) - Act - 20 - NepTrawlGrid, SWE - SkaKat (at-sea) - Act - 21 - NepTrawlGrid, SWE - SkaKat (at-sea) - Act - 20 - MixTrawl, SWE - SkaKat (at-sea) - Act - 21 - MixTrawl | H7: All encountered species except some invertebrates | I7: X | J7: It is expected that the bycatch of birds and mammals are very limited. Expected bycatch of different stocks of fish and crustaceans are dependent on species. Data on all species in 1D will be recorded. | K7: 290 | L7: 66 | M7: 54 | N7: Y | O7: Y | P7: Y | Q7: Y | R7: Y | S7: NA | T7: NA | U7: Y | V7: Y | W7: NOTE: Number of PSUs should be identical to numbers of PSUs in table 4A (see comment regarding PSUs in 4A). Sweden have 2 observers on each observed vessel, implying that one observer can observe the hauling operation. There might be a few hauling operations that are not oberved due to bad weather or the logistics on the vessel. It is in the protocols for the observers to monitor the entire work-up of the catch. The question on mitigation device is strange as by-catches also include fish-species. There are a lot of selective fishing gear in use (grids, panels) that have an impact of by-catches of fish. No by-catches of mammals and birds have been found in these fisheries 2018. All data is submitted to international databases when this is requested.
A8: SWE | B8: 2018-2019 | C8: Baltic Sea | D8: ICES | E8: SD 24-26 | F8: Baltic at-sea | G8: SWE - Balt (at-sea) - Act - 24/25 - DemTrawl | H8: All encountered species except some invertebrates | I8: X | J8: It is expected that the bycatch of birds and mammals are very limited. Expected bycatch of different stocks of fish and crustaceans are dependent on species. Data on all species in 1D will be recorded. | K8: 33 | L8: 12 | M8: 12 | N8: Y | O8: Y | P8: Y | Q8: Y | R8: Y | S8: NA | T8: NA | U8: Y | V8: Y | W8: NOTE: Number of PSUs should be identical to numbers of PSUs in table 4A (see comment regarding PSUs in 4A). Sweden have 2 observers on each observed vessel, implying that one observer can observe the hauling operation. There might be a few hauling operations that are not oberved due to bad weather or the logistics on the vessel. It is in the protocols for the observers to monitor the entire work-up of the catch. The question on mitigation device is strange as by-catches also include fish-species. There are a lot of selective fishing gear in use (grids, panels) that have an impact of by-catches of fish. No by-catches of mammals and birds have been found in these fisheries 2018. All data is submitted to international databases when this is requested.
A9: SWE | B9: 2018-2019 | C9: Baltic Sea | D9: ICES | E9: SD 23-29 | F9: Baltic at-sea or self-sampling | G9: SWE - Balt (at-sea/self) - Pass - 23 - DemNet. Data from riskareas (frame to be defined) pilotstudy 2. | H9: All encountered species | I9: X | J9: Data on all species in 1D will be recorded. | K9: 100 | L9: 17 | M9: 17 | N9: Y | O9: Y | P9: Y | Q9: Y | R9: Y | S9: NA | T9: NA | U9: Y | V9: Y | W9: NOTE: Number of PSUs should be identical to numbers of PSUs in table 4A . The corresponding rows in table 4A are "SWE - Balt (at-sea/self) - Pass - 23 - DemNets" och "SWE - Balt (at-sea/self) - Pass - 27/29 - DemNets" (but only including SD 27 and 28 as these were identified as riskareas for birds). Samplingframe in 4A is based on weeks (see 4A). Total number of trips included in the samplingframe was 3392. Number of trips sampled was 36. 32 of these were monitored by observers . The remaining 4 trips are self-sampled by fishermen but sampled by observers. This is a part of the Swedish pilot study om by-catches so observing by-catches (incl. Hauling operation and work-up of the catch) is the top priority. It is recorded if the fisherman use pingers. In 2018 were sampling carried out in the Baltic SD 23 and in SD 27-28. The latter were assessed as riskareas for by-catches of birds. All data is submitted to international databases when this is requested

Sheet Table1G List of research survey
A1: Table 1G: List of research surveys at sea
Z2: WP years | AA2: 2018-2019
Z3: AR year | AA3: 2018
A4: MS | B4: Name of survey | C4: Acronym | D4: Mandatory (Y/N) | E4: Threshold (Y/N) | F4: Agreed at RCG level | G4: MS participation | H4: Area(s) covered | I4: Period (Month) | J4: Frequency | K4: Days at sea planned | L4: Type of sampling activities | M4: Planned target | N4: Map | O4: Relevant international planning group - RFMO/RFO/IO | P4: International database | Q4: Comments | R4: Type of MS participation | S4: In case of financial participation, is payment done? (Y/N) | T4: Days at sea achieved | U4: Achieved target | V4: Other data assimilations (Y/N) | W4: Was the survey carried out within the official time period? (Y/N) | X4: Was the survey carried out within the official survey area? (Y/N) | Y4: Indication if AR comments by MS are required concerning effort achieved | Z4: Indication if AR comments by MS are required concerning temporal and spatial coverage | AA4: AR Comments
A5: SWE | B5: Baltic International Trawl Survey | C5: BITS Q1 | D5: Y | E5: N | F5: Y | G5: C | H5: IIIb-d | I5: 1st quarter | J5: Annual | K5: 14 | L5: Fish Hauls | M5: 50 | N5: Map 1 | O5: ICES WGBIFS | P5: DATRAS | R5: P | S5: NA | T5: 10 | U5: 33 | V5: N | W5: Y | X5: Y | Y5: =IF(((K5-T5)/K5*100)>[9]Settings!H4,"x",IF(((K5-T5)/K5*100)>[9]Settings!H4,"x",IF(T5="","",""))) -> x | AA5: Due to the access prohibition to foreign vessels in some areas by the Swedish Armed Forces, Sweden could not visit 17 of the planned hauls
A6: SWE | B6: Baltic International Trawl Survey | C6: BITS Q1 | D6: Y | E6: N | F6: Y | G6: C | H6: IIIb-d | I6: 1st quarter | J6: Annual | K6: 3 | L6: Fish Hauls | M6: 2-4 | N6: Map 1 | O6: ICES WGBIFS | P6: DATRAS | Q6: Hauls undertaken by the vessel Hålabben | R6: P | S6: NA | T6: 3 | U6: 3 | V6: N | W6: Y | X6: Y
A7: SWE | B7: Baltic International Trawl Survey | C7: BITS Q4 | D7: Y | E7: N | F7: Y | G7: C | H7: IIIb-d | I7: 4th quarter | J7: Annual | K7: 11 | L7: Fish Hauls | M7: 30 | N7: Map 2 | O7: ICES WGBIFS | P7: DATRAS | R7: P | S7: NA | T7: 10.5 | U7: 28 | V7: N | W7: Y | X7: Y
A8: SWE | B8: Baltic International Trawl Survey | C8: BITS Q4 | D8: Y | E8: N | F8: Y | G8: C | H8: IIIb-d | I8: 3rd quarter | J8: Annual | K8: 3 | L8: Fish Hauls | M8: 2-4 | N8: Map 2 | O8: ICES WGBIFS | P8: DATRAS | Q8: Hauls undertaken by the vessel Hålabben | R8: P | S8: NA | T8: 3 | U8: 6 | V8: N | W8: Y | X8: Y | AA8: Number of hauls increased from q 4 2018, conducted in the same amout of days. Joint planning with Denmark
A9: SWE | B9: Baltic International Acoustic Survey | C9: BIAS | D9: Y | E9: N | F9: Y | G9: C | H9: IIIb-d | I9: Sep-Oct | J9: Annual | K9: 13 | L9: Echo Nm | M9: 1341 | N9: Map 3 | O9: ICES WGBIFS | P9: IBAS | R9: P | S9: NA | T9: 13.4 | U9: 1247 | V9: N | W9: Y | X9: Y
A10: SWE | B10: Baltic International Acoustic Survey | C10: BIAS | D10: Y | E10: N | F10: Y | G10: C | H10: IIIb-d | I10: Sep-Oct | J10: Annual | K10: 13 | L10: Fish Hauls | M10: 48 | N10: Map 3 | O10: ICES WGBIFS | P10: IBAS | R10: P | S10: NA | T10: 13.4 | U10: 46 | V10: N | W10: Y | X10: Y
A11: SWE | B11: International Bottom Trawl Survey | C11: IBTS Q1 | D11: Y | E11: N | F11: Y | G11: C | H11: IIIa | I11: 1st quarter | J11: Annual | K11: 14 | L11: Fish Hauls | M11: 46 | N11: Map 4 | O11: ICES IBTSWG | P11: DATRAS | R11: P | S11: NA | T11: 12.5 | U11: 46 | V11: N | W11: Y | X11: Y
A12: SWE | B12: International Bottom Trawl Survey | C12: IBTS Q1 | D12: Y | E12: N | F12: Y | G12: C | H12: IIIa | I12: 1st quarter | J12: Annual | K12: 14 | L12: Plankton Hauls | M12: 60 | N12: Map 5 | O12: ICES IBTSWG | P12: no existing database | Q12: Data on clupeid larvae are sent to a database in Germany. | R12: P | S12: NA | T12: 12.5 | U12: 56 | V12: N | W12: Y | X12: Y
A13: SWE | B13: International Bottom Trawl Survey | C13: IBTS Q3 | D13: Y | E13: N | F13: Y | G13: C | H13: IIIa | I13: 3rd quarter | J13: Annual | K13: 11 | L13: Fish Hauls | M13: 45 | N13: Map 6 | O13: ICES IBTSWG | P13: DATRAS | R13: P | S13: NA | T13: 11.4 | U13: 45 | V13: N | W13: Y | X13: Y
A14: SWE | B14: Nephrops TV survey (FU 3&4) | C14: NTV3&4 | D14: Y | E14: N | F14: Y | G14: C | H14: IIIa | I14: 2nd quarter | J14: Annual | K14: 15 | L14: TV-tracks | M14: 95 | N14: Map 7 | O14: ICES WGNEPS | P14: no existing database | R14: P | S14: NA | T14: 11 | U14: 82 | V14: N | W14: Y | X14: Y
A15: SWE | B15: International Ecosystem Survey in the Nordic Seas | C15: ASH | D15: Y | E15: N | F15: Y | G15: C | H15: IIa | I15: May | J15: Annual | L15: Fish Hauls | M15: See Denmark | N15: Map 8 | O15: ICES WGIPS | P15: See Denmark | R15: C | S15: Y | T15: 30 | U15: See Denmark | V15: See Denmark | W15: See Denmark | X15: See Denmark
A16: SWE | B16: Blue whiting survey | C16: IBWSS | D16: Y | E16: N/A | F16: Y | G16: C | H16: VI, VII | I16: 1st and 2nd quarter | J16: Annual | L16: Fish hauls CTD Echo Nm | M16: See Netherlands | N16: Map 9 | O16: ICES WGIPS | P16: See Netherlands | R16: F | S16: N | T16: See Netherlands | U16: See Netherlands | V16: See Netherlands | W16: See Netherlands | X16: See Netherlands | AA16: Part financed by SWE 2018. Not included in WP 2018-2019

Sheet Table1H Research survey data
A1: Table 1H: Research survey data collection and dissemination
L2: WP years | M2: 2018-2019
L3: AR year | M3: 2018
A4: MS | B4: Name of survey | C4: Acronym | D4: Type of data collected | E4: Core/ Additional variable | F4: Used as basis for advice (Y/N) | G4: Comments | H4: Was the sampling carried out? (Y/N/P) | I4: Relevant International database | J4: Was the data uploaded to the relevant database? (Y/N) | K4: Other data assimilations? (Y/N) | L4: Indication if AR comments are required by MS | M4: AR comments
A5: SWE | B5: Baltic International Trawl Survey | C5: BITS Q1 | D5: Biological data for Eastern Baltic Cod | E5: C | F5: Y | H5: Y | I5: DATRAS | J5: Y | K5: N | L5: =IF(OR(H5="Y",H5=""),"","x") -> 
A6: SWE | B6: Baltic International Trawl Survey | C6: BITS Q1 | D6: Biological data for Flounder | E6: C | F6: Y | H6: Y | I6: DATRAS | J6: Y | K6: N
A7: SWE | B7: Baltic International Trawl Survey | C7: BITS Q1 | D7: Biological data for Plaice | E7: C | F7: Y | G7: Only collected in SD 23 | H7: Y | I7: DATRAS | J7: N | K7: N | L7: =IF(OR(H7="Y",H7=""),"","x") -> 
A8: SWE | B8: Baltic International Trawl Survey | C8: BITS Q1 | D8: Biological data for Herring | E8: A | F8: N | H8: N | I8: DATRAS | J8: N | K8: N | L8: =IF(OR(H8="Y",H8=""),"","x") -> x | M8: Additional variable, no full biological sampling is done, length measurement and total weight only.
A9: SWE | B9: Baltic International Trawl Survey | C9: BITS Q1 | D9: Biological data for Sprat | E9: A | F9: N | H9: N | I9: DATRAS | J9: N | K9: N | L9: =IF(OR(H9="Y",H9=""),"","x") -> x | M9: Additional variable, no full biological sampling is done, length measurement and total weight only.
A10: SWE | B10: Baltic International Trawl Survey | C10: BITS Q1 | D10: CTD by Haul | E10: C | F10: Y | H10: Y | I10: DATRAS | J10: Y | K10: N
A11: SWE | B11: Baltic International Trawl Survey | C11: BITS Q1 | D11: Litter items in the trawl | E11: A | F11: Y | G11: Descriptor in MSFD | H11: Y | I11: DATRAS | J11: Y | K11: N
A12: SWE | B12: Baltic International Trawl Survey | C12: BITS Q1 | D12: Benthos in the trawl | E12: A | F12: N | H12: Y | I12: DATRAS | J12: Y | K12: N | L12: =IF(OR(H12="Y",H12=""),"","x") -> 
A13: SWE | B13: Baltic International Trawl Survey | C13: BITS Q1 | D13: Hydroacoustic data | E13: A | F13: N | H13: Y | I13: DATRAS | J13: Y | K13: N
A14: SWE | B14: Baltic International Trawl Survey | C14: BITS Q4 | D14: Biological data for Eastern Baltic Cod | E14: C | F14: Y | H14: Y | I14: DATRAS | J14: Y | K14: N
A15: SWE | B15: Baltic International Trawl Survey | C15: BITS Q4 | D15: Biological data for Flounder | E15: C | F15: Y | H15: Y | I15: DATRAS | J15: Y | K15: N
A16: SWE | B16: Baltic International Trawl Survey | C16: BITS Q1 | D16: Biological data for Plaice | E16: C | F16: Y | G16: Only collected in SD 23 | H16: Y | I16: DATRAS | J16: N | K16: N
A17: SWE | B17: Baltic International Trawl Survey | C17: BITS Q4 | D17: Biological data for Herring | E17: A | F17: N | H17: N | I17: DATRAS | J17: N | K17: N | L17: x | M17: Additional variable, no full biological sampling is done, length measurement and total weight only.
A18: SWE | B18: Baltic International Trawl Survey | C18: BITS Q4 | D18: Biological data for Sprat | E18: A | F18: N | H18: N | I18: DATRAS | J18: N | K18: N | L18: x | M18: Additional variable, no full biological sampling is done, length measurement and total weight only.
A19: SWE | B19: Baltic International Trawl Survey | C19: BITS Q4 | D19: CTD by Haul | E19: C | F19: Y | H19: Y | I19: DATRAS | J19: Y | K19: N
A20: SWE | B20: Baltic International Trawl Survey | C20: BITS Q4 | D20: Litter items in the trawl | E20: A | F20: Y | G20: Descriptor in MSFD | H20: Y | I20: DATRAS | J20: Y | K20: N
A21: SWE | B21: Baltic International Trawl Survey | C21: BITS Q4 | D21: Benthos in the trawl | E21: A | F21: N | H21: Y | I21: DATRAS | J21: Y | K21: N
A22: SWE | B22: Baltic International Trawl Survey | C22: BITS Q4 | D22: Hydroacoustic data | E22: A | F22: N | H22: Y | I22: DATRAS | J22: Y | K22: N
A23: SWE | B23: Baltic International Acoustic Survey | C23: BIAS | D23: Biological data for Herring | E23: C | F23: Y | H23: Y | I23: IBAS | J23: Y | K23: N
A24: SWE | B24: Baltic International Acoustic Survey | C24: BIAS | D24: Biological data for Sprat | E24: C | F24: Y | H24: Y | I24: IBAS | J24: Y | K24: N
A25: SWE | B25: Baltic International Acoustic Survey | C25: BIAS | D25: Hydroacoustic data | E25: C | F25: Y | H25: Y | I25: IBAS | J25: Y | K25: N
A26: SWE | B26: Baltic International Acoustic Survey | C26: BIAS | D26: CTD by Haul | E26: C | F26: Y | G26: Reported but not a driver for the design or assessment | H26: Y | I26: IBAS | J26: Y | K26: N
A27: SWE | B27: International Bottom Trawl Survey | C27: IBTS Q1 | D27: Biological data for Cod | E27: C | F27: Y | H27: Y | I27: DATRAS | J27: Y | K27: N
A28: SWE | B28: International Bottom Trawl Survey | C28: IBTS Q1 | D28: Biological data for Haddock | E28: C | F28: Y | H28: Y | I28: DATRAS | J28: Y | K28: N
A29: SWE | B29: International Bottom Trawl Survey | C29: IBTS Q1 | D29: Biological data for Whiting | E29: C | F29: Y | H29: Y | I29: DATRAS | J29: Y | K29: N
A30: SWE | B30: International Bottom Trawl Survey | C30: IBTS Q1 | D30: Biological data for Norway Pout | E30: C | F30: Y | H30: Y | I30: DATRAS | J30: Y | K30: N
A31: SWE | B31: International Bottom Trawl Survey | C31: IBTS Q1 | D31: Biological data for Saithe | E31: C | F31: Y | H31: Y | I31: DATRAS | J31: Y | K31: N
A32: SWE | B32: International Bottom Trawl Survey | C32: IBTS Q1 | D32: Biological data for Plaice | E32: C | F32: Y | H32: Y | I32: DATRAS | J32: Y | K32: N
A33: SWE | B33: International Bottom Trawl Survey | C33: IBTS Q1 | D33: Biological data for Herring | E33: C | F33: Y | H33: Y | I33: DATRAS | J33: Y | K33: N
A34: SWE | B34: International Bottom Trawl Survey | C34: IBTS Q1 | D34: Biological data for Sprat | E34: C | F34: Y | H34: Y | I34: DATRAS | J34: Y | K34: N
A35: SWE | B35: International Bottom Trawl Survey | C35: IBTS Q1 | D35: Biological data for Sole | E35: A | F35: N | H35: Y | I35: DATRAS | J35: Y | K35: N
A36: SWE | B36: International Bottom Trawl Survey | C36: IBTS Q1 | D36: Biological data for Hake | E36: A | F36: N | H36: Y | I36: DATRAS | J36: Y | K36: N
A37: SWE | B37: International Bottom Trawl Survey | C37: IBTS Q1 | D37: Biological data for Witch flounder | E37: A | F37: Y | H37: Y | I37: DATRAS | J37: Y | K37: N
A38: SWE | B38: International Bottom Trawl Survey | C38: IBTS Q1 | D38: Biological data for Cephalopoda | E38: C | F38: Y | H38: Y | I38: DATRAS | J38: Y | K38: N
A39: SWE | B39: International Bottom Trawl Survey | C39: IBTS Q1 | D39: Biological data for Nephrops and crabs | E39: C | F39: Y | H39: Y | I39: DATRAS | J39: Y | K39: N
A40: SWE | B40: International Bottom Trawl Survey | C40: IBTS Q1 | D40: CTD by Haul | E40: C | F40: Y | H40: Y | I40: DATRAS | J40: N | K40: Y
A41: SWE | B41: International Bottom Trawl Survey | C41: IBTS Q1 | D41: Litter items in the trawl | E41: C | F41: Y | G41: Descriptor in MSFD | H41: Y | I41: DATRAS | J41: Y | K41: Y
A42: SWE | B42: International Bottom Trawl Survey | C42: IBTS Q1 | D42: Fish larvae | E42: C | F42: Y | H42: Y | I42: DATRAS | J42: Y | K42: N
A43: SWE | B43: International Bottom Trawl Survey | C43: IBTS Q3 | D43: Biological data for Cod | E43: C | F43: Y | H43: Y | I43: DATRAS | J43: Y | K43: N
A44: SWE | B44: International Bottom Trawl Survey | C44: IBTS Q3 | D44: Biological data for Haddock | E44: C | F44: Y | H44: Y | I44: DATRAS | J44: Y | K44: N
A45: SWE | B45: International Bottom Trawl Survey | C45: IBTS Q3 | D45: Biological data for Whiting | E45: C | F45: Y | H45: Y | I45: DATRAS | J45: Y | K45: N
A46: SWE | B46: International Bottom Trawl Survey | C46: IBTS Q3 | D46: Biological data for Norway Pout | E46: C | F46: Y | H46: Y | I46: DATRAS | J46: Y | K46: N
A47: SWE | B47: International Bottom Trawl Survey | C47: IBTS Q3 | D47: Biological data for Saithe | E47: C | F47: Y | H47: Y | I47: DATRAS | J47: Y | K47: N
A48: SWE | B48: International Bottom Trawl Survey | C48: IBTS Q3 | D48: Biological data for Plaice | E48: C | F48: Y | H48: Y | I48: DATRAS | J48: Y | K48: N
A49: SWE | B49: International Bottom Trawl Survey | C49: IBTS Q3 | D49: Biological data for Herring | E49: C | F49: Y | H49: Y | I49: DATRAS | J49: Y | K49: N
A50: SWE | B50: International Bottom Trawl Survey | C50: IBTS Q3 | D50: Biological data for Sprat | E50: C | F50: Y | H50: Y | I50: DATRAS | J50: Y | K50: N
A51: SWE | B51: International Bottom Trawl Survey | C51: IBTS Q3 | D51: Biological data for Sole | E51: A | F51: N | H51: Y | I51: DATRAS | J51: Y | K51: N
A52: SWE | B52: International Bottom Trawl Survey | C52: IBTS Q3 | D52: Biological data for Hake | E52: A | F52: N | H52: Y | I52: DATRAS | J52: Y | K52: N
A53: SWE | B53: International Bottom Trawl Survey | C53: IBTS Q3 | D53: Biological data for Witch flounder | E53: A | F53: Y | H53: Y | I53: DATRAS | J53: Y | K53: N
A54: SWE | B54: International Bottom Trawl Survey | C54: IBTS Q3 | D54: Biological data for Cephalopoda | E54: C | F54: Y | H54: Y | I54: DATRAS | J54: Y | K54: N
A55: SWE | B55: International Bottom Trawl Survey | C55: IBTS Q3 | D55: Biological data for Nephrops and crabs | E55: C | F55: Y | H55: Y | I55: DATRAS | J55: Y | K55: N
A56: SWE | B56: International Bottom Trawl Survey | C56: IBTS Q3 | D56: CTD by Haul | E56: C | F56: Y | H56: Y | I56: DATRAS | J56: N | K56: Y
A57: SWE | B57: International Bottom Trawl Survey | C57: IBTS Q3 | D57: Litter items in the trawl | E57: C | F57: Y | G57: Descriptor in MSFD | H57: Y | I57: DATRAS | J57: Y | K57: Y
A58: SWE | B58: Nephrops TV survey (FU 3&4) | C58: NTV3&4 | D58: TV track for abundance of Nephrops | E58: C | F58: Y | H58: Y | I58: No database | J58: N | K58: N
A59: SWE | B59: International Ecosystem Survey in the Nordic Seas | C59: ASH | D59: Blue whiting acoustic/biological data | E59: C | F59: Y | G59: reported by Denmark
A60: SWE | B60: International Ecosystem Survey in the Nordic Seas | C60: ASH | D60: Zooplankton | E60: C | F60: Y | G60: reported by Denmark
A61: SWE | B61: International Ecosystem Survey in the Nordic Seas | C61: ASH | D61: CTD by Haul | E61: C | F61: Y | G61: reported by Denmark
A62: SWE | B62: Baltic International Trawl Survey | C62: BITS Q1 | D62: Stomach content cod | E62: A | F62: N | H62: Y | I62: No database | J62: N | K62: N | M62: Additional parameters, not in WP 2018-2019.
A63: SWE | B63: Baltic International Trawl Survey | C63: BITS Q1 | D63: Stomach content flounder | E63: A | F63: N | H63: Y | I63: No database | J63: N | K63: N | M63: Additional parameters, not in WP 2018-2019.
A64: SWE | B64: Baltic International Trawl Survey | C64: BITS Q4 | D64: Stomach content cod | E64: A | F64: N | H64: Y | I64: No database | J64: N | K64: N | M64: Additional parameters, not in WP 2018-2019.
A65: SWE | B65: Baltic International Trawl Survey | C65: BITS Q4 | D65: Stomach content flounder | E65: A | F65: N | H65: Y | I65: No database | J65: N | K65: N | M65: Additional parameters, not in WP 2018-2019.
A66: SWE | B66: Baltic International Acoustic Survey | C66: BIAS | D66: Acoustic sampling, Trawling, Biological samples, Stomach content cod | E66: A | F66: Y | H66: Y | I66: BIAS_DB | J66: Y | K66: Y | M66: Additional parameters, not in WP 2018-2019.
A67: SWE | B67: Blue whiting survey | C67: IBWSS | D67: Biological data for Blue whiting in VI, VII | E67: C | F67: Y | G67: reported by Netherlands | L67: =IF(OR(H67="Y",H67=""),"","x") ->  | M67: Additional reporting, not in WP 2018-2019
A68: SWE | B68: Blue whiting survey | C68: IBWSS | D68: Fish species in trawl haul | E68: A | F68: N | G68: reported by Netherlands | M68: Additional reporting, not in WP 2018-2019
A69: SWE | B69: Blue whiting survey | C69: IBWSS | D69: CTD by hydrography station | E69: A | F69: N | G69: reported by Netherlands | M69: Additional reporting, not in WP 2018-2019
A70: SWE | B70: Blue whiting survey | C70: IBWSS | D70: Acoustic profiles in VI, VII | E70: C | F70: Y | G70: reported by Netherlands | L70: =IF(OR(H70="Y",H70=""),"","x") ->  | M70: Additional reporting, not in WP 2018-2019
A71: SWE | B71: International Bottom Trawl Survey | C71: IBTS Q1 | D71: Length data for Mackerel | E71: C | F71: Y? | H71: Y | I71: DATRAS | J71: Y | K71: N | M71: Additional reporting, not in WP 2018-2019. Due to historically low catches all biological data has not been collected, only length. This will be reconsidered.
A72: SWE | B72: International Bottom Trawl Survey | C72: IBTS Q3 | D72: Length data for Mackerel | E72: C | F72: Y? | H72: Y | I72: DATRAS | J72: Y | K72: N | M72: Additional reporting, not in WP 2018-2019. Due to historically low catches all biological data has not been collected, only length. This will be reconsidered.

Sheet Table2A Fishing activity variab
A1: Table 2A: Fishing activity variables data collection strategy
S2: WP years | T2: 2018-2019
S3: AR year | T3: 2018
A4: MS | B4: Supra region | C4: Region | D4: Variable Group | E4: Variable | F4: Fishing technique | G4: Length class | H4: Metiers (level 6) | I4: Data collected under control regulation appropriate for scientific use (Y/N/I) | J4: Type of data collected under control regulation used to calculate the estimates | K4: Expected coverage of data collected under control regulation (% of fishing trips) | L4: Additional data collection (Y/N) | M4: Data collection scheme | N4: Planned coverage of data collected under complementary data collection (% of fishing trips) | O4: Comments | P4: Data collected under control regulation accessible for scientific use (Y/N/I) | Q4: Data source for complementary data collection | R4: Achieved coverage of data collected under complementary data collection | S4: Response Rate (%) | T4: AR comments
A5: SWE | B5: Baltic Sea, North Sea and Eastern Arctic, and North Atlantic | C5: all regions | D5: Capacity | E5: Number of vessels, GT, kW, Vessel Age | F5: all fleets | G5: 0-< 10 m | H5: all metiers | I5: I | J5: Community fishing fleet register | K5: 1 | L5: N | M5: None | N5: NA | P5: I | Q5: NA | R5: 100% | S5: 100%
A6: SWE | B6: Baltic Sea, North Sea and Eastern Arctic, and North Atlantic | C6: all regions | D6: Capacity | E6: Number of vessels, GT, kW, Vessel Age | F6: inactive | G6: 0-< 10 m | H6: all metiers | I6: I | J6: Community fishing fleet register | K6: NA | L6: N | M6: None | N6: NA | O6: For inactive fleet segments, it is not clear what to report under expected and planned coverage with regards to % of fishing trips | P6: I | Q6: NA | R6: NA | S6: NA
A7: SWE | B7: Baltic Sea, North Sea and Eastern Arctic, and North Atlantic | C7: all regions | D7: Capacity | E7: Number of vessels, GT, kW, Vessel Age | F7: all fleets | G7: 10 m or larger | H7: all metiers | I7: Y | J7: Community fishing fleet register | K7: 1 | L7: N | M7: None | N7: NA | P7: Y | Q7: NA | R7: NA | S7: NA
A8: SWE | B8: Baltic Sea, North Sea and Eastern Arctic, and North Atlantic | C8: all regions | D8: Capacity | E8: Number of vessels, GT, kW, Vessel Age | F8: inactive | G8: 10 m or larger | H8: all metiers | I8: Y | J8: Community fishing fleet register | K8: NA | L8: N | M8: None | N8: NA | O8: For inactive fleet segments, it is not clear what to report under expected and planned coverage with regards to % of fishing trips | P8: Y | Q8: NA | R8: NA | S8: NA
A9: SWE | B9: Baltic Sea, North Sea and Eastern Arctic, and North Atlantic | C9: all regions | D9: Effort | E9: Days at sea, fishing days, kW*fishing days, GT*fishing days, number of trips, number of fishing operations, number of nets/length, number of hooks, number of lines, number of pots, traps | F9: all fleets | G9: 0-< 10 m | H9: all metiers | I9: I | J9: Logbooks | K9: 0.11 | L9: Y | M9: Census | N9: 1 | O9: Census based on monthly journals | P9: I | Q9: NA | R9: 100% | S9: 100%
A10: SWE | B10: Baltic Sea, North Sea and Eastern Arctic, and North Atlantic | C10: all regions | D10: Effort | E10: Days at sea, fishing days, kW*fishing days, GT*fishing days, number of trips, number of fishing operations, number of nets/length, number of hooks, number of lines, number of pots, traps | F10: inactive | G10: 0-< 10 m | H10: all metiers | I10: I | J10: Logbooks | K10: NA | L10: Y | M10: Census | N10: NA | O10: Census based on monthly journals For inactive fleet segments, it is not clear what to report under expected and planned coverage with regards to % of fishing trips | P10: I | Q10: NA | R10: NA | S10: NA
A11: SWE | B11: Baltic Sea, North Sea and Eastern Arctic, and North Atlantic | C11: all regions | D11: Effort | E11: Days at sea, fishing days, kW*fishing days, GT*fishing days, number of trips, number of fishing operations, number of nets/length, number of hooks, number of lines, number of pots, traps | F11: all fleets | G11: 10 m or larger | H11: all metiers | I11: Y | J11: Logbooks | K11: 1 | L11: N | M11: None | N11: NA | P11: Y | Q11: NA | R11: NA | S11: NA
A12: SWE | B12: Baltic Sea, North Sea and Eastern Arctic, and North Atlantic | C12: all regions | D12: Effort | E12: Days at sea, fishing days, kW*fishing days, GT*fishing days, number of trips, number of fishing operations, number of nets/length, number of hooks, number of lines, number of pots, traps | F12: inactive | G12: 10 m or larger | H12: all metiers | I12: Y | J12: Logbooks | K12: NA | L12: N | M12: None | N12: NA | O12: For inactive fleet segments, it is not clear what to report under expected and planned coverage with regards to % of fishing trips | P12: Y | Q12: NA | R12: NA | S12: NA
A13: SWE | B13: Baltic Sea, North Sea and Eastern Arctic, and North Atlantic | C13: all regions | D13: Landings | E13: Value of landings total and per commercial species, Live Weight of landings total and per species, Prices by commercial species | F13: all fleets | G13: 0-< 10 m | H13: all metiers | I13: I | J13: Sales notes, Logbooks | K13: 0.11 | L13: Y | M13: Census | N13: 1 | O13: Census based on monthly journals | P13: I | Q13: NA | R13: 100% | S13: 100%
A14: SWE | B14: Baltic Sea, North Sea and Eastern Arctic, and North Atlantic | C14: all regions | D14: Landings | E14: Value of landings total and per commercial species, Live Weight of landings total and per species, Prices by commercial species | F14: inactive | G14: 0-< 10 m | H14: all metiers | I14: I | J14: Sales notes, Logbooks | K14: NA | L14: Y | M14: Census | N14: NA | O14: Census based on monthly journals For inactive fleet segments, it is not clear what to report under expected and planned coverage with regards to % of fishing trips | P14: I | Q14: NA | R14: NA | S14: NA
A15: SWE | B15: Baltic Sea, North Sea and Eastern Arctic, and North Atlantic | C15: all regions | D15: Landings | E15: Value of landings total and per commercial species, Live Weight of landings total and per species, Prices by commercial species | F15: all fleets | G15: 10 m or larger | H15: all metiers | I15: Y | J15: Sales Notes, Logbooks | K15: 1 | L15: N | M15: None | N15: NA | P15: Y | Q15: NA | R15: NA | S15: NA
A16: SWE | B16: Baltic Sea, North Sea and Eastern Arctic, and North Atlantic | C16: all regions | D16: Landings | E16: Value of landings total and per commercial species, Live Weight of landings total and per species, Prices by commercial species | F16: inactive | G16: 10 m or larger | H16: all metiers | I16: Y | J16: Sales Notes, Logbooks | K16: NA | L16: N | M16: None | N16: NA | O16: For inactive fleet segments, it is not clear what to report under expected and planned coverage with regards to % of fishing trips | P16: Y | Q16: NA | R16: NA | S16: NA

Sheet Table3A Pop segment fisheries
A1: Table 3A: Population segments for collection of economic and social data for fisheries
Q2: WP years | R2: 2018-2019
Q3: AR year | R3: 2018
A4: MS | B4: Supra region | C4: Fishing technique | D4: Length class | E4: Cluster Name | F4: Type of variables (E/S) | G4: Variable | H4: Data Source | I4: Type of data collection scheme | J4: Frequency | K4: Planned sample rate % | L4: Comments | M4: Frame population | N4: Achieved sample number | O4: Achieved Sample Rate % | P4: Response Rate % | Q4: Achieved Sample no/Planned sample no. | R4: AR Comments
A5: SWE | B5: Baltic Sea, North Sea and Eastern Arctic, and North Atlantic | C5: Beam trawlers, Demersal trawlers and/or demersal seiners, Pelagic trawlers, Purse seiners, Dredgers, Vessel using other active gears, Vessels using Polyvalent ‘active’ gears only, Vessels using hooks, Drift and/or fixed netters, Vessels using Pots and/or traps, Vessels using other Passive gears, Vessels using Polyvalent ‘passive’ gears only, Vessels using active and passive gears | D5: 0-<10 m, 10-<12 m, 12-<18 m, 18-<24 m, 24-40 m, 40 m or larger | F5: E | G5: Average price per species | H5: Logbooks/Monthly Journals/Landing declarations | I5: A - Census | J5: A | K5: 100 | M5: 911 | N5: 911 | O5: 1 | P5: 1 | Q5: 1
A6: SWE | B6: Baltic Sea, North Sea and Eastern Arctic, and North Atlantic | C6: Beam trawlers, Demersal trawlers and/or demersal seiners, Pelagic trawlers, Purse seiners, Dredgers, Vessel using other active gears, Vessels using Polyvalent ‘active’ gears only, Vessels using hooks, Drift and/or fixed netters, Vessels using Pots and/or traps, Vessels using other Passive gears, Vessels using Polyvalent ‘passive’ gears only, Vessels using active and passive gears | D6: 0-<10 m, 10-<12 m, 12-<18 m, 18-<24 m, 24-40 m, 40 m or larger | F6: E | G6: Consumption of fixed capital | H6: Questionnaires/Tax declarations/Logbooks/Monthly Journals | I6: A - Census | J6: A | K6: 100 | M6: 911 | N6: 619.48 | O6: 0.68 | P6: 0.68 | Q6: 0.68
A7: SWE | B7: Baltic Sea, North Sea and Eastern Arctic, and North Atlantic | C7: Beam trawlers, Demersal trawlers and/or demersal seiners, Pelagic trawlers, Purse seiners, Dredgers, Vessel using other active gears, Vessels using Polyvalent ‘active’ gears only, Vessels using hooks, Drift and/or fixed netters, Vessels using Pots and/or traps, Vessels using other Passive gears, Vessels using Polyvalent ‘passive’ gears only, Vessels using active and passive gears | D7: 0-<10 m, 10-<12 m, 12-<18 m, 18-<24 m, 24-40 m, 40 m or larger | F7: E | G7: Days at sea | H7: Logbooks/Monthly Journals | I7: A - Census | J7: A | K7: 100 | M7: 911 | N7: 911 | O7: 1 | P7: 1 | Q7: 1
A8: SWE | B8: Baltic Sea, North Sea and Eastern Arctic, and North Atlantic | C8: Beam trawlers, Demersal trawlers and/or demersal seiners, Pelagic trawlers, Purse seiners, Dredgers, Vessel using other active gears, Vessels using Polyvalent ‘active’ gears only, Vessels using hooks, Drift and/or fixed netters, Vessels using Pots and/or traps, Vessels using other Passive gears, Vessels using Polyvalent ‘passive’ gears only, Vessels using active and passive gears | D8: 0-<10 m, 10-<12 m, 12-<18 m, 18-<24 m, 24-40 m, 40 m or larger | F8: E | G8: Energy consumption | H8: Questionnaires/Tax declarations/Logbooks/Monthly Journals | I8: A - Census | J8: A | K8: 100 | M8: 911 | N8: 719.69 | O8: 0.79 | P8: 0.79 | Q8: 0.79
A9: SWE | B9: Baltic Sea, North Sea and Eastern Arctic, and North Atlantic | C9: Beam trawlers, Demersal trawlers and/or demersal seiners, Pelagic trawlers, Purse seiners, Dredgers, Vessel using other active gears, Vessels using Polyvalent ‘active’ gears only, Vessels using hooks, Drift and/or fixed netters, Vessels using Pots and/or traps, Vessels using other Passive gears, Vessels using Polyvalent ‘passive’ gears only, Vessels using active and passive gears | D9: 0-<10 m, 10-<12 m, 12-<18 m, 18-<24 m, 24-40 m, 40 m or larger | F9: E | G9: Energy costs | H9: Questionnaires/Tax declarations/Logbooks/Monthly Journals | I9: A - Census | J9: A | K9: 100 | M9: 911 | N9: 710.58 | O9: 0.78 | P9: 0.78 | Q9: 0.78
A10: SWE | B10: Baltic Sea, North Sea and Eastern Arctic, and North Atlantic | C10: Beam trawlers, Demersal trawlers and/or demersal seiners, Pelagic trawlers, Purse seiners, Dredgers, Vessel using other active gears, Vessels using Polyvalent ‘active’ gears only, Vessels using hooks, Drift and/or fixed netters, Vessels using Pots and/or traps, Vessels using other Passive gears, Vessels using Polyvalent ‘passive’ gears only, Vessels using active and passive gears | D10: 0-<10 m, 10-<12 m, 12-<18 m, 18-<24 m, 24-40 m, 40 m or larger | F10: E | G10: Engaged crew | H10: Questionnaires/Tax declarations/Logbooks/Monthly Journals | I10: A - Census | J10: A | K10: 100 | M10: 911 | N10: 747.02 | O10: 0.82 | P10: 0.82 | Q10: 0.82
A11: SWE | B11: Baltic Sea, North Sea and Eastern Arctic, and North Atlantic | C11: Beam trawlers, Demersal trawlers and/or demersal seiners, Pelagic trawlers, Purse seiners, Dredgers, Vessel using other active gears, Vessels using Polyvalent ‘active’ gears only, Vessels using hooks, Drift and/or fixed netters, Vessels using Pots and/or traps, Vessels using other Passive gears, Vessels using Polyvalent ‘passive’ gears only, Vessels using active and passive gears | D11: 0-<10 m, 10-<12 m, 12-<18 m, 18-<24 m, 24-40 m, 40 m or larger | F11: E | G11: Gross value of landings | H11: Logbooks/Monthly Journals/Landing declarations | I11: A - Census | J11: A | K11: 100 | M11: 911 | N11: 911 | O11: 1 | P11: 1 | Q11: 1
A12: SWE | B12: Baltic Sea, North Sea and Eastern Arctic, and North Atlantic | C12: Beam trawlers, Demersal trawlers and/or demersal seiners, Pelagic trawlers, Purse seiners, Dredgers, Vessel using other active gears, Vessels using Polyvalent ‘active’ gears only, Vessels using hooks, Drift and/or fixed netters, Vessels using Pots and/or traps, Vessels using other Passive gears, Vessels using Polyvalent ‘passive’ gears only, Vessels using active and passive gears | D12: 0-<10 m, 10-<12 m, 12-<18 m, 18-<24 m, 24-40 m, 40 m or larger | F12: E | G12: Income from leasing out quota or other fishing rights | H12: Questionnaires/Tax declarations/Logbooks/Monthly Journals | I12: A - Census | J12: A | K12: 100 | M12: 911 | N12: NA | O12: NA | P12: NA | R12: Not applicable. This variable is not presented seperately. It is included in Other income.
A13: SWE | B13: Baltic Sea, North Sea and Eastern Arctic, and North Atlantic | C13: Beam trawlers, Demersal trawlers and/or demersal seiners, Pelagic trawlers, Purse seiners, Dredgers, Vessel using other active gears, Vessels using Polyvalent ‘active’ gears only, Vessels using hooks, Drift and/or fixed netters, Vessels using Pots and/or traps, Vessels using other Passive gears, Vessels using Polyvalent ‘passive’ gears only, Vessels using active and passive gears | D13: 0-<10 m, 10-<12 m, 12-<18 m, 18-<24 m, 24-40 m, 40 m or larger | F13: E | G13: Investments in tangible assets, net | H13: Questionnaires/Tax declarations/Logbooks/Monthly Journals | I13: A - Census | J13: A | K13: 100 | M13: 911 | N13: 719.69 | O13: 0.79 | P13: 0.79 | Q13: 0.79
A14: SWE | B14: Baltic Sea, North Sea and Eastern Arctic, and North Atlantic | C14: Beam trawlers, Demersal trawlers and/or demersal seiners, Pelagic trawlers, Purse seiners, Dredgers, Vessel using other active gears, Vessels using Polyvalent ‘active’ gears only, Vessels using hooks, Drift and/or fixed netters, Vessels using Pots and/or traps, Vessels using other Passive gears, Vessels using Polyvalent ‘passive’ gears only, Vessels using active and passive gears | D14: 0-<10 m, 10-<12 m, 12-<18 m, 18-<24 m, 24-40 m, 40 m or larger | F14: E | G14: Lease/rental payments for quota or other fishing rights | H14: Questionnaires/Tax declarations/Logbooks/Monthly Journals | I14: A - Census | J14: A | K14: 100 | M14: 911 | N14: NA | O14: NA | P14: NA | R14: Not applicable. This variable is not presented seperately. It is included in Variable costs.
A15: SWE | B15: Baltic Sea, North Sea and Eastern Arctic, and North Atlantic | C15: Beam trawlers, Demersal trawlers and/or demersal seiners, Pelagic trawlers, Purse seiners, Dredgers, Vessel using other active gears, Vessels using Polyvalent ‘active’ gears only, Vessels using hooks, Drift and/or fixed netters, Vessels using Pots and/or traps, Vessels using other Passive gears, Vessels using Polyvalent ‘passive’ gears only, Vessels using active and passive gears | D15: 0-<10 m, 10-<12 m, 12-<18 m, 18-<24 m, 24-40 m, 40 m or larger | F15: E | G15: Long/short Debt | H15: Questionnaires/Tax declarations/Logbooks/Monthly Journals | I15: A - Census | J15: A | K15: 100 | M15: 911 | N15: 838.12 | O15: 0.92 | P15: 0.92 | Q15: 0.92
A16: SWE | B16: Baltic Sea, North Sea and Eastern Arctic, and North Atlantic | C16: Beam trawlers, Demersal trawlers and/or demersal seiners, Pelagic trawlers, Purse seiners, Dredgers, Vessel using other active gears, Vessels using Polyvalent ‘active’ gears only, Vessels using hooks, Drift and/or fixed netters, Vessels using Pots and/or traps, Vessels using other Passive gears, Vessels using Polyvalent ‘passive’ gears only, Vessels using active and passive gears | D16: 0-<10 m, 10-<12 m, 12-<18 m, 18-<24 m, 24-40 m, 40 m or larger | F16: E | G16: Mean age of vessels | H16: EU Fleet register | I16: A - Census | J16: A | K16: 100 | M16: 911 | N16: 911 | O16: 1 | P16: 1 | Q16: 1
A17: SWE | B17: Baltic Sea, North Sea and Eastern Arctic, and North Atlantic | C17: Beam trawlers, Demersal trawlers and/or demersal seiners, Pelagic trawlers, Purse seiners, Dredgers, Vessel using other active gears, Vessels using Polyvalent ‘active’ gears only, Vessels using hooks, Drift and/or fixed netters, Vessels using Pots and/or traps, Vessels using other Passive gears, Vessels using Polyvalent ‘passive’ gears only, Vessels using active and passive gears | D17: 0-<10 m, 10-<12 m, 12-<18 m, 18-<24 m, 24-40 m, 40 m or larger | F17: E | G17: Mean LOA of vessels | H17: EU Fleet register | I17: A - Census | J17: A | K17: 100 | M17: 911 | N17: 911 | O17: 1 | P17: 1 | Q17: 1
A18: SWE | B18: Baltic Sea, North Sea and Eastern Arctic, and North Atlantic | C18: Beam trawlers, Demersal trawlers and/or demersal seiners, Pelagic trawlers, Purse seiners, Dredgers, Vessel using other active gears, Vessels using Polyvalent ‘active’ gears only, Vessels using hooks, Drift and/or fixed netters, Vessels using Pots and/or traps, Vessels using other Passive gears, Vessels using Polyvalent ‘passive’ gears only, Vessels using active and passive gears | D18: 0-<10 m, 10-<12 m, 12-<18 m, 18-<24 m, 24-40 m, 40 m or larger | F18: E | G18: Non-variable costs | H18: Questionnaires/Tax declarations/Logbooks/Monthly Journals | I18: A - Census | J18: A | K18: 100 | M18: 911 | N18: 728.8 | O18: 0.8 | P18: 0.8 | Q18: 0.8
A19: SWE | B19: Baltic Sea, North Sea and Eastern Arctic, and North Atlantic | C19: Beam trawlers, Demersal trawlers and/or demersal seiners, Pelagic trawlers, Purse seiners, Dredgers, Vessel using other active gears, Vessels using Polyvalent ‘active’ gears only, Vessels using hooks, Drift and/or fixed netters, Vessels using Pots and/or traps, Vessels using other Passive gears, Vessels using Polyvalent ‘passive’ gears only, Vessels using active and passive gears | D19: 0-<10 m, 10-<12 m, 12-<18 m, 18-<24 m, 24-40 m, 40 m or larger | F19: E | G19: Number of fishing enterprises/units | H19: Questionnaires/Tax declarations/Logbooks/Monthly Journals | I19: A - Census | J19: A | K19: 100 | M19: 911 | N19: 911 | O19: 1 | P19: 1 | Q19: 1
A20: SWE | B20: Baltic Sea, North Sea and Eastern Arctic, and North Atlantic | C20: Beam trawlers, Demersal trawlers and/or demersal seiners, Pelagic trawlers, Purse seiners, Dredgers, Vessel using other active gears, Vessels using Polyvalent ‘active’ gears only, Vessels using hooks, Drift and/or fixed netters, Vessels using Pots and/or traps, Vessels using other Passive gears, Vessels using Polyvalent ‘passive’ gears only, Vessels using active and passive gears | D20: 0-<10 m, 10-<12 m, 12-<18 m, 18-<24 m, 24-40 m, 40 m or larger | F20: E | G20: Number of vessels | H20: EU Fleet register | I20: A - Census | J20: A | K20: 100 | M20: 911 | N20: 911 | O20: 1 | P20: 1 | Q20: 1
A21: SWE | B21: Baltic Sea, North Sea and Eastern Arctic, and North Atlantic | C21: Beam trawlers, Demersal trawlers and/or demersal seiners, Pelagic trawlers, Purse seiners, Dredgers, Vessel using other active gears, Vessels using Polyvalent ‘active’ gears only, Vessels using hooks, Drift and/or fixed netters, Vessels using Pots and/or traps, Vessels using other Passive gears, Vessels using Polyvalent ‘passive’ gears only, Vessels using active and passive gears | D21: 0-<10 m, 10-<12 m, 12-<18 m, 18-<24 m, 24-40 m, 40 m or larger | F21: E | G21: Operating subsidies | H21: Questionnaires/Tax declarations/Logbooks/Monthly Journals | I21: A - Census | J21: A | K21: 100 | M21: 911 | N21: NA | O21: NA | P21: NA | R21: No subsidies.
A22: SWE | B22: Baltic Sea, North Sea and Eastern Arctic, and North Atlantic | C22: Beam trawlers, Demersal trawlers and/or demersal seiners, Pelagic trawlers, Purse seiners, Dredgers, Vessel using other active gears, Vessels using Polyvalent ‘active’ gears only, Vessels using hooks, Drift and/or fixed netters, Vessels using Pots and/or traps, Vessels using other Passive gears, Vessels using Polyvalent ‘passive’ gears only, Vessels using active and passive gears | D22: 0-<10 m, 10-<12 m, 12-<18 m, 18-<24 m, 24-40 m, 40 m or larger | F22: E | G22: Other income | H22: Questionnaires/Tax declarations/Logbooks/Monthly Journals | I22: A - Census | J22: A | K22: 100 | M22: 911 | N22: 838.12 | O22: 0.92 | P22: 0.92 | Q22: 0.92
A23: SWE | B23: Baltic Sea, North Sea and Eastern Arctic, and North Atlantic | C23: Beam trawlers, Demersal trawlers and/or demersal seiners, Pelagic trawlers, Purse seiners, Dredgers, Vessel using other active gears, Vessels using Polyvalent ‘active’ gears only, Vessels using hooks, Drift and/or fixed netters, Vessels using Pots and/or traps, Vessels using other Passive gears, Vessels using Polyvalent ‘passive’ gears only, Vessels using active and passive gears | D23: 0-<10 m, 10-<12 m, 12-<18 m, 18-<24 m, 24-40 m, 40 m or larger | F23: E | G23: Personnel costs | H23: Questionnaires/Tax declarations/Logbooks/Monthly Journals | I23: A - Census | J23: A | K23: 100 | M23: 911 | N23: 819.9 | O23: 0.9 | P23: 0.9 | Q23: 0.9
A24: SWE | B24: Baltic Sea, North Sea and Eastern Arctic, and North Atlantic | C24: Beam trawlers, Demersal trawlers and/or demersal seiners, Pelagic trawlers, Purse seiners, Dredgers, Vessel using other active gears, Vessels using Polyvalent ‘active’ gears only, Vessels using hooks, Drift and/or fixed netters, Vessels using Pots and/or traps, Vessels using other Passive gears, Vessels using Polyvalent ‘passive’ gears only, Vessels using active and passive gears | D24: 0-<10 m, 10-<12 m, 12-<18 m, 18-<24 m, 24-40 m, 40 m or larger | F24: E | G24: Repair and maintenance costs | H24: Questionnaires/Tax declarations/Logbooks/Monthly Journals | I24: A - Census | J24: A | K24: 100 | M24: 911 | N24: 710.58 | O24: 0.78 | P24: 0.78 | Q24: 0.78
A25: SWE | B25: Baltic Sea, North Sea and Eastern Arctic, and North Atlantic | C25: Beam trawlers, Demersal trawlers and/or demersal seiners, Pelagic trawlers, Purse seiners, Dredgers, Vessel using other active gears, Vessels using Polyvalent ‘active’ gears only, Vessels using hooks, Drift and/or fixed netters, Vessels using Pots and/or traps, Vessels using other Passive gears, Vessels using Polyvalent ‘passive’ gears only, Vessels using active and passive gears | D25: 0-<10 m, 10-<12 m, 12-<18 m, 18-<24 m, 24-40 m, 40 m or larger | F25: E | G25: Subsidies on investments | H25: Questionnaires/Tax declarations/Logbooks/Monthly Journals | I25: A - Census | J25: A | K25: 100 | M25: 911 | N25: NA | O25: NA | P25: NA | R25: No subsidies.
A26: SWE | B26: Baltic Sea, North Sea and Eastern Arctic, and North Atlantic | C26: Beam trawlers, Demersal trawlers and/or demersal seiners, Pelagic trawlers, Purse seiners, Dredgers, Vessel using other active gears, Vessels using Polyvalent ‘active’ gears only, Vessels using hooks, Drift and/or fixed netters, Vessels using Pots and/or traps, Vessels using other Passive gears, Vessels using Polyvalent ‘passive’ gears only, Vessels using active and passive gears | D26: 0-<10 m, 10-<12 m, 12-<18 m, 18-<24 m, 24-40 m, 40 m or larger | F26: E | G26: Total assets | H26: Questionnaires/Tax declarations/Logbooks/Monthly Journals | I26: A - Census | J26: A | K26: 100 | M26: 911 | N26: 838.12 | O26: 0.92 | P26: 0.92 | Q26: 0.92
A27: SWE | B27: Baltic Sea, North Sea and Eastern Arctic, and North Atlantic | C27: Beam trawlers, Demersal trawlers and/or demersal seiners, Pelagic trawlers, Purse seiners, Dredgers, Vessel using other active gears, Vessels using Polyvalent ‘active’ gears only, Vessels using hooks, Drift and/or fixed netters, Vessels using Pots and/or traps, Vessels using other Passive gears, Vessels using Polyvalent ‘passive’ gears only, Vessels using active and passive gears | D27: 0-<10 m, 10-<12 m, 12-<18 m, 18-<24 m, 24-40 m, 40 m or larger | F27: E | G27: Total hours worked per year | H27: Questionnaires/Tax declarations/Logbooks/Monthly Journals | I27: A - Census | J27: A | K27: 100 | M27: 911 | N27: 255.08 | O27: 0.28 | P27: 0.28 | Q27: 0.28
A28: SWE | B28: Baltic Sea, North Sea and Eastern Arctic, and North Atlantic | C28: Beam trawlers, Demersal trawlers and/or demersal seiners, Pelagic trawlers, Purse seiners, Dredgers, Vessel using other active gears, Vessels using Polyvalent ‘active’ gears only, Vessels using hooks, Drift and/or fixed netters, Vessels using Pots and/or traps, Vessels using other Passive gears, Vessels using Polyvalent ‘passive’ gears only, Vessels using active and passive gears | D28: 0-<10 m, 10-<12 m, 12-<18 m, 18-<24 m, 24-40 m, 40 m or larger | F28: E | G28: Total vessel's power | H28: EU Fleet register | I28: A - Census | J28: A | K28: 100 | M28: 911 | N28: 911 | O28: 1 | P28: 1 | Q28: 1
A29: SWE | B29: Baltic Sea, North Sea and Eastern Arctic, and North Atlantic | C29: Beam trawlers, Demersal trawlers and/or demersal seiners, Pelagic trawlers, Purse seiners, Dredgers, Vessel using other active gears, Vessels using Polyvalent ‘active’ gears only, Vessels using hooks, Drift and/or fixed netters, Vessels using Pots and/or traps, Vessels using other Passive gears, Vessels using Polyvalent ‘passive’ gears only, Vessels using active and passive gears | D29: 0-<10 m, 10-<12 m, 12-<18 m, 18-<24 m, 24-40 m, 40 m or larger | F29: E | G29: Total vessel's tonnage | H29: EU Fleet register | I29: A - Census | J29: A | K29: 100 | M29: 911 | N29: 911 | O29: 1 | P29: 1 | Q29: 1
A30: SWE | B30: Baltic Sea, North Sea and Eastern Arctic, and North Atlantic | C30: Beam trawlers, Demersal trawlers and/or demersal seiners, Pelagic trawlers, Purse seiners, Dredgers, Vessel using other active gears, Vessels using Polyvalent ‘active’ gears only, Vessels using hooks, Drift and/or fixed netters, Vessels using Pots and/or traps, Vessels using other Passive gears, Vessels using Polyvalent ‘passive’ gears only, Vessels using active and passive gears | D30: 0-<10 m, 10-<12 m, 12-<18 m, 18-<24 m, 24-40 m, 40 m or larger | F30: E | G30: Unpaid labour | H30: Questionnaires/Tax declarations/Logbooks/Monthly Journals | I30: A - Census | J30: A | K30: 100 | M30: 911 | N30: 583.04 | O30: 0.64 | P30: 0.64 | Q30: 0.64
A31: SWE | B31: Baltic Sea, North Sea and Eastern Arctic, and North Atlantic | C31: Beam trawlers, Demersal trawlers and/or demersal seiners, Pelagic trawlers, Purse seiners, Dredgers, Vessel using other active gears, Vessels using Polyvalent ‘active’ gears only, Vessels using hooks, Drift and/or fixed netters, Vessels using Pots and/or traps, Vessels using other Passive gears, Vessels using Polyvalent ‘passive’ gears only, Vessels using active and passive gears | D31: 0-<10 m, 10-<12 m, 12-<18 m, 18-<24 m, 24-40 m, 40 m or larger | F31: E | G31: Value of landings per species | H31: Logbooks/Monthly Journals/Landing declarations | I31: A - Census | J31: A | K31: 100 | M31: 911 | N31: 911 | O31: 1 | P31: 1 | Q31: 1
A32: SWE | B32: Baltic Sea, North Sea and Eastern Arctic, and North Atlantic | C32: Beam trawlers, Demersal trawlers and/or demersal seiners, Pelagic trawlers, Purse seiners, Dredgers, Vessel using other active gears, Vessels using Polyvalent ‘active’ gears only, Vessels using hooks, Drift and/or fixed netters, Vessels using Pots and/or traps, Vessels using other Passive gears, Vessels using Polyvalent ‘passive’ gears only, Vessels using active and passive gears | D32: 0-<10 m, 10-<12 m, 12-<18 m, 18-<24 m, 24-40 m, 40 m or larger | F32: E | G32: Value of physical capital | H32: Questionnaires/Tax declarations/Logbooks/Monthly Journals | I32: A - Census | J32: A | K32: 100 | M32: 911 | N32: 619.48 | O32: 0.68 | P32: 0.68 | Q32: 0.68
A33: SWE | B33: Baltic Sea, North Sea and Eastern Arctic, and North Atlantic | C33: Beam trawlers, Demersal trawlers and/or demersal seiners, Pelagic trawlers, Purse seiners, Dredgers, Vessel using other active gears, Vessels using Polyvalent ‘active’ gears only, Vessels using hooks, Drift and/or fixed netters, Vessels using Pots and/or traps, Vessels using other Passive gears, Vessels using Polyvalent ‘passive’ gears only, Vessels using active and passive gears | D33: 0-<10 m, 10-<12 m, 12-<18 m, 18-<24 m, 24-40 m, 40 m or larger | F33: E | G33: Value of quota and other fishing rights | H33: Questionnaires/Tax declarations/Logbooks/Monthly Journals | I33: A - Census | J33: A | K33: 100 | M33: 911 | N33: NA | O33: NA | P33: NA | R33: NA
A34: SWE | B34: Baltic Sea, North Sea and Eastern Arctic, and North Atlantic | C34: Beam trawlers, Demersal trawlers and/or demersal seiners, Pelagic trawlers, Purse seiners, Dredgers, Vessel using other active gears, Vessels using Polyvalent ‘active’ gears only, Vessels using hooks, Drift and/or fixed netters, Vessels using Pots and/or traps, Vessels using other Passive gears, Vessels using Polyvalent ‘passive’ gears only, Vessels using active and passive gears | D34: 0-<10 m, 10-<12 m, 12-<18 m, 18-<24 m, 24-40 m, 40 m or larger | F34: E | G34: Value of unpaid labour | H34: Questionnaires/Tax declarations/Logbooks/Monthly Journals | I34: A - Census | J34: A | K34: 100 | M34: 911 | N34: 747.02 | O34: 0.82 | P34: 0.82 | Q34: 0.82
A35: SWE | B35: Baltic Sea, North Sea and Eastern Arctic, and North Atlantic | C35: Beam trawlers, Demersal trawlers and/or demersal seiners, Pelagic trawlers, Purse seiners, Dredgers, Vessel using other active gears, Vessels using Polyvalent ‘active’ gears only, Vessels using hooks, Drift and/or fixed netters, Vessels using Pots and/or traps, Vessels using other Passive gears, Vessels using Polyvalent ‘passive’ gears only, Vessels using active and passive gears | D35: 0-<10 m, 10-<12 m, 12-<18 m, 18-<24 m, 24-40 m, 40 m or larger | F35: E | G35: Variable costs | H35: Questionnaires/Tax declarations/Logbooks/Monthly Journals | I35: A - Census | J35: A | K35: 100 | M35: 911 | N35: 728.8 | O35: 0.8 | P35: 0.8 | Q35: 0.8
A36: SWE | B36: Baltic Sea, North Sea and Eastern Arctic, and North Atlantic | C36: N/A | D36: 0-<10 m, 10-<12 m, 12-<18 m, 18-<24 m, 24-40 m, 40 m or larger | F36: E | G36: Consumption of fixed capital | H36: Questionnaires/Tax declarations/Logbooks/Monthly Journals | I36: A - Census | J36: A | K36: 100 | M36: 298 | N36: 202.64 | O36: 0.68 | P36: 0.68 | Q36: 0.68 | R36: Consumption of fixed capital for inactive vessels are estimated via a proxy, which is active vessels within same length and gear segments. Achieved sample rate refers to achieved sample rate in the active segment.
A37: SWE | B37: Baltic Sea, North Sea and Eastern Arctic, and North Atlantic | C37: N/A | D37: 0-<10 m, 10-<12 m, 12-<18 m, 18-<24 m, 24-40 m, 40 m or larger | F37: E | G37: Mean age of vessels | H37: EU Fleet register | I37: A - Census | J37: A | K37: 100 | M37: 298 | N37: 298 | O37: 1 | P37: 1 | Q37: 1
A38: SWE | B38: Baltic Sea, North Sea and Eastern Arctic, and North Atlantic | C38: N/A | D38: 0-<10 m, 10-<12 m, 12-<18 m, 18-<24 m, 24-40 m, 40 m or larger | F38: E | G38: Mean LOA of vessels | H38: EU Fleet register | I38: A - Census | J38: A | K38: 100 | M38: 298 | N38: 298 | O38: 1 | P38: 1 | Q38: 1
A39: SWE | B39: Baltic Sea, North Sea and Eastern Arctic, and North Atlantic | C39: N/A | D39: 0-<10 m, 10-<12 m, 12-<18 m, 18-<24 m, 24-40 m, 40 m or larger | F39: E | G39: Number of vessels | H39: EU Fleet register | I39: A - Census | J39: A | K39: 100 | M39: 298 | N39: 298 | O39: 1 | P39: 1 | Q39: 1
A40: SWE | B40: Baltic Sea, North Sea and Eastern Arctic, and North Atlantic | C40: N/A | D40: 0-<10 m, 10-<12 m, 12-<18 m, 18-<24 m, 24-40 m, 40 m or larger | F40: E | G40: Total vessel's power | H40: EU Fleet register | I40: A - Census | J40: A | K40: 100 | M40: 298 | N40: 298 | O40: 1 | P40: 1 | Q40: 1
A41: SWE | B41: Baltic Sea, North Sea and Eastern Arctic, and North Atlantic | C41: N/A | D41: 0-<10 m, 10-<12 m, 12-<18 m, 18-<24 m, 24-40 m, 40 m or larger | F41: E | G41: Total vessel's tonnage | H41: EU Fleet register | I41: A - Census | J41: A | K41: 100 | M41: 298 | N41: 298 | O41: 1 | P41: 1 | Q41: 1
A42: SWE | B42: Baltic Sea, North Sea and Eastern Arctic, and North Atlantic | C42: N/A | D42: 0-<10 m, 10-<12 m, 12-<18 m, 18-<24 m, 24-40 m, 40 m or larger | F42: E | G42: Value of physical capital | H42: Questionnaires/Tax declarations/Logbooks/Monthly Journals | I42: A - Census | J42: A | K42: 100 | M42: 298 | N42: 202.64 | O42: 0.68 | P42: 0.68 | Q42: 0.68 | R42: Value of physical capital for inactive vessels are estimated via a proxy, which is active vessels within same length and gear segments. Achieved sample rate refers to achieved sample rate in the active segment.
A43: SWE | B43: Baltic Sea, North Sea and Eastern Arctic, and North Atlantic | C43: N/A | D43: 0-<10 m, 10-<12 m, 12-<18 m, 18-<24 m, 24-40 m, 40 m or larger | F43: E | G43: Value of quota and other fishing rights | H43: Questionnaires/Tax declarations/Logbooks/Monthly Journals | I43: A - Census | J43: A | K43: 100 | M43: 298 | N43: NA | O43: NA | P43: NA | R43: NA
A44: SWE | B44: Baltic Sea, North Sea and Eastern Arctic, and North Atlantic | C44: Beam trawlers, Demersal trawlers and/or demersal seiners, Pelagic trawlers, Purse seiners, Dredgers, Vessel using other active gears, Vessels using Polyvalent ‘active’ gears only, Vessels using hooks, Drift and/or fixed netters, Vessels using Pots and/or traps, Vessels using other Passive gears, Vessels using Polyvalent ‘passive’ gears only, Vessels using active and passive gears | D44: 0-<10 m, 10-<12 m, 12-<18 m, 18-<24 m, 24-40 m, 40 m or larger | F44: S | G44: Employment by age | H44: Questionnaire | I44: A - Census | J44: Every third year | K44: 100 | M44: 911 | N44: 573.93 | O44: 0.63 | P44: 0.63 | Q44: 0.63
A45: SWE | B45: Baltic Sea, North Sea and Eastern Arctic, and North Atlantic | C45: Beam trawlers, Demersal trawlers and/or demersal seiners, Pelagic trawlers, Purse seiners, Dredgers, Vessel using other active gears, Vessels using Polyvalent ‘active’ gears only, Vessels using hooks, Drift and/or fixed netters, Vessels using Pots and/or traps, Vessels using other Passive gears, Vessels using Polyvalent ‘passive’ gears only, Vessels using active and passive gears | D45: 0-<10 m, 10-<12 m, 12-<18 m, 18-<24 m, 24-40 m, 40 m or larger | F45: S | G45: Employment by education level | H45: Questionnaire | I45: A - Census | J45: Every third year | K45: 100 | M45: 911 | N45: 236.86 | O45: 0.26 | P45: 0.26 | Q45: 0.26
A46: SWE | B46: Baltic Sea, North Sea and Eastern Arctic, and North Atlantic | C46: Beam trawlers, Demersal trawlers and/or demersal seiners, Pelagic trawlers, Purse seiners, Dredgers, Vessel using other active gears, Vessels using Polyvalent ‘active’ gears only, Vessels using hooks, Drift and/or fixed netters, Vessels using Pots and/or traps, Vessels using other Passive gears, Vessels using Polyvalent ‘passive’ gears only, Vessels using active and passive gears | D46: 0-<10 m, 10-<12 m, 12-<18 m, 18-<24 m, 24-40 m, 40 m or larger | F46: S | G46: Employment by employment status | H46: Questionnaire | I46: A - Census | J46: Every third year | K46: 100 | M46: 911 | N46: 583.04 | O46: 0.64 | P46: 0.64 | Q46: 0.64
A47: SWE | B47: Baltic Sea, North Sea and Eastern Arctic, and North Atlantic | C47: Beam trawlers, Demersal trawlers and/or demersal seiners, Pelagic trawlers, Purse seiners, Dredgers, Vessel using other active gears, Vessels using Polyvalent ‘active’ gears only, Vessels using hooks, Drift and/or fixed netters, Vessels using Pots and/or traps, Vessels using other Passive gears, Vessels using Polyvalent ‘passive’ gears only, Vessels using active and passive gears | D47: 0-<10 m, 10-<12 m, 12-<18 m, 18-<24 m, 24-40 m, 40 m or larger | F47: S | G47: Employment by gender | H47: Questionnaire | I47: A - Census | J47: Every third year | K47: 100 | M47: 911 | N47: 583.04 | O47: 0.64 | P47: 0.64 | Q47: 0.64
A48: SWE | B48: Baltic Sea, North Sea and Eastern Arctic, and North Atlantic | C48: Beam trawlers, Demersal trawlers and/or demersal seiners, Pelagic trawlers, Purse seiners, Dredgers, Vessel using other active gears, Vessels using Polyvalent ‘active’ gears only, Vessels using hooks, Drift and/or fixed netters, Vessels using Pots and/or traps, Vessels using other Passive gears, Vessels using Polyvalent ‘passive’ gears only, Vessels using active and passive gears | D48: 0-<10 m, 10-<12 m, 12-<18 m, 18-<24 m, 24-40 m, 40 m or larger | F48: S | G48: Employment by nationality | H48: Questionnaire | I48: A - Census | J48: Every third year | K48: 100 | M48: 911 | N48: 346.18 | O48: 0.38 | P48: 0.38 | Q48: 0.38
A49: SWE | B49: Baltic Sea, North Sea and Eastern Arctic, and North Atlantic | C49: Beam trawlers, Demersal trawlers and/or demersal seiners, Pelagic trawlers, Purse seiners, Dredgers, Vessel using other active gears, Vessels using Polyvalent ‘active’ gears only, Vessels using hooks, Drift and/or fixed netters, Vessels using Pots and/or traps, Vessels using other Passive gears, Vessels using Polyvalent ‘passive’ gears only, Vessels using active and passive gears | D49: 0-<10 m, 10-<12 m, 12-<18 m, 18-<24 m, 24-40 m, 40 m or larger | F49: S | G49: Full time equivalent by gender | H49: Questionnaire | I49: A - Census | J49: Every third year | K49: 100 | M49: 911 | N49: 583.04 | O49: 0.64 | P49: 0.64 | Q49: 0.64
A50: SWE | B50: Baltic Sea, North Sea and Eastern Arctic, and North Atlantic | C50: Beam trawlers, Demersal trawlers and/or demersal seiners, Pelagic trawlers, Purse seiners, Dredgers, Vessel using other active gears, Vessels using Polyvalent ‘active’ gears only, Vessels using hooks, Drift and/or fixed netters, Vessels using Pots and/or traps, Vessels using other Passive gears, Vessels using Polyvalent ‘passive’ gears only, Vessels using active and passive gears | D50: 0-<10 m, 10-<12 m, 12-<18 m, 18-<24 m, 24-40 m, 40 m or larger | F50: S | G50: Full time equivalent by nationality | H50: Questionnaire | I50: A - Census | J50: Every third year | K50: 100 | M50: 911 | N50: 346.18 | O50: 0.38 | P50: 0.38 | Q50: 0.38
A51: SWE | B51: Baltic Sea, North Sea and Eastern Arctic, and North Atlantic | C51: Beam trawlers, Demersal trawlers and/or demersal seiners, Pelagic trawlers, Purse seiners, Dredgers, Vessel using other active gears, Vessels using Polyvalent ‘active’ gears only, Vessels using hooks, Drift and/or fixed netters, Vessels using Pots and/or traps, Vessels using other Passive gears, Vessels using Polyvalent ‘passive’ gears only, Vessels using active and passive gears | D51: 0-<10 m, 10-<12 m, 12-<18 m, 18-<24 m, 24-40 m, 40 m or larger | F51: S | G51: Unpaid labour by gender | H51: Questionnaire | I51: A - Census | J51: Every third year | K51: 100 | M51: 911 | N51: 573.93 | O51: 0.63 | P51: 0.63 | Q51: 0.63

Sheet Table3B Pop segments aquacultur
A1: Table 3B: Population segments for collection of economic and social data for aquaculture
Q2: WP years | R2: 2018-2019
Q3: AR year | R3: 2018
A4: MS | B4: Techniques | C4: Species group | D4: Type of variables (E/S) | E4: Variable | F4: Data source | G4: Type of data collection scheme | H4: Threshold (Y/N) | I4: Threshold Type | J4: Frequency | K4: Planned sample rate % | L4: Comments | M4: Frame population | N4: Achieved sample number | O4: Achieved Sample Rate % | P4: Response Rate % | Q4: Achieved Sample no/Planned sample no. | R4: AR Comment
A5: SWE | B5: Hatcheries and nurseries | C5: Salmon and trout | D5: E | E5: Gross sales | F5: Financial accounts | G5: A - Census | H5: Y | I5: 3 | J5: every year | K5: 100 | L5: Salmon and trout needs to be clustered | M5: 136 | N5: 0 | O5: =N5/M5 -> 0 | P5: =O5 -> 0 | Q5: =N5/(M5*K5/100) -> 0 | R5: Segment 8.8 - data quality is too poor to be collected from national register
A6: SWE | B6: Ponds | C6: Other freshwater fish | D6: E | E6: Gross sales | F6: Financial accounts | G6: A - Census | H6: Y | I6: 3 | J6: every year | K6: 100 | M6: 136 | N6: 74 | O6: =N6/M6 -> 0.5441176471 | P6: =O6 -> 0.5441176471 | Q6: =N6/(M6*K6/100) -> 0.5441176471
A7: SWE | B7: Recirculating systems | C7: Other freshwater fish | D7: E | E7: Gross sales | F7: Financial accounts | G7: A - Census | H7: Y | I7: 3 | J7: every year | K7: 100 | M7: 136 | N7: 74 | O7: 0.5441176471 | P7: 0.5441176471 | Q7: 0.5441176471
A8: SWE | B8: Cages | C8: Other freshwater fish | D8: E | E8: Gross sales | F8: Financial accounts | G8: A - Census | H8: Y | I8: 3 | J8: every year | K8: 100 | M8: 136 | N8: 74 | O8: 0.5441176471 | P8: 0.5441176471 | Q8: 0.5441176471
A9: SWE | B9: Polyculture | C9: Other freshwater fish | D9: E | E9: Gross sales | F9: Financial accounts | G9: A - Census | H9: Y | I9: 3 | J9: every year | K9: 100 | M9: 136 | N9: 74 | O9: 0.5441176471 | P9: 0.5441176471 | Q9: 0.5441176471 | R9: replaced with "Tanks and raceways" seg8.2
A10: SWE | B10: Hatcheries and nurseries | C10: Other freshwater fish | D10: E | E10: Gross sales | F10: Financial accounts | G10: A - Census | H10: Y | I10: 3 | J10: every year | K10: 100 | M10: 136 | N10: 74 | O10: 0.5441176471 | P10: 0.5441176471 | Q10: 0.5441176471
A11: SWE | B11: Other | C11: Mussels and Oysters | D11: E | E11: Gross sales | F11: Financial accounts | G11: A - Census | H11: Y | I11: 3 | J11: every year | K11: 100 | L11: Mussels and Oysters needs to be clustered | M11: 136 | N11: 74 | O11: 0.5441176471 | P11: 0.5441176471 | Q11: 0.5441176471
A12: SWE | B12: Other | C12: Crustaceans | D12: E | E12: Gross sales | F12: Financial accounts | G12: A - Census | H12: Y | I12: 3 | J12: every year | K12: 100 | M12: 136 | N12: 74 | O12: 0.5441176471 | P12: 0.5441176471 | Q12: 0.5441176471
A13: SWE | B13: Hatcheries and nurseries | C13: Salmon and trout | D13: E | E13: Operating subsidies | F13: Managing authority | G13: A - Census | H13: Y | I13: 3 | J13: every year | K13: 100 | L13: Salmon and trout needs to be clustered | M13: 136 | N13: N/A | O13: N/A | P13: N/A | Q13: N/A | R13: No such funds exist in Sweden
A14: SWE | B14: Ponds | C14: Other freshwater fish | D14: E | E14: Operating subsidies | F14: Managing authority | G14: A - Census | H14: Y | I14: 3 | J14: every year | K14: 100 | M14: 136 | N14: N/A | O14: N/A | P14: N/A | Q14: N/A | R14: No such funds exist in Sweden
A15: SWE | B15: Recirculating systems | C15: Other freshwater fish | D15: E | E15: Operating subsidies | F15: Managing authority | G15: A - Census | H15: Y | I15: 3 | J15: every year | K15: 100 | M15: 136 | N15: N/A | O15: N/A | P15: N/A | Q15: N/A | R15: No such funds exist in Sweden
A16: SWE | B16: Cages | C16: Other freshwater fish | D16: E | E16: Operating subsidies | F16: Managing authority | G16: A - Census | H16: Y | I16: 3 | J16: every year | K16: 100 | M16: 136 | N16: N/A | O16: N/A | P16: N/A | Q16: N/A | R16: No such funds exist in Sweden
A17: SWE | B17: Polyculture | C17: Other freshwater fish | D17: E | E17: Operating subsidies | F17: Managing authority | G17: A - Census | H17: Y | I17: 3 | J17: every year | K17: 100 | M17: 136 | N17: N/A | O17: N/A | P17: N/A | Q17: N/A | R17: No such funds exist in Sweden
A18: SWE | B18: Hatcheries and nurseries | C18: Other freshwater fish | D18: E | E18: Operating subsidies | F18: Managing authority | G18: A - Census | H18: Y | I18: 3 | J18: every year | K18: 100 | M18: 136 | N18: N/A | O18: N/A | P18: N/A | Q18: N/A | R18: No such funds exist in Sweden
A19: SWE | B19: Other | C19: Mussels and Oysters | D19: E | E19: Operating subsidies | F19: Managing authority | G19: A - Census | H19: Y | I19: 3 | J19: every year | K19: 100 | L19: Mussels and Oysters needs to be clustered | M19: 136 | N19: N/A | O19: N/A | P19: N/A | Q19: N/A | R19: No such funds exist in Sweden
A20: SWE | B20: Other | C20: Crustaceans | D20: E | E20: Operating subsidies | F20: Managing authority | G20: A - Census | H20: Y | I20: 3 | J20: every year | K20: 100 | M20: 136 | N20: N/A | O20: N/A | P20: N/A | Q20: N/A | R20: No such funds exist in Sweden
A21: SWE | B21: Hatcheries and nurseries | C21: Salmon and trout | D21: E | E21: Subsidies on investment | F21: Managing authority | G21: A - Census | H21: Y | I21: 3 | J21: every year | K21: 100 | L21: Salmon and trout needs to be clustered | M21: 136 | N21: 136 | O21: 1 | P21: 1 | Q21: 1 | R21: Only available as total
A22: SWE | B22: Ponds | C22: Other freshwater fish | D22: E | E22: Subsidies on investment | F22: Managing authority | G22: A - Census | H22: Y | I22: 3 | J22: every year | K22: 100 | M22: 136 | N22: 136 | O22: 1 | P22: 1 | Q22: 1 | R22: Only available as total
A23: SWE | B23: Recirculating systems | C23: Other freshwater fish | D23: E | E23: Subsidies on investment | F23: Managing authority | G23: A - Census | H23: Y | I23: 3 | J23: every year | K23: 100 | M23: 136 | N23: 136 | O23: 1 | P23: 1 | Q23: 1 | R23: Only available as total
A24: SWE | B24: Cages | C24: Other freshwater fish | D24: E | E24: Subsidies on investment | F24: Managing authority | G24: A - Census | H24: Y | I24: 3 | J24: every year | K24: 100 | M24: 136 | N24: 136 | O24: 1 | P24: 1 | Q24: 1 | R24: Only available as total
A25: SWE | B25: Polyculture | C25: Other freshwater fish | D25: E | E25: Subsidies on investment | F25: Managing authority | G25: A - Census | H25: Y | I25: 3 | J25: every year | K25: 100 | M25: 136 | N25: 136 | O25: 1 | P25: 1 | Q25: 1 | R25: Only available as total
A26: SWE | B26: Hatcheries and nurseries | C26: Other freshwater fish | D26: E | E26: Subsidies on investment | F26: Managing authority | G26: A - Census | H26: Y | I26: 3 | J26: every year | K26: 100 | M26: 136 | N26: 136 | O26: 1 | P26: 1 | Q26: 1 | R26: Only available as total
A27: SWE | B27: Other | C27: Mussels and Oysters | D27: E | E27: Subsidies on investment | F27: Managing authority | G27: A - Census | H27: Y | I27: 3 | J27: every year | K27: 100 | L27: Mussels and Oysters needs to be clustered | M27: 136 | N27: 136 | O27: 1 | P27: 1 | Q27: 1 | R27: Only available as total
A28: SWE | B28: Other | C28: Crustaceans | D28: E | E28: Subsidies on investment | F28: Managing authority | G28: A - Census | H28: Y | I28: 3 | J28: every year | K28: 100 | M28: 136 | N28: 136 | O28: 1 | P28: 1 | Q28: 1 | R28: Only available as total
A29: SWE | B29: Hatcheries and nurseries | C29: Salmon and trout | D29: E | E29: Other income | F29: Financial accounts | G29: A - Census | H29: Y | I29: 3 | J29: every year | K29: 100 | L29: Salmon and trout needs to be clustered | M29: 136 | N29: 0 | O29: 0 | P29: 0 | Q29: 0 | R29: Segment 8.8 - data quality is too poor to be collected from national register
A30: SWE | B30: Ponds | C30: Other freshwater fish | D30: E | E30: Other income | F30: Financial accounts | G30: A - Census | H30: Y | I30: 3 | J30: every year | K30: 100 | M30: 136 | N30: 74 | O30: 0.5441176471 | P30: 0.5441176471 | Q30: 0.5441176471
A31: SWE | B31: Recirculating systems | C31: Other freshwater fish | D31: E | E31: Other income | F31: Financial accounts | G31: A - Census | H31: Y | I31: 3 | J31: every year | K31: 100 | M31: 136 | N31: 74 | O31: 0.5441176471 | P31: 0.5441176471 | Q31: 0.5441176471
A32: SWE | B32: Cages | C32: Other freshwater fish | D32: E | E32: Other income | F32: Financial accounts | G32: A - Census | H32: Y | I32: 3 | J32: every year | K32: 100 | M32: 136 | N32: 74 | O32: 0.5441176471 | P32: 0.5441176471 | Q32: 0.5441176471
A33: SWE | B33: Polyculture | C33: Other freshwater fish | D33: E | E33: Other income | F33: Financial accounts | G33: A - Census | H33: Y | I33: 3 | J33: every year | K33: 100 | M33: 136 | N33: 74 | O33: 0.5441176471 | P33: 0.5441176471 | Q33: 0.5441176471 | R33: replaced with "Tanks and raceways" seg8.2
A34: SWE | B34: Hatcheries and nurseries | C34: Other freshwater fish | D34: E | E34: Other income | F34: Financial accounts | G34: A - Census | H34: Y | I34: 3 | J34: every year | K34: 100 | M34: 136 | N34: 74 | O34: 0.5441176471 | P34: 0.5441176471 | Q34: 0.5441176471
A35: SWE | B35: Other | C35: Mussels and Oysters | D35: E | E35: Other income | F35: Financial accounts | G35: A - Census | H35: Y | I35: 3 | J35: every year | K35: 100 | L35: Mussels and Oysters needs to be clustered | M35: 136 | N35: 74 | O35: 0.5441176471 | P35: 0.5441176471 | Q35: 0.5441176471
A36: SWE | B36: Other | C36: Crustaceans | D36: E | E36: Other income | F36: Financial accounts | G36: A - Census | H36: Y | I36: 3 | J36: every year | K36: 100 | M36: 136 | N36: 74 | O36: 0.5441176471 | P36: 0.5441176471 | Q36: 0.5441176471
A37: SWE | B37: Hatcheries and nurseries | C37: Salmon and trout | D37: E | E37: Total income | F37: Financial accounts | G37: A - Census | H37: Y | I37: 3 | J37: every year | K37: 100 | L37: Salmon and trout needs to be clustered | M37: 136 | N37: 0 | O37: 0 | P37: 0 | Q37: 0 | R37: Segment 8.8 - data quality is too poor to be collected from national register
A38: SWE | B38: Ponds | C38: Other freshwater fish | D38: E | E38: Total income | F38: Financial accounts | G38: A - Census | H38: Y | I38: 3 | J38: every year | K38: 100 | M38: 136 | N38: 74 | O38: 0.5441176471 | P38: 0.5441176471 | Q38: 0.5441176471 | R38: not a reported variable in EUM but calculated from gross sales, other income and operating subsidies
A39: SWE | B39: Recirculating systems | C39: Other freshwater fish | D39: E | E39: Total income | F39: Financial accounts | G39: A - Census | H39: Y | I39: 3 | J39: every year | K39: 100 | M39: 136 | N39: 74 | O39: 0.5441176471 | P39: 0.5441176471 | Q39: 0.5441176471 | R39: not a reported variable in EUM but calculated from gross sales, other income and operating subsidies
A40: SWE | B40: Cages | C40: Other freshwater fish | D40: E | E40: Total income | F40: Financial accounts | G40: A - Census | H40: Y | I40: 3 | J40: every year | K40: 100 | M40: 136 | N40: 74 | O40: 0.5441176471 | P40: 0.5441176471 | Q40: 0.5441176471 | R40: not a reported variable in EUM but calculated from gross sales, other income and operating subsidies
A41: SWE | B41: Polyculture | C41: Other freshwater fish | D41: E | E41: Total income | F41: Financial accounts | G41: A - Census | H41: Y | I41: 3 | J41: every year | K41: 100 | M41: 136 | N41: 74 | O41: 0.5441176471 | P41: 0.5441176471 | Q41: 0.5441176471 | R41: not a reported variable in EUM but calculated from gross sales, other income and operating subsidies
A42: SWE | B42: Hatcheries and nurseries | C42: Other freshwater fish | D42: E | E42: Total income | F42: Financial accounts | G42: A - Census | H42: Y | I42: 3 | J42: every year | K42: 100 | M42: 136 | N42: 74 | O42: 0.5441176471 | P42: 0.5441176471 | Q42: 0.5441176471 | R42: not a reported variable in EUM but calculated from gross sales, other income and operating subsidies
A43: SWE | B43: Other | C43: Mussels and Oysters | D43: E | E43: Total income | F43: Financial accounts | G43: A - Census | H43: Y | I43: 3 | J43: every year | K43: 100 | L43: Mussels and Oysters needs to be clustered | M43: 136 | N43: 74 | O43: 0.5441176471 | P43: 0.5441176471 | Q43: 0.5441176471 | R43: not a reported variable in EUM but calculated from gross sales, other income and operating subsidies
A44: SWE | B44: Other | C44: Crustaceans | D44: E | E44: Total income | F44: Financial accounts | G44: A - Census | H44: Y | I44: 3 | J44: every year | K44: 100 | M44: 136 | N44: 74 | O44: 0.5441176471 | P44: 0.5441176471 | Q44: 0.5441176471 | R44: not a reported variable in EUM but calculated from gross sales, other income and operating subsidies
A45: SWE | B45: Hatcheries and nurseries | C45: Salmon and trout | D45: E | E45: Personnel costs | F45: Financial accounts | G45: A - Census | H45: Y | I45: 3 | J45: every year | K45: 100 | L45: Salmon and trout needs to be clustered | M45: 136 | N45: 0 | O45: 0 | P45: 0 | Q45: 0 | R45: Segment 8.8 - data quality is too poor to be collected from national register
A46: SWE | B46: Ponds | C46: Other freshwater fish | D46: E | E46: Personnel costs | F46: Financial accounts | G46: A - Census | H46: Y | I46: 3 | J46: every year | K46: 100 | M46: 136 | N46: 74 | O46: 0.5441176471 | P46: 0.5441176471 | Q46: 0.5441176471
A47: SWE | B47: Recirculating systems | C47: Other freshwater fish | D47: E | E47: Personnel costs | F47: Financial accounts | G47: A - Census | H47: Y | I47: 3 | J47: every year | K47: 100 | M47: 136 | N47: 74 | O47: 0.5441176471 | P47: 0.5441176471 | Q47: 0.5441176471
A48: SWE | B48: Cages | C48: Other freshwater fish | D48: E | E48: Personnel costs | F48: Financial accounts | G48: A - Census | H48: Y | I48: 3 | J48: every year | K48: 100 | M48: 136 | N48: 74 | O48: 0.5441176471 | P48: 0.5441176471 | Q48: 0.5441176471
A49: SWE | B49: Polyculture | C49: Other freshwater fish | D49: E | E49: Personnel costs | F49: Financial accounts | G49: A - Census | H49: Y | I49: 3 | J49: every year | K49: 100 | M49: 136 | N49: 74 | O49: 0.5441176471 | P49: 0.5441176471 | Q49: 0.5441176471 | R49: replaced with "Tanks and raceways" seg8.2
A50: SWE | B50: Hatcheries and nurseries | C50: Other freshwater fish | D50: E | E50: Personnel costs | F50: Financial accounts | G50: A - Census | H50: Y | I50: 3 | J50: every year | K50: 100 | M50: 136 | N50: 74 | O50: 0.5441176471 | P50: 0.5441176471 | Q50: 0.5441176471
A51: SWE | B51: Other | C51: Mussels and Oysters | D51: E | E51: Personnel costs | F51: Financial accounts | G51: A - Census | H51: Y | I51: 3 | J51: every year | K51: 100 | L51: Mussels and Oysters needs to be clustered | M51: 136 | N51: 74 | O51: 0.5441176471 | P51: 0.5441176471 | Q51: 0.5441176471
A52: SWE | B52: Other | C52: Crustaceans | D52: E | E52: Personnel costs | F52: Financial accounts | G52: A - Census | H52: Y | I52: 3 | J52: every year | K52: 100 | M52: 136 | N52: 74 | O52: 0.5441176471 | P52: 0.5441176471 | Q52: 0.5441176471
A53: SWE | B53: Hatcheries and nurseries | C53: Salmon and trout | D53: E | E53: Value of unpaid labour | F53: questionnaires | G53: A - Census | H53: Y | I53: 3 | J53: every year | K53: 100 | L53: Salmon and trout needs to be clustered | M53: 136 | N53: 72 | O53: 0.5294117647 | P53: 0.5294117647 | Q53: 0.5294117647
A54: SWE | B54: Ponds | C54: Other freshwater fish | D54: E | E54: Value of unpaid labour | F54: questionnaires | G54: A - Census | H54: Y | I54: 3 | J54: every year | K54: 100 | M54: 136 | N54: 72 | O54: 0.5294117647 | P54: 0.5294117647 | Q54: 0.5294117647
A55: SWE | B55: Recirculating systems | C55: Other freshwater fish | D55: E | E55: Value of unpaid labour | F55: questionnaires | G55: A - Census | H55: Y | I55: 3 | J55: every year | K55: 100 | M55: 136 | N55: N/A | O55: N/A | P55: N/A | Q55: N/A | R55: aggregated into seg 8.2
A56: SWE | B56: Cages | C56: Other freshwater fish | D56: E | E56: Value of unpaid labour | F56: questionnaires | G56: A - Census | H56: Y | I56: 3 | J56: every year | K56: 100 | M56: 136 | N56: 72 | O56: 0.5294117647 | P56: 0.5294117647 | Q56: 0.5294117647
A57: SWE | B57: Polyculture | C57: Other freshwater fish | D57: E | E57: Value of unpaid labour | F57: questionnaires | G57: A - Census | H57: Y | I57: 3 | J57: every year | K57: 100 | M57: 136 | N57: 72 | O57: 0.5294117647 | P57: 0.5294117647 | Q57: 0.5294117647 | R57: replaced with "Tanks and raceways" seg8.2
A58: SWE | B58: Hatcheries and nurseries | C58: Other freshwater fish | D58: E | E58: Value of unpaid labour | F58: questionnaires | G58: A - Census | H58: Y | I58: 3 | J58: every year | K58: 100 | M58: 136 | N58: 72 | O58: 0.5294117647 | P58: 0.5294117647 | Q58: 0.5294117647
A59: SWE | B59: Other | C59: Mussels and Oysters | D59: E | E59: Value of unpaid labour | F59: questionnaires | G59: A - Census | H59: Y | I59: 3 | J59: every year | K59: 100 | L59: Mussels and Oysters needs to be clustered | M59: 136 | N59: 72 | O59: 0.5294117647 | P59: 0.5294117647 | Q59: 0.5294117647
A60: SWE | B60: Other | C60: Crustaceans | D60: E | E60: Value of unpaid labour | F60: questionnaires | G60: A - Census | H60: Y | I60: 3 | J60: every year | K60: 100 | M60: 136 | N60: 72 | O60: 0.5294117647 | P60: 0.5294117647 | Q60: 0.5294117647
A61: SWE | B61: Hatcheries and nurseries | C61: Salmon and trout | D61: E | E61: Energy costs | F61: questionnaires | G61: A - Census | H61: Y | I61: 3 | J61: every year | K61: 100 | L61: Salmon and trout needs to be clustered | M61: 136 | N61: 72 | O61: 0.5294117647 | P61: 0.5294117647 | Q61: 0.5294117647
A62: SWE | B62: Ponds | C62: Other freshwater fish | D62: E | E62: Energy costs | F62: questionnaires | G62: A - Census | H62: Y | I62: 3 | J62: every year | K62: 100 | M62: 136 | N62: 72 | O62: 0.5294117647 | P62: 0.5294117647 | Q62: 0.5294117647
A63: SWE | B63: Recirculating systems | C63: Other freshwater fish | D63: E | E63: Energy costs | F63: questionnaires | G63: A - Census | H63: Y | I63: 3 | J63: every year | K63: 100 | M63: 136 | N63: N/A | O63: N/A | P63: N/A | Q63: N/A | R63: aggregated into seg 8.2
A64: SWE | B64: Cages | C64: Other freshwater fish | D64: E | E64: Energy costs | F64: questionnaires | G64: A - Census | H64: Y | I64: 3 | J64: every year | K64: 100 | M64: 136 | N64: 72 | O64: 0.5294117647 | P64: 0.5294117647 | Q64: 0.5294117647
A65: SWE | B65: Polyculture | C65: Other freshwater fish | D65: E | E65: Energy costs | F65: questionnaires | G65: A - Census | H65: Y | I65: 3 | J65: every year | K65: 100 | M65: 136 | N65: 72 | O65: 0.5294117647 | P65: 0.5294117647 | Q65: 0.5294117647 | R65: replaced with "Tanks and raceways" seg8.2
A66: SWE | B66: Hatcheries and nurseries | C66: Other freshwater fish | D66: E | E66: Energy costs | F66: questionnaires | G66: A - Census | H66: Y | I66: 3 | J66: every year | K66: 100 | M66: 136 | N66: 72 | O66: 0.5294117647 | P66: 0.5294117647 | Q66: 0.5294117647
A67: SWE | B67: Other | C67: Mussels and Oysters | D67: E | E67: Energy costs | F67: questionnaires | G67: A - Census | H67: Y | I67: 3 | J67: every year | K67: 100 | L67: Mussels and Oysters needs to be clustered | M67: 136 | N67: 72 | O67: 0.5294117647 | P67: 0.5294117647 | Q67: 0.5294117647
A68: SWE | B68: Other | C68: Crustaceans | D68: E | E68: Energy costs | F68: questionnaires | G68: A - Census | H68: Y | I68: 3 | J68: every year | K68: 100 | M68: 136 | N68: 72 | O68: 0.5294117647 | P68: 0.5294117647 | Q68: 0.5294117647
A69: SWE | B69: Hatcheries and nurseries | C69: Salmon and trout | D69: E | E69: Livestock costs | F69: questionnaires | G69: A - Census | H69: Y | I69: 3 | J69: every year | K69: 100 | L69: Salmon and trout needs to be clustered | M69: 136 | N69: 72 | O69: 0.5294117647 | P69: 0.5294117647 | Q69: 0.5294117647
A70: SWE | B70: Ponds | C70: Other freshwater fish | D70: E | E70: Livestock costs | F70: questionnaires | G70: A - Census | H70: Y | I70: 3 | J70: every year | K70: 100 | M70: 136 | N70: 72 | O70: =N70/M70 -> 0.5294117647 | P70: =O70 -> 0.5294117647 | Q70: =N70/(M70*K70/100) -> 0.5294117647
A71: SWE | B71: Recirculating systems | C71: Other freshwater fish | D71: E | E71: Livestock costs | F71: questionnaires | G71: A - Census | H71: Y | I71: 3 | J71: every year | K71: 100 | M71: 136 | N71: N/A | O71: N/A | P71: N/A | Q71: N/A | R71: aggregated into seg 8.2
A72: SWE | B72: Cages | C72: Other freshwater fish | D72: E | E72: Livestock costs | F72: questionnaires | G72: A - Census | H72: Y | I72: 3 | J72: every year | K72: 100 | M72: 136 | N72: 72 | O72: 0.5294117647 | P72: 0.5294117647 | Q72: 0.5294117647
A73: SWE | B73: Polyculture | C73: Other freshwater fish | D73: E | E73: Livestock costs | F73: questionnaires | G73: A - Census | H73: Y | I73: 3 | J73: every year | K73: 100 | M73: 136 | N73: 72 | O73: 0.5294117647 | P73: 0.5294117647 | Q73: 0.5294117647 | R73: replaced with "Tanks and raceways" seg8.2
A74: SWE | B74: Hatcheries and nurseries | C74: Other freshwater fish | D74: E | E74: Livestock costs | F74: questionnaires | G74: A - Census | H74: Y | I74: 3 | J74: every year | K74: 100 | M74: 136 | N74: 72 | O74: 0.5294117647 | P74: 0.5294117647 | Q74: 0.5294117647
A75: SWE | B75: Other | C75: Mussels and Oysters | D75: E | E75: Livestock costs | F75: questionnaires | G75: A - Census | H75: Y | I75: 3 | J75: every year | K75: 100 | L75: Mussels and Oysters needs to be clustered | M75: 136 | N75: 72 | O75: 0.5294117647 | P75: 0.5294117647 | Q75: 0.5294117647
A76: SWE | B76: Other | C76: Crustaceans | D76: E | E76: Livestock costs | F76: questionnaires | G76: A - Census | H76: Y | I76: 3 | J76: every year | K76: 100 | M76: 136 | N76: 72 | O76: 0.5294117647 | P76: 0.5294117647 | Q76: 0.5294117647
A77: SWE | B77: Hatcheries and nurseries | C77: Salmon and trout | D77: E | E77: Feed costs | F77: questionnaires | G77: A - Census | H77: Y | I77: 3 | J77: every year | K77: 100 | L77: Salmon and trout needs to be clustered | M77: 136 | N77: 72 | O77: 0.5294117647 | P77: 0.5294117647 | Q77: 0.5294117647
A78: SWE | B78: Ponds | C78: Other freshwater fish | D78: E | E78: Feed costs | F78: questionnaires | G78: A - Census | H78: Y | I78: 3 | J78: every year | K78: 100 | M78: 136 | N78: 72 | O78: 0.5294117647 | P78: 0.5294117647 | Q78: 0.5294117647
A79: SWE | B79: Recirculating systems | C79: Other freshwater fish | D79: E | E79: Feed costs | F79: questionnaires | G79: A - Census | H79: Y | I79: 3 | J79: every year | K79: 100 | M79: 136 | N79: N/A | O79: N/A | P79: N/A | Q79: N/A | R79: aggregated into seg 8.2
A80: SWE | B80: Cages | C80: Other freshwater fish | D80: E | E80: Feed costs | F80: questionnaires | G80: A - Census | H80: Y | I80: 3 | J80: every year | K80: 100 | M80: 136 | N80: 72 | O80: 0.5294117647 | P80: 0.5294117647 | Q80: 0.5294117647
A81: SWE | B81: Polyculture | C81: Other freshwater fish | D81: E | E81: Feed costs | F81: questionnaires | G81: A - Census | H81: Y | I81: 3 | J81: every year | K81: 100 | M81: 136 | N81: 72 | O81: 0.5294117647 | P81: 0.5294117647 | Q81: 0.5294117647 | R81: replaced with "Tanks and raceways" seg8.2
A82: SWE | B82: Hatcheries and nurseries | C82: Other freshwater fish | D82: E | E82: Feed costs | F82: questionnaires | G82: A - Census | H82: Y | I82: 3 | J82: every year | K82: 100 | M82: 136 | N82: 72 | O82: 0.5294117647 | P82: 0.5294117647 | Q82: 0.5294117647
A83: SWE | B83: Other | C83: Mussels and Oysters | D83: E | E83: Feed costs | F83: questionnaires | G83: A - Census | H83: Y | I83: 3 | J83: every year | K83: 100 | L83: Mussels and Oysters needs to be clustered | M83: 136 | N83: 72 | O83: 0.5294117647 | P83: 0.5294117647 | Q83: 0.5294117647
A84: SWE | B84: Other | C84: Crustaceans | D84: E | E84: Feed costs | F84: questionnaires | G84: A - Census | H84: Y | I84: 3 | J84: every year | K84: 100 | M84: 136 | N84: 72 | O84: 0.5294117647 | P84: 0.5294117647 | Q84: 0.5294117647
A85: SWE | B85: Hatcheries and nurseries | C85: Salmon and trout | D85: E | E85: Repair and maintenance | F85: questionnaires | G85: A - Census | H85: Y | I85: 3 | J85: every year | K85: 100 | L85: Salmon and trout needs to be clustered | M85: 136 | N85: 72 | O85: 0.5294117647 | P85: 0.5294117647 | Q85: 0.5294117647
A86: SWE | B86: Ponds | C86: Other freshwater fish | D86: E | E86: Repair and maintenance | F86: questionnaires | G86: A - Census | H86: Y | I86: 3 | J86: every year | K86: 100 | M86: 136 | N86: 72 | O86: 0.5294117647 | P86: 0.5294117647 | Q86: 0.5294117647
A87: SWE | B87: Recirculating systems | C87: Other freshwater fish | D87: E | E87: Repair and maintenance | F87: questionnaires | G87: A - Census | H87: Y | I87: 3 | J87: every year | K87: 100 | M87: 136 | N87: N/A | O87: N/A | P87: N/A | Q87: N/A | R87: aggregated into seg 8.2
A88: SWE | B88: Cages | C88: Other freshwater fish | D88: E | E88: Repair and maintenance | F88: questionnaires | G88: A - Census | H88: Y | I88: 3 | J88: every year | K88: 100 | M88: 136 | N88: 72 | O88: 0.5294117647 | P88: 0.5294117647 | Q88: 0.5294117647
A89: SWE | B89: Polyculture | C89: Other freshwater fish | D89: E | E89: Repair and maintenance | F89: questionnaires | G89: A - Census | H89: Y | I89: 3 | J89: every year | K89: 100 | M89: 136 | N89: 72 | O89: 0.5294117647 | P89: 0.5294117647 | Q89: 0.5294117647 | R89: replaced with "Tanks and raceways" seg8.2
A90: SWE | B90: Hatcheries and nurseries | C90: Other freshwater fish | D90: E | E90: Repair and maintenance | F90: questionnaires | G90: A - Census | H90: Y | I90: 3 | J90: every year | K90: 100 | M90: 136 | N90: 72 | O90: 0.5294117647 | P90: 0.5294117647 | Q90: 0.5294117647
A91: SWE | B91: Other | C91: Mussels and Oysters | D91: E | E91: Repair and maintenance | F91: questionnaires | G91: A - Census | H91: Y | I91: 3 | J91: every year | K91: 100 | L91: Mussels and Oysters needs to be clustered | M91: 136 | N91: 72 | O91: 0.5294117647 | P91: 0.5294117647 | Q91: 0.5294117647
A92: SWE | B92: Other | C92: Crustaceans | D92: E | E92: Repair and maintenance | F92: questionnaires | G92: A - Census | H92: Y | I92: 3 | J92: every year | K92: 100 | M92: 136 | N92: 72 | O92: 0.5294117647 | P92: 0.5294117647 | Q92: 0.5294117647
A93: SWE | B93: Hatcheries and nurseries | C93: Salmon and trout | D93: E | E93: Other operational costs | F93: questionnaires | G93: A - Census | H93: Y | I93: 3 | J93: every year | K93: 100 | L93: Salmon and trout needs to be clustered | M93: 136 | N93: 72 | O93: 0.5294117647 | P93: 0.5294117647 | Q93: 0.5294117647
A94: SWE | B94: Ponds | C94: Other freshwater fish | D94: E | E94: Other operational costs | F94: questionnaires | G94: A - Census | H94: Y | I94: 3 | J94: every year | K94: 100 | M94: 136 | N94: 72 | O94: 0.5294117647 | P94: 0.5294117647 | Q94: 0.5294117647
A95: SWE | B95: Recirculating systems | C95: Other freshwater fish | D95: E | E95: Other operational costs | F95: questionnaires | G95: A - Census | H95: Y | I95: 3 | J95: every year | K95: 100 | M95: 136 | N95: N/A | O95: N/A | P95: N/A | Q95: N/A | R95: aggregated into seg 8.2
A96: SWE | B96: Cages | C96: Other freshwater fish | D96: E | E96: Other operational costs | F96: questionnaires | G96: A - Census | H96: Y | I96: 3 | J96: every year | K96: 100 | M96: 136 | N96: 72 | O96: 0.5294117647 | P96: 0.5294117647 | Q96: 0.5294117647
A97: SWE | B97: Polyculture | C97: Other freshwater fish | D97: E | E97: Other operational costs | F97: questionnaires | G97: A - Census | H97: Y | I97: 3 | J97: every year | K97: 100 | M97: 136 | N97: 72 | O97: 0.5294117647 | P97: 0.5294117647 | Q97: 0.5294117647 | R97: replaced with "Tanks and raceways" seg8.2
A98: SWE | B98: Hatcheries and nurseries | C98: Other freshwater fish | D98: E | E98: Other operational costs | F98: questionnaires | G98: A - Census | H98: Y | I98: 3 | J98: every year | K98: 100 | M98: 136 | N98: 72 | O98: 0.5294117647 | P98: 0.5294117647 | Q98: 0.5294117647
A99: SWE | B99: Other | C99: Mussels and Oysters | D99: E | E99: Other operational costs | F99: questionnaires | G99: A - Census | H99: Y | I99: 3 | J99: every year | K99: 100 | L99: Mussels and Oysters needs to be clustered | M99: 136 | N99: 72 | O99: 0.5294117647 | P99: 0.5294117647 | Q99: 0.5294117647
A100: SWE | B100: Other | C100: Crustaceans | D100: E | E100: Other operational costs | F100: questionnaires | G100: A - Census | H100: Y | I100: 3 | J100: every year | K100: 100 | M100: 136 | N100: 72 | O100: 0.5294117647 | P100: 0.5294117647 | Q100: 0.5294117647
A101: SWE | B101: Hatcheries and nurseries | C101: Salmon and trout | D101: E | E101: Consumtion of fixed capital | F101: Financial accounts | G101: A - Census | H101: Y | I101: 3 | J101: every year | K101: 100 | L101: Salmon and trout needs to be clustered | M101: 136 | N101: 0 | O101: 0 | P101: 0 | Q101: 0 | R101: Segment 8.8 - data quality is too poor to be collected from national register
A102: SWE | B102: Ponds | C102: Other freshwater fish | D102: E | E102: Consumtion of fixed capital | F102: Financial accounts | G102: A - Census | H102: Y | I102: 3 | J102: every year | K102: 100 | M102: 136 | N102: 74 | O102: 0.5441176471 | P102: 0.5441176471 | Q102: 0.5441176471
A103: SWE | B103: Recirculating systems | C103: Other freshwater fish | D103: E | E103: Consumtion of fixed capital | F103: Financial accounts | G103: A - Census | H103: Y | I103: 3 | J103: every year | K103: 100 | M103: 136 | N103: 74 | O103: 0.5441176471 | P103: 0.5441176471 | Q103: 0.5441176471
A104: SWE | B104: Cages | C104: Other freshwater fish | D104: E | E104: Consumtion of fixed capital | F104: Financial accounts | G104: A - Census | H104: Y | I104: 3 | J104: every year | K104: 100 | M104: 136 | N104: 74 | O104: 0.5441176471 | P104: 0.5441176471 | Q104: 0.5441176471
A105: SWE | B105: Polyculture | C105: Other freshwater fish | D105: E | E105: Consumtion of fixed capital | F105: Financial accounts | G105: A - Census | H105: Y | I105: 3 | J105: every year | K105: 100 | M105: 136 | N105: 74 | O105: 0.5441176471 | P105: 0.5441176471 | Q105: 0.5441176471 | R105: replaced with "Tanks and raceways" seg8.2
A106: SWE | B106: Hatcheries and nurseries | C106: Other freshwater fish | D106: E | E106: Consumtion of fixed capital | F106: Financial accounts | G106: A - Census | H106: Y | I106: 3 | J106: every year | K106: 100 | M106: 136 | N106: 74 | O106: 0.5441176471 | P106: 0.5441176471 | Q106: 0.5441176471
A107: SWE | B107: Other | C107: Mussels and Oysters | D107: E | E107: Consumtion of fixed capital | F107: Financial accounts | G107: A - Census | H107: Y | I107: 3 | J107: every year | K107: 100 | L107: Mussels and Oysters needs to be clustered | M107: 136 | N107: 74 | O107: 0.5441176471 | P107: 0.5441176471 | Q107: 0.5441176471
A108: SWE | B108: Other | C108: Crustaceans | D108: E | E108: Consumtion of fixed capital | F108: Financial accounts | G108: A - Census | H108: Y | I108: 3 | J108: every year | K108: 100 | M108: 136 | N108: 74 | O108: 0.5441176471 | P108: 0.5441176471 | Q108: 0.5441176471
A109: SWE | B109: Hatcheries and nurseries | C109: Salmon and trout | D109: E | E109: Financial income | F109: Financial accounts | G109: A - Census | H109: Y | I109: 3 | J109: every year | K109: 100 | L109: Salmon and trout needs to be clustered | M109: 136 | N109: 0 | O109: 0 | P109: 0 | Q109: 0 | R109: Segment 8.8 - data quality is too poor to be collected from national register
A110: SWE | B110: Ponds | C110: Other freshwater fish | D110: E | E110: Financial income | F110: Financial accounts | G110: A - Census | H110: Y | I110: 3 | J110: every year | K110: 100 | M110: 136 | N110: 74 | O110: 0.5441176471 | P110: 0.5441176471 | Q110: 0.5441176471
A111: SWE | B111: Recirculating systems | C111: Other freshwater fish | D111: E | E111: Financial income | F111: Financial accounts | G111: A - Census | H111: Y | I111: 3 | J111: every year | K111: 100 | M111: 136 | N111: 74 | O111: 0.5441176471 | P111: 0.5441176471 | Q111: 0.5441176471
A112: SWE | B112: Cages | C112: Other freshwater fish | D112: E | E112: Financial income | F112: Financial accounts | G112: A - Census | H112: Y | I112: 3 | J112: every year | K112: 100 | M112: 136 | N112: 74 | O112: 0.5441176471 | P112: 0.5441176471 | Q112: 0.5441176471
A113: SWE | B113: Polyculture | C113: Other freshwater fish | D113: E | E113: Financial income | F113: Financial accounts | G113: A - Census | H113: Y | I113: 3 | J113: every year | K113: 100 | M113: 136 | N113: 74 | O113: 0.5441176471 | P113: 0.5441176471 | Q113: 0.5441176471 | R113: replaced with "Tanks and raceways" seg8.2
A114: SWE | B114: Hatcheries and nurseries | C114: Other freshwater fish | D114: E | E114: Financial income | F114: Financial accounts | G114: A - Census | H114: Y | I114: 3 | J114: every year | K114: 100 | M114: 136 | N114: 74 | O114: 0.5441176471 | P114: 0.5441176471 | Q114: 0.5441176471
A115: SWE | B115: Other | C115: Mussels and Oysters | D115: E | E115: Financial income | F115: Financial accounts | G115: A - Census | H115: Y | I115: 3 | J115: every year | K115: 100 | L115: Mussels and Oysters needs to be clustered | M115: 136 | N115: 74 | O115: 0.5441176471 | P115: 0.5441176471 | Q115: 0.5441176471
A116: SWE | B116: Other | C116: Crustaceans | D116: E | E116: Financial income | F116: Financial accounts | G116: A - Census | H116: Y | I116: 3 | J116: every year | K116: 100 | M116: 136 | N116: 74 | O116: 0.5441176471 | P116: 0.5441176471 | Q116: 0.5441176471
A117: SWE | B117: Hatcheries and nurseries | C117: Salmon and trout | D117: E | E117: financial expenditures | F117: Financial accounts | G117: A - Census | H117: Y | I117: 3 | J117: every year | K117: 100 | L117: Salmon and trout needs to be clustered | M117: 136 | N117: 0 | O117: 0 | P117: 0 | Q117: 0 | R117: Segment 8.8 - data quality is too poor to be collected from national register
A118: SWE | B118: Ponds | C118: Other freshwater fish | D118: E | E118: financial expenditures | F118: Financial accounts | G118: A - Census | H118: Y | I118: 3 | J118: every year | K118: 100 | M118: 136 | N118: 74 | O118: 0.5441176471 | P118: 0.5441176471 | Q118: 0.5441176471
A119: SWE | B119: Recirculating systems | C119: Other freshwater fish | D119: E | E119: financial expenditures | F119: Financial accounts | G119: A - Census | H119: Y | I119: 3 | J119: every year | K119: 100 | M119: 136 | N119: 74 | O119: 0.5441176471 | P119: 0.5441176471 | Q119: 0.5441176471
A120: SWE | B120: Cages | C120: Other freshwater fish | D120: E | E120: financial expenditures | F120: Financial accounts | G120: A - Census | H120: Y | I120: 3 | J120: every year | K120: 100 | M120: 136 | N120: 74 | O120: 0.5441176471 | P120: 0.5441176471 | Q120: 0.5441176471
A121: SWE | B121: Polyculture | C121: Other freshwater fish | D121: E | E121: financial expenditures | F121: Financial accounts | G121: A - Census | H121: Y | I121: 3 | J121: every year | K121: 100 | M121: 136 | N121: 74 | O121: 0.5441176471 | P121: 0.5441176471 | Q121: 0.5441176471 | R121: replaced with "Tanks and raceways" seg8.2
A122: SWE | B122: Hatcheries and nurseries | C122: Other freshwater fish | D122: E | E122: financial expenditures | F122: Financial accounts | G122: A - Census | H122: Y | I122: 3 | J122: every year | K122: 100 | M122: 136 | N122: 74 | O122: 0.5441176471 | P122: 0.5441176471 | Q122: 0.5441176471
A123: SWE | B123: Other | C123: Mussels and Oysters | D123: E | E123: financial expenditures | F123: Financial accounts | G123: A - Census | H123: Y | I123: 3 | J123: every year | K123: 100 | L123: Mussels and Oysters needs to be clustered | M123: 136 | N123: 74 | O123: 0.5441176471 | P123: 0.5441176471 | Q123: 0.5441176471
A124: SWE | B124: Other | C124: Crustaceans | D124: E | E124: financial expenditures | F124: Financial accounts | G124: A - Census | H124: Y | I124: 3 | J124: every year | K124: 100 | M124: 136 | N124: 74 | O124: 0.5441176471 | P124: 0.5441176471 | Q124: 0.5441176471
A125: SWE | B125: Hatcheries and nurseries | C125: Salmon and trout | D125: E | E125: Total value of assets | F125: Financial accounts | G125: A - Census | H125: Y | I125: 3 | J125: every year | K125: 100 | L125: Salmon and trout needs to be clustered | M125: 136 | N125: 0 | O125: 0 | P125: 0 | Q125: 0 | R125: Segment 8.8 - data quality is too poor to be collected from national register
A126: SWE | B126: Ponds | C126: Other freshwater fish | D126: E | E126: Total value of assets | F126: Financial accounts | G126: A - Census | H126: Y | I126: 3 | J126: every year | K126: 100 | M126: 136 | N126: 74 | O126: 0.5441176471 | P126: 0.5441176471 | Q126: 0.5441176471
A127: SWE | B127: Recirculating systems | C127: Other freshwater fish | D127: E | E127: Total value of assets | F127: Financial accounts | G127: A - Census | H127: Y | I127: 3 | J127: every year | K127: 100 | M127: 136 | N127: 74 | O127: 0.5441176471 | P127: 0.5441176471 | Q127: 0.5441176471
A128: SWE | B128: Cages | C128: Other freshwater fish | D128: E | E128: Total value of assets | F128: Financial accounts | G128: A - Census | H128: Y | I128: 3 | J128: every year | K128: 100 | M128: 136 | N128: 74 | O128: 0.5441176471 | P128: 0.5441176471 | Q128: 0.5441176471
A129: SWE | B129: Polyculture | C129: Other freshwater fish | D129: E | E129: Total value of assets | F129: Financial accounts | G129: A - Census | H129: Y | I129: 3 | J129: every year | K129: 100 | M129: 136 | N129: 74 | O129: 0.5441176471 | P129: 0.5441176471 | Q129: 0.5441176471 | R129: replaced with "Tanks and raceways" seg8.2
A130: SWE | B130: Hatcheries and nurseries | C130: Other freshwater fish | D130: E | E130: Total value of assets | F130: Financial accounts | G130: A - Census | H130: Y | I130: 3 | J130: every year | K130: 100 | M130: 136 | N130: 74 | O130: 0.5441176471 | P130: 0.5441176471 | Q130: 0.5441176471
A131: SWE | B131: Other | C131: Mussels and Oysters | D131: E | E131: Total value of assets | F131: Financial accounts | G131: A - Census | H131: Y | I131: 3 | J131: every year | K131: 100 | L131: Mussels and Oysters needs to be clustered | M131: 136 | N131: 74 | O131: 0.5441176471 | P131: 0.5441176471 | Q131: 0.5441176471
A132: SWE | B132: Other | C132: Crustaceans | D132: E | E132: Total value of assets | F132: Financial accounts | G132: A - Census | H132: Y | I132: 3 | J132: every year | K132: 100 | M132: 136 | N132: 74 | O132: 0.5441176471 | P132: 0.5441176471 | Q132: 0.5441176471
A133: SWE | B133: Hatcheries and nurseries | C133: Salmon and trout | D133: E | E133: Net Investments | F133: Financial accounts | G133: A - Census | H133: Y | I133: 3 | J133: every year | K133: 100 | L133: Salmon and trout needs to be clustered | M133: 136 | N133: 113 | O133: 0.8308823529 | P133: 0.8308823529 | Q133: 0.8308823529
A134: SWE | B134: Ponds | C134: Other freshwater fish | D134: E | E134: Net Investments | F134: Financial accounts | G134: A - Census | H134: Y | I134: 3 | J134: every year | K134: 100 | M134: 136 | N134: 113 | O134: =N134/M134 -> 0.8308823529 | P134: =O134 -> 0.8308823529 | Q134: =N134/(M134*K134/100) -> 0.8308823529
A135: SWE | B135: Recirculating systems | C135: Other freshwater fish | D135: E | E135: Net Investments | F135: Financial accounts | G135: A - Census | H135: Y | I135: 3 | J135: every year | K135: 100 | M135: 136 | N135: 113 | O135: 0.8308823529 | P135: 0.8308823529 | Q135: 0.8308823529
A136: SWE | B136: Cages | C136: Other freshwater fish | D136: E | E136: Net Investments | F136: Financial accounts | G136: A - Census | H136: Y | I136: 3 | J136: every year | K136: 100 | M136: 136 | N136: 113 | O136: 0.8308823529 | P136: 0.8308823529 | Q136: 0.8308823529
A137: SWE | B137: Polyculture | C137: Other freshwater fish | D137: E | E137: Net Investments | F137: Financial accounts | G137: A - Census | H137: Y | I137: 3 | J137: every year | K137: 100 | M137: 136 | N137: 113 | O137: 0.8308823529 | P137: 0.8308823529 | Q137: 0.8308823529 | R137: replaced with "Tanks and raceways" seg8.2
A138: SWE | B138: Hatcheries and nurseries | C138: Other freshwater fish | D138: E | E138: Net Investments | F138: Financial accounts | G138: A - Census | H138: Y | I138: 3 | J138: every year | K138: 100 | M138: 136 | N138: 113 | O138: 0.8308823529 | P138: 0.8308823529 | Q138: 0.8308823529
A139: SWE | B139: Other | C139: Mussels and Oysters | D139: E | E139: Net Investments | F139: Financial accounts | G139: A - Census | H139: Y | I139: 3 | J139: every year | K139: 100 | L139: Mussels and Oysters needs to be clustered | M139: 136 | N139: 113 | O139: 0.8308823529 | P139: 0.8308823529 | Q139: 0.8308823529
A140: SWE | B140: Other | C140: Crustaceans | D140: E | E140: Net Investments | F140: Financial accounts | G140: A - Census | H140: Y | I140: 3 | J140: every year | K140: 100 | M140: 136 | N140: 113 | O140: 0.8308823529 | P140: 0.8308823529 | Q140: 0.8308823529
A141: SWE | B141: Hatcheries and nurseries | C141: Salmon and trout | D141: E | E141: Debt | F141: Financial accounts | G141: A - Census | H141: Y | I141: 3 | J141: every year | K141: 100 | L141: Salmon and trout needs to be clustered | M141: 136 | N141: 0 | O141: 0 | P141: 0 | Q141: 0 | R141: Segment 8.8 - data quality is too poor to be collected from national register
A142: SWE | B142: Ponds | C142: Other freshwater fish | D142: E | E142: Debt | F142: Financial accounts | G142: A - Census | H142: Y | I142: 3 | J142: every year | K142: 100 | M142: 136 | N142: 74 | O142: 0.5441176471 | P142: 0.5441176471 | Q142: 0.5441176471
A143: SWE | B143: Recirculating systems | C143: Other freshwater fish | D143: E | E143: Debt | F143: Financial accounts | G143: A - Census | H143: Y | I143: 3 | J143: every year | K143: 100 | M143: 136 | N143: 74 | O143: 0.5441176471 | P143: 0.5441176471 | Q143: 0.5441176471
A144: SWE | B144: Cages | C144: Other freshwater fish | D144: E | E144: Debt | F144: Financial accounts | G144: A - Census | H144: Y | I144: 3 | J144: every year | K144: 100 | M144: 136 | N144: 74 | O144: 0.5441176471 | P144: 0.5441176471 | Q144: 0.5441176471
A145: SWE | B145: Polyculture | C145: Other freshwater fish | D145: E | E145: Debt | F145: Financial accounts | G145: A - Census | H145: Y | I145: 3 | J145: every year | K145: 100 | M145: 136 | N145: 74 | O145: 0.5441176471 | P145: 0.5441176471 | Q145: 0.5441176471 | R145: replaced with "Tanks and raceways" seg8.2
A146: SWE | B146: Hatcheries and nurseries | C146: Other freshwater fish | D146: E | E146: Debt | F146: Financial accounts | G146: A - Census | H146: Y | I146: 3 | J146: every year | K146: 100 | M146: 136 | N146: 74 | O146: 0.5441176471 | P146: 0.5441176471 | Q146: 0.5441176471
A147: SWE | B147: Other | C147: Mussels and Oysters | D147: E | E147: Debt | F147: Financial accounts | G147: A - Census | H147: Y | I147: 3 | J147: every year | K147: 100 | L147: Mussels and Oysters needs to be clustered | M147: 136 | N147: 74 | O147: 0.5441176471 | P147: 0.5441176471 | Q147: 0.5441176471
A148: SWE | B148: Other | C148: Crustaceans | D148: E | E148: Debt | F148: Financial accounts | G148: A - Census | H148: Y | I148: 3 | J148: every year | K148: 100 | M148: 136 | N148: 74 | O148: 0.5441176471 | P148: 0.5441176471 | Q148: 0.5441176471
A149: SWE | B149: Hatcheries and nurseries | C149: Salmon and trout | D149: E | E149: Livestock used | F149: questionnaires | G149: A - Census | H149: Y | I149: 3 | J149: every year | K149: 100 | L149: Salmon and trout needs to be clustered | M149: 136 | N149: 72 | O149: 0.5294117647 | P149: 0.5294117647 | Q149: 0.5294117647
A150: SWE | B150: Ponds | C150: Other freshwater fish | D150: E | E150: Livestock used | F150: questionnaires | G150: A - Census | H150: Y | I150: 3 | J150: every year | K150: 100 | M150: 136 | N150: 72 | O150: 0.5294117647 | P150: 0.5294117647 | Q150: 0.5294117647
A151: SWE | B151: Recirculating systems | C151: Other freshwater fish | D151: E | E151: Livestock used | F151: questionnaires | G151: A - Census | H151: Y | I151: 3 | J151: every year | K151: 100 | M151: 136 | N151: N/A | O151: N/A | P151: N/A | Q151: N/A | R151: aggregated into seg 8.2
A152: SWE | B152: Cages | C152: Other freshwater fish | D152: E | E152: Livestock used | F152: questionnaires | G152: A - Census | H152: Y | I152: 3 | J152: every year | K152: 100 | M152: 136 | N152: 72 | O152: 0.5294117647 | P152: 0.5294117647 | Q152: 0.5294117647
A153: SWE | B153: Polyculture | C153: Other freshwater fish | D153: E | E153: Livestock used | F153: questionnaires | G153: A - Census | H153: Y | I153: 3 | J153: every year | K153: 100 | M153: 136 | N153: 72 | O153: 0.5294117647 | P153: 0.5294117647 | Q153: 0.5294117647 | R153: replaced with "Tanks and raceways" seg8.2
A154: SWE | B154: Hatcheries and nurseries | C154: Other freshwater fish | D154: E | E154: Livestock used | F154: questionnaires | G154: A - Census | H154: Y | I154: 3 | J154: every year | K154: 100 | M154: 136 | N154: 72 | O154: 0.5294117647 | P154: 0.5294117647 | Q154: 0.5294117647
A155: SWE | B155: Other | C155: Mussels and Oysters | D155: E | E155: Livestock used | F155: questionnaires | G155: A - Census | H155: Y | I155: 3 | J155: every year | K155: 100 | L155: Mussels and Oysters needs to be clustered | M155: 136 | N155: 72 | O155: 0.5294117647 | P155: 0.5294117647 | Q155: 0.5294117647
A156: SWE | B156: Other | C156: Crustaceans | D156: E | E156: Livestock used | F156: questionnaires | G156: A - Census | H156: Y | I156: 3 | J156: every year | K156: 100 | M156: 136 | N156: 72 | O156: 0.5294117647 | P156: 0.5294117647 | Q156: 0.5294117647
A157: SWE | B157: Hatcheries and nurseries | C157: Salmon and trout | D157: E | E157: Feed used | F157: questionnaires | G157: A - Census | H157: Y | I157: 3 | J157: every year | K157: 100 | L157: Salmon and trout needs to be clustered | M157: 136 | N157: 72 | O157: 0.5294117647 | P157: 0.5294117647 | Q157: 0.5294117647
A158: SWE | B158: Ponds | C158: Other freshwater fish | D158: E | E158: Feed used | F158: questionnaires | G158: A - Census | H158: Y | I158: 3 | J158: every year | K158: 100 | M158: 136 | N158: 72 | O158: 0.5294117647 | P158: 0.5294117647 | Q158: 0.5294117647
A159: SWE | B159: Recirculating systems | C159: Other freshwater fish | D159: E | E159: Feed used | F159: questionnaires | G159: A - Census | H159: Y | I159: 3 | J159: every year | K159: 100 | M159: 136 | N159: N/A | O159: N/A | P159: N/A | Q159: N/A | R159: aggregated into seg 8.2
A160: SWE | B160: Cages | C160: Other freshwater fish | D160: E | E160: Feed used | F160: questionnaires | G160: A - Census | H160: Y | I160: 3 | J160: every year | K160: 100 | M160: 136 | N160: 72 | O160: 0.5294117647 | P160: 0.5294117647 | Q160: 0.5294117647
A161: SWE | B161: Polyculture | C161: Other freshwater fish | D161: E | E161: Feed used | F161: questionnaires | G161: A - Census | H161: Y | I161: 3 | J161: every year | K161: 100 | M161: 136 | N161: 72 | O161: 0.5294117647 | P161: 0.5294117647 | Q161: 0.5294117647 | R161: replaced with "Tanks and raceways" seg8.2
A162: SWE | B162: Hatcheries and nurseries | C162: Other freshwater fish | D162: E | E162: Feed used | F162: questionnaires | G162: A - Census | H162: Y | I162: 3 | J162: every year | K162: 100 | M162: 136 | N162: 72 | O162: 0.5294117647 | P162: 0.5294117647 | Q162: 0.5294117647
A163: SWE | B163: Other | C163: Mussels and Oysters | D163: E | E163: Feed used | F163: questionnaires | G163: A - Census | H163: Y | I163: 3 | J163: every year | K163: 100 | L163: Mussels and Oysters needs to be clustered | M163: 136 | N163: 72 | O163: 0.5294117647 | P163: 0.5294117647 | Q163: 0.5294117647
A164: SWE | B164: Other | C164: Crustaceans | D164: E | E164: Feed used | F164: questionnaires | G164: A - Census | H164: Y | I164: 3 | J164: every year | K164: 100 | M164: 136 | N164: 72 | O164: 0.5294117647 | P164: 0.5294117647 | Q164: 0.5294117647
A165: SWE | B165: Hatcheries and nurseries | C165: Salmon and trout | D165: E | E165: weight of sales | F165: questionnaires | G165: A - Census | H165: Y | I165: 3 | J165: every year | K165: 100 | L165: Salmon and trout needs to be clustered | M165: 136 | N165: 113 | O165: 0.8308823529 | P165: 0.8308823529 | Q165: 0.8308823529
A166: SWE | B166: Ponds | C166: Other freshwater fish | D166: E | E166: weight of sales | F166: questionnaires | G166: A - Census | H166: Y | I166: 3 | J166: every year | K166: 100 | M166: 136 | N166: 113 | O166: 0.8308823529 | P166: 0.8308823529 | Q166: 0.8308823529
A167: SWE | B167: Recirculating systems | C167: Other freshwater fish | D167: E | E167: weight of sales | F167: questionnaires | G167: A - Census | H167: Y | I167: 3 | J167: every year | K167: 100 | M167: 136 | N167: 113 | O167: 0.8308823529 | P167: 0.8308823529 | Q167: 0.8308823529
A168: SWE | B168: Cages | C168: Other freshwater fish | D168: E | E168: weight of sales | F168: questionnaires | G168: A - Census | H168: Y | I168: 3 | J168: every year | K168: 100 | M168: 136 | N168: 113 | O168: 0.8308823529 | P168: 0.8308823529 | Q168: 0.8308823529
A169: SWE | B169: Polyculture | C169: Other freshwater fish | D169: E | E169: weight of sales | F169: questionnaires | G169: A - Census | H169: Y | I169: 3 | J169: every year | K169: 100 | M169: 136 | N169: 113 | O169: 0.8308823529 | P169: 0.8308823529 | Q169: 0.8308823529 | R169: replaced with "Tanks and raceways" seg8.2
A170: SWE | B170: Hatcheries and nurseries | C170: Other freshwater fish | D170: E | E170: weight of sales | F170: questionnaires | G170: A - Census | H170: Y | I170: 3 | J170: every year | K170: 100 | M170: 136 | N170: 113 | O170: 0.8308823529 | P170: 0.8308823529 | Q170: 0.8308823529
A171: SWE | B171: Other | C171: Mussels and Oysters | D171: E | E171: weight of sales | F171: questionnaires | G171: A - Census | H171: Y | I171: 3 | J171: every year | K171: 100 | L171: Mussels and Oysters needs to be clustered | M171: 136 | N171: 113 | O171: 0.8308823529 | P171: 0.8308823529 | Q171: 0.8308823529
A172: SWE | B172: Other | C172: Crustaceans | D172: E | E172: weight of sales | F172: questionnaires | G172: A - Census | H172: Y | I172: 3 | J172: every year | K172: 100 | M172: 136 | N172: 113 | O172: 0.8308823529 | P172: 0.8308823529 | Q172: 0.8308823529
A173: SWE | B173: Hatcheries and nurseries | C173: Salmon and trout | D173: E | E173: Persons employed, number | F173: questionnaires | G173: A - Census | H173: Y | I173: 3 | J173: every year | K173: 100 | L173: Salmon and trout needs to be clustered | M173: 136 | N173: 113 | O173: 0.8308823529 | P173: 0.8308823529 | Q173: 0.8308823529
A174: SWE | B174: Ponds | C174: Other freshwater fish | D174: E | E174: Persons employed, number | F174: questionnaires | G174: A - Census | H174: Y | I174: 3 | J174: every year | K174: 100 | M174: 136 | N174: 113 | O174: 0.8308823529 | P174: 0.8308823529 | Q174: 0.8308823529
A175: SWE | B175: Recirculating systems | C175: Other freshwater fish | D175: E | E175: Persons employed, number | F175: questionnaires | G175: A - Census | H175: Y | I175: 3 | J175: every year | K175: 100 | M175: 136 | N175: 113 | O175: 0.8308823529 | P175: 0.8308823529 | Q175: 0.8308823529
A176: SWE | B176: Cages | C176: Other freshwater fish | D176: E | E176: Persons employed, number | F176: questionnaires | G176: A - Census | H176: Y | I176: 3 | J176: every year | K176: 100 | M176: 136 | N176: 113 | O176: 0.8308823529 | P176: 0.8308823529 | Q176: 0.8308823529
A177: SWE | B177: Polyculture | C177: Other freshwater fish | D177: E | E177: Persons employed, number | F177: questionnaires | G177: A - Census | H177: Y | I177: 3 | J177: every year | K177: 100 | M177: 136 | N177: 113 | O177: 0.8308823529 | P177: 0.8308823529 | Q177: 0.8308823529 | R177: replaced with "Tanks and raceways" seg8.2
A178: SWE | B178: Hatcheries and nurseries | C178: Other freshwater fish | D178: E | E178: Persons employed, number | F178: questionnaires | G178: A - Census | H178: Y | I178: 3 | J178: every year | K178: 100 | M178: 136 | N178: 113 | O178: 0.8308823529 | P178: 0.8308823529 | Q178: 0.8308823529
A179: SWE | B179: Other | C179: Mussels and Oysters | D179: E | E179: Persons employed, number | F179: questionnaires | G179: A - Census | H179: Y | I179: 3 | J179: every year | K179: 100 | L179: Mussels and Oysters needs to be clustered | M179: 136 | N179: 113 | O179: 0.8308823529 | P179: 0.8308823529 | Q179: 0.8308823529
A180: SWE | B180: Other | C180: Crustaceans | D180: E | E180: Persons employed, number | F180: questionnaires | G180: A - Census | H180: Y | I180: 3 | J180: every year | K180: 100 | M180: 136 | N180: 113 | O180: 0.8308823529 | P180: 0.8308823529 | Q180: 0.8308823529
A181: SWE | B181: Hatcheries and nurseries | C181: Salmon and trout | D181: E | E181: Unpaid labour | F181: questionnaires | G181: A - Census | H181: Y | I181: 3 | J181: every year | K181: 100 | L181: Salmon and trout needs to be clustered | M181: 136 | N181: 72 | O181: 0.5294117647 | P181: 0.5294117647 | Q181: 0.5294117647
A182: SWE | B182: Ponds | C182: Other freshwater fish | D182: E | E182: Unpaid labour | F182: questionnaires | G182: A - Census | H182: Y | I182: 3 | J182: every year | K182: 100 | M182: 136 | N182: 72 | O182: 0.5294117647 | P182: 0.5294117647 | Q182: 0.5294117647
A183: SWE | B183: Recirculating systems | C183: Other freshwater fish | D183: E | E183: Unpaid labour | F183: questionnaires | G183: A - Census | H183: Y | I183: 3 | J183: every year | K183: 100 | M183: 136 | N183: N/A | O183: N/A | P183: N/A | Q183: N/A | R183: aggregated into seg 8.2
A184: SWE | B184: Cages | C184: Other freshwater fish | D184: E | E184: Unpaid labour | F184: questionnaires | G184: A - Census | H184: Y | I184: 3 | J184: every year | K184: 100 | M184: 136 | N184: 72 | O184: 0.5294117647 | P184: 0.5294117647 | Q184: 0.5294117647
A185: SWE | B185: Polyculture | C185: Other freshwater fish | D185: E | E185: Unpaid labour | F185: questionnaires | G185: A - Census | H185: Y | I185: 3 | J185: every year | K185: 100 | M185: 136 | N185: 72 | O185: 0.5294117647 | P185: 0.5294117647 | Q185: 0.5294117647 | R185: replaced with "Tanks and raceways" seg8.2
A186: SWE | B186: Hatcheries and nurseries | C186: Other freshwater fish | D186: E | E186: Unpaid labour | F186: questionnaires | G186: A - Census | H186: Y | I186: 3 | J186: every year | K186: 100 | M186: 136 | N186: 72 | O186: 0.5294117647 | P186: 0.5294117647 | Q186: 0.5294117647
A187: SWE | B187: Other | C187: Mussels and Oysters | D187: E | E187: Unpaid labour | F187: questionnaires | G187: A - Census | H187: Y | I187: 3 | J187: every year | K187: 100 | L187: Mussels and Oysters needs to be clustered | M187: 136 | N187: 72 | O187: 0.5294117647 | P187: 0.5294117647 | Q187: 0.5294117647
A188: SWE | B188: Other | C188: Crustaceans | D188: E | E188: Unpaid labour | F188: questionnaires | G188: A - Census | H188: Y | I188: 3 | J188: every year | K188: 100 | M188: 136 | N188: 72 | O188: 0.5294117647 | P188: 0.5294117647 | Q188: 0.5294117647
A189: SWE | B189: Hatcheries and nurseries | C189: Salmon and trout | D189: S | E189: Unpaid labour by gender | F189: questionnaires | G189: A - Census | H189: Y | I189: 3 | J189: every 3'rd year | K189: 100 | L189: Salmon and trout needs to be clustered | M189: 136 | N189: 72 | O189: 0.5294117647 | P189: 0.5294117647 | Q189: 0.5294117647
A190: SWE | B190: Ponds | C190: Other freshwater fish | D190: S | E190: Unpaid labour by gender | F190: questionnaires | G190: A - Census | H190: Y | I190: 3 | J190: every 3'rd year | K190: 100 | M190: 136 | N190: 72 | O190: 0.5294117647 | P190: 0.5294117647 | Q190: 0.5294117647
A191: SWE | B191: Recirculating systems | C191: Other freshwater fish | D191: S | E191: Unpaid labour by gender | F191: questionnaires | G191: A - Census | H191: Y | I191: 3 | J191: every 3'rd year | K191: 100 | M191: 136 | N191: 72 | O191: 0.5294117647 | P191: 0.5294117647 | Q191: 0.5294117647 | R191: aggregated into seg 8.2
A192: SWE | B192: Cages | C192: Other freshwater fish | D192: S | E192: Unpaid labour by gender | F192: questionnaires | G192: A - Census | H192: Y | I192: 3 | J192: every 3'rd year | K192: 100 | M192: 136 | N192: 72 | O192: 0.5294117647 | P192: 0.5294117647 | Q192: 0.5294117647
A193: SWE | B193: Polyculture | C193: Other freshwater fish | D193: S | E193: Unpaid labour by gender | F193: questionnaires | G193: A - Census | H193: Y | I193: 3 | J193: every 3'rd year | K193: 100 | M193: 136 | N193: 72 | O193: 0.5294117647 | P193: 0.5294117647 | Q193: 0.5294117647 | R193: replaced with "Tanks and raceways" seg8.2
A194: SWE | B194: Hatcheries and nurseries | C194: Other freshwater fish | D194: S | E194: Unpaid labour by gender | F194: questionnaires | G194: A - Census | H194: Y | I194: 3 | J194: every 3'rd year | K194: 100 | M194: 136 | N194: 72 | O194: 0.5294117647 | P194: 0.5294117647 | Q194: 0.5294117647
A195: SWE | B195: Other | C195: Mussels and Oysters | D195: S | E195: Unpaid labour by gender | F195: questionnaires | G195: A - Census | H195: Y | I195: 3 | J195: every 3'rd year | K195: 100 | L195: Mussels and Oysters needs to be clustered | M195: 136 | N195: 72 | O195: 0.5294117647 | P195: 0.5294117647 | Q195: 0.5294117647
A196: SWE | B196: Other | C196: Crustaceans | D196: S | E196: Unpaid labour by gender | F196: questionnaires | G196: A - Census | H196: Y | I196: 3 | J196: every 3'rd year | K196: 100 | M196: 136 | N196: 72 | O196: 0.5294117647 | P196: 0.5294117647 | Q196: 0.5294117647
A197: SWE | B197: Hatcheries and nurseries | C197: Salmon and trout | D197: S | E197: Employment by gender | F197: questionnaires | G197: A - Census | H197: Y | I197: 3 | J197: every 3'rd year | K197: 100 | L197: Salmon and trout needs to be clustered | M197: 136 | N197: 72 | O197: 0.5294117647 | P197: 0.5294117647 | Q197: 0.5294117647
A198: SWE | B198: Ponds | C198: Other freshwater fish | D198: S | E198: Employment by gender | F198: questionnaires | G198: A - Census | H198: Y | I198: 3 | J198: every 3'rd year | K198: 100 | M198: 136 | N198: 72 | O198: =N198/M198 -> 0.5294117647 | P198: =O198 -> 0.5294117647 | Q198: =N198/(M198*K198/100) -> 0.5294117647
A199: SWE | B199: Recirculating systems | C199: Other freshwater fish | D199: S | E199: Employment by gender | F199: questionnaires | G199: A - Census | H199: Y | I199: 3 | J199: every 3'rd year | K199: 100 | M199: 136 | N199: 72 | O199: 0.5294117647 | P199: 0.5294117647 | Q199: 0.5294117647 | R199: aggregated into seg 8.2
A200: SWE | B200: Cages | C200: Other freshwater fish | D200: S | E200: Employment by gender | F200: questionnaires | G200: A - Census | H200: Y | I200: 3 | J200: every 3'rd year | K200: 100 | M200: 136 | N200: 72 | O200: 0.5294117647 | P200: 0.5294117647 | Q200: 0.5294117647
... 93 more rows

Sheet Table3C Pop segments processing
A1: Table 3C: Population segments for collection of economic and social data for the processing industry
N2: WP years | O2: 2018-2019
N3: AR year | O3: 2018
A4: MS | B4: Segment | C4: Type of variables (E/S) | D4: Variables | E4: Data sources | F4: Type of data collection scheme | G4: Frequency | H4: Planned sample rate % | I4: Comments | J4: Frame population | K4: Achieved sample number | L4: Achieved Sample Rate % | M4: Response Rate % | N4: Achieved Sample no/Planned sample no. | O4: AR Comments
A5: SWE | B5: all segments. Enterprises with ≥ 250 employees will be clustered with enterprises with 50-249 employees due to confidentiality reasons. | C5: E | D5: Turnover | E5: financial accounts | F5: A - Census | G5: Every year | H5: 1 | J5: 213 | K5: 213 | L5: =K5/J5 -> 1 | M5: 100 | N5: =K5/(J5*H5/100) -> 100
A6: SWE | B6: all segments. Enterprises with ≥ 250 employees will be clustered with enterprises with 50-249 employees due to confidentiality reasons. | C6: E | D6: Other income | E6: financial accounts | F6: A - Census | G6: Every year | H6: 1 | J6: 213 | K6: 213 | L6: =K6/J6 -> 1 | M6: 101 | N6: =K6/(J6*H6/100) -> 100
A7: SWE | B7: all segments. Enterprises with ≥ 250 employees will be clustered with enterprises with 50-249 employees due to confidentiality reasons. | C7: E | D7: Personnel costs | E7: financial accounts | F7: A - Census | G7: Every year | H7: 1 | J7: 213 | K7: 213 | L7: 1 | M7: 102 | N7: 100
A8: SWE | B8: all segments. Enterprises with ≥ 250 employees will be clustered with enterprises with 50-249 employees due to confidentiality reasons. | C8: E | D8: Value of unpaid labour | E8: Expert evaluation | F8: A - Census | G8: Every year | H8: 1 | I8: The value is based on expert evaluation which is different from the WP which states own calculations. | J8: 213 | K8: 213 | L8: 1 | M8: 103 | N8: 100 | O8: Data will be based on an expert evaluation made by the competent authority Statistics Sweden. The reason for this is that it is not possible to use any regular data collection scheme.
A9: SWE | B9: all segments. Enterprises with ≥ 250 employees will be clustered with enterprises with 50-249 employees due to confidentiality reasons. | C9: E | D9: Value for external agency workers (optional) | I9: It's optional and SWE will not collect the data. | O9: Did not collect as stated in WP.
A10: SWE | B10: all segments. Enterprises with ≥ 250 employees will be clustered with enterprises with 50-249 employees due to confidentiality reasons. | C10: E | D10: energy costs | E10: questionnaires | F10: C - Non-Probability Sample Survey | G10: Every year | H10: 1 | J10: 17 | K10: 17 | L10: =K10/J10 -> 1 | M10: 100 | N10: =K10/(J10*H10/100) -> 100
A11: SWE | B11: all segments. Enterprises with ≥ 250 employees will be clustered with enterprises with 50-249 employees due to confidentiality reasons. | C11: E | D11: Purchase of fish and other raw material for produkction | E11: financial accounts + questionnaires | F11: A - Census | G11: Every year | H11: 1 | J11: 213 | K11: 213 | L11: =K11/J11 -> 1 | M11: 103 | N11: =K11/(J11*H11/100) -> 100
A12: SWE | B12: all segments. Enterprises with ≥ 250 employees will be clustered with enterprises with 50-249 employees due to confidentiality reasons. | C12: E | D12: other operational costs | E12: financial accounts | F12: A - Census | G12: Every year | H12: 1 | J12: 213 | K12: 213 | L12: 1 | M12: 103 | N12: 100
A13: SWE | B13: all segments. Enterprises with ≥ 250 employees will be clustered with enterprises with 50-249 employees due to confidentiality reasons. | C13: E | D13: operating subsidies | E13: questionnaires | F13: C - Non-Probability Sample Survey | G13: Every year | H13: 1 | I13: It's not possible for SWE to seperate subsidies to a reasonable cost. We'll collect data for the variable group. | J13: 17 | K13: 17 | L13: =K13/J13 -> 1 | M13: 100 | N13: =K13/(J13*H13/100) -> 100 | O13: We reported according to WP.
A14: SWE | B14: all segments. Enterprises with ≥ 250 employees will be clustered with enterprises with 50-249 employees due to confidentiality reasons. | C14: E | D14: subsidies on investments | E14: questionnaires | F14: C - Non-Probability Sample Survey | G14: Every year | H14: 1 | I14: It's not possible for SWE to seperate subsidies to a reasonable cost. We'll collect data for the variable group. | J14: 17 | K14: 17 | L14: =K14/J14 -> 1 | M14: 100 | N14: =K14/(J14*H14/100) -> 100 | O14: We reported according to WP.
A15: SWE | B15: all segments. Enterprises with ≥ 250 employees will be clustered with enterprises with 50-249 employees due to confidentiality reasons. | C15: E | D15: consumption of fixed capital | E15: financial accounts | F15: A - Census | G15: Every year | H15: 1 | J15: 213 | K15: 213 | L15: =K15/J15 -> 1 | M15: 103 | N15: =K15/(J15*H15/100) -> 100
A16: SWE | B16: all segments. Enterprises with ≥ 250 employees will be clustered with enterprises with 50-249 employees due to confidentiality reasons. | C16: E | D16: total value of assets | E16: financial accounts | F16: A - Census | G16: Every year | H16: 1 | J16: 213 | K16: 213 | L16: 1 | M16: 103 | N16: 100
A17: SWE | B17: all segments. Enterprises with ≥ 250 employees will be clustered with enterprises with 50-249 employees due to confidentiality reasons. | C17: E | D17: Financial income | E17: financial accounts | F17: A - Census | G17: Every year | H17: 1 | J17: 213 | K17: 213 | L17: 1 | M17: 103 | N17: 100
A18: SWE | B18: all segments. Enterprises with ≥ 250 employees will be clustered with enterprises with 50-249 employees due to confidentiality reasons. | C18: E | D18: Financial expenditure | E18: financial accounts | F18: A - Census | G18: Every year | H18: 1 | J18: 213 | K18: 213 | L18: 1 | M18: 103 | N18: 100
A19: SWE | B19: all segments. Enterprises with ≥ 250 employees will be clustered with enterprises with 50-249 employees due to confidentiality reasons. | C19: E | D19: Net investments | E19: financial accounts | F19: A - Census | G19: Every year | H19: 1 | J19: 213 | K19: 213 | L19: 1 | M19: 103 | N19: 100
A20: SWE | B20: all segments. Enterprises with ≥ 250 employees will be clustered with enterprises with 50-249 employees due to confidentiality reasons. | C20: E | D20: debt | E20: financial accounts | F20: A - Census | G20: Every year | H20: 1 | J20: 213 | K20: 213 | L20: 1 | M20: 103 | N20: 100
A21: SWE | B21: all segments. Enterprises with ≥ 250 employees will be clustered with enterprises with 50-249 employees due to confidentiality reasons. | C21: E | D21: Number of persons employed | E21: Employment Register | F21: A - Census | G21: Every year | H21: 1 | J21: 213 | K21: 213 | L21: 1 | M21: 103 | N21: 100
A22: SWE | B22: all segments. Enterprises with ≥ 250 employees will be clustered with enterprises with 50-249 employees due to confidentiality reasons. | C22: E | D22: FTE National | E22: financial accounts | F22: A - Census | G22: Every year | H22: 1 | J22: 213 | K22: 213 | L22: 1 | M22: 103 | N22: 100
A23: SWE | B23: all segments. Enterprises with ≥ 250 employees will be clustered with enterprises with 50-249 employees due to confidentiality reasons. | C23: E | D23: Unpaid labour | E23: Expert evaluation | F23: A - Census | G23: Evey year | H23: 1 | J23: 213 | O23: Data is based on an expert evaluation made by the competent authority Statistics Sweden. The reason for this is that it is not possible to use any regular data collection scheme.
A24: SWE | B24: all segments. Enterprises with ≥ 250 employees will be clustered with enterprises with 50-249 employees due to confidentiality reasons. | C24: E | D24: Number of hours worked by employees and unpaid workers | F24: A - Census | G24: Every year | H24: 1 | I24: The datacollection in SWE is on a aggregate level. It's not sure SWE can collect disagregated data. | J24: 213 | O24: Not possible for SWE to collect as stated in WP.
A25: SWE | B25: all segments. Enterprises with ≥ 250 employees will be clustered with enterprises with 50-249 employees due to confidentiality reasons. | C25: E | D25: Number of enterprises | E25: Business Register | F25: A - Census | G25: Every year | H25: 1 | J25: 213 | K25: 213 | L25: =K25/J25 -> 1 | M25: 103 | N25: =K25/(J25*H25/100) -> 100
A26: SWE | B26: all segments. Enterprises with ≥ 250 employees will be clustered with enterprises with 50-249 employees due to confidentiality reasons. | C26: E | D26: Weight of raw material per species and origin (optional) | I26: It's optional and SWE will not collect the data. | O26: Did not collect as stated in WP.
A27: SWE | B27: all segments. EnteB32:N47rprises with ≥ 250 employees will be clustered with enterprises with 50-249 employees due to confidentiality reasons. | C27: S | D27: Employment by gender | E27: Employment Register | F27: A - Census | G27: Every 3rd year | H27: 1 | J27: 213 | K27: 213 | L27: 1 | M27: 103 | N27: 100
A28: SWE | B28: all segments. Enterprises with ≥ 250 employees will be clustered with enterprises with 50-249 employees due to confidentiality reasons. | C28: S | D28: Employment by age | E28: Employment Register | F28: A - Census | G28: Every 3rd year | H28: 1 | J28: 213 | K28: 213 | L28: 1 | M28: 103 | N28: 100
A29: SWE | B29: all segments. Enterprises with ≥ 250 employees will be clustered with enterprises with 50-249 employees due to confidentiality reasons. | C29: S | D29: Employment by education level | E29: Employment Register | F29: A - Census | G29: Every 3rd year | H29: 1 | J29: 213 | K29: 213 | L29: 1 | M29: 103 | N29: 100
A30: SWE | B30: all segments. Enterprises with ≥ 250 employees will be clustered with enterprises with 50-249 employees due to confidentiality reasons. | C30: S | D30: Employment by nationality | E30: Employment Register | F30: A - Census | G30: Every 3rd year | H30: 1 | J30: 213 | K30: 213 | L30: 1 | M30: 103 | N30: 100
A31: SWE | B31: all segments. Enterprises with ≥ 250 employees will be clustered with enterprises with 50-249 employees due to confidentiality reasons. | C31: S | D31: FTE National | E31: financial accounts | F31: A - Census | G31: Every 3rd year | H31: 1 | J31: 213 | K31: 213 | L31: 1 | M31: 103 | N31: 100

Sheet Table4A Sampling plan descripti
A1: Table 4A: Sampling plan description for biological data
X2: WP years | Y2: 2018-2019
X3: AR year | Y3: 2018
P4: Conformity | S4: Informative Data
A5: MS | B5: MS participating in sampling | C5: Region | D5: RFMO/RFO/IO | E5: Sub-area / Fishing ground | F5: Scheme | G5: Stratum ID code | H5: PSU type | I5: Catch fractions covered | J5: Species/ Stocks covered for estimation of volume and length of catch fractions | K5: Seasonality (Temporal strata) | L5: Reference years | M5: Average Number of PSU during the reference years | N5: Planned number of PSUs | O5: Comments | P5: Total number of PSU in the sampling year | Q5: Achieved number of PSU in the sampling year | R5: % of achievement (100*Q/N) | S5: Number of unique vessels with activity in the stratum | T5: Number of unique vessels sampled | U5: Number of fishing trips in the stratum | V5: Number of fishing trips sampled | W5: Number of species with length measurements | X5: Total number of length measurements | Y5: AR Comments
A6: SWE | B6: SWE | C6: North sea and Eastern Arctic | D6: ICES | E6: 20,21 | F6: Skagerrak/Kattegat at-sea | G6: SWE - SkaKat (at-sea) - Act - 20/21 - PanTrawlTun | H6: Vessel | I6: landings+discards | J6: All species and stocks | K6: Quarterly | L6: 2013-2015 | M6: 32.3 | N6: 3 | P6: 24 | Q6: 9 | R6: =100*9/12 -> 75 | S6: 24 | T6: 6 | U6: 781 | V6: 9 | W6: 64 | X6: =10837+5709 -> 16546 | Y6: Value for planned PSUs (column N) refers to quarterly sample size so annual sample size is really n=3*4=12. Albeit PSU is vessel, vessels are selected without replacement from quarterly sampling frames with one trip taken for each vessel selected. This means the same vessel can be present in multiple quarters and the number of PSU sampled (column Q)is identical to the number of fishing trips (column V). Based on the above, % achievement (Column R) was 9/(3*4)*100 = 75%. Slight departure from 100% relates to difficulties in compensating for bad weather events.
A7: SWE | B7: SWE | C7: North sea and Eastern Arctic | D7: ICES | E7: 20,21 | F7: Skagerrak/Kattegat at-sea | G7: SWE - SkaKat (at-sea) - Act - 20/21 - PanTrawlNoTun | H7: Vessel | I7: landings+discards | J7: All species and stocks | K7: Quarterly | L7: 2013-2015 | M7: 51 | N7: 3 | P7: 46 | Q7: 12 | R7: =100*12/12 -> 100 | S7: 46 | T7: 12 | U7: 1811 | V7: 12 | W7: 29 | X7: =667+7344 -> 8011 | Y7: Value for planned PSUs (column N) refers to quarterly sample size so annual sample size is really n=3*4=12. Albeit PSU is vessel, vessels are selected without replacement from quarterly sampling frames with one trip taken for each vessel selected. This means the same vessel can be present in multiple quarters and the number of PSU sampled (column Q)is identical to the number of fishing trips (column V). Based on the above, % achievement (Column R) was 12/(3*4)*100 = 100%.
A8: SWE | B8: SWE | C8: North sea and Eastern Arctic | D8: ICES | E8: 20 | F8: Skagerrak/Kattegat at-sea | G8: SWE - SkaKat (at-sea) - Act - 20 - NepTrawlGrid | H8: Vessel | I8: landings+discards | J8: All species and stocks | K8: Quarterly | L8: 2013-2015 | M8: 80 | N8: 3 | P8: 69 | Q8: 12 | R8: =100*12/12 -> 100 | S8: 69 | T8: 11 | U8: 3349 | V8: 12 | W8: 36 | X8: 9077 | Y8: Value for planned PSUs (column N) refers to quarterly sample size so annual sample size is really n=3*4=12. Albeit PSU is vessel, vessels are selected without replacement from quarterly sampling frames with one trip taken for each vessel selected. This means the same vessel can be present in multiple quarters and the number of PSU sampled (column Q)is identical to the number of fishing trips (column V). Based on the above, % achievement (Column R) was 12/(3*4)*100 = 100%.
A9: SWE | B9: SWE | C9: North sea and Eastern Arctic | D9: ICES | E9: 21 | F9: Skagerrak/Kattegat at-sea | G9: SWE - SkaKat (at-sea) - Act - 21 - NepTrawlGrid | H9: Vessel | I9: landings+discards | J9: All species and stocks | K9: Quarterly | L9: 2013-2015 | M9: 41 | N9: 3 | P9: 39 | Q9: 9 | R9: =100*9/12 -> 75 | S9: 39 | T9: 7 | U9: 1260 | V9: 9 | W9: 46 | X9: 9144 | Y9: Value for planned PSUs (column N) refers to quarterly sample size so annual sample size is really n=3*4=12. Albeit PSU is vessel, vessels are selected without replacement from quarterly sampling frames with one trip taken for each vessel selected. This means the same vessel can be present in multiple quarters and the number of PSU sampled (column Q)is identical to the number of fishing trips (column V). Based on the above, % achievement (Column R) was 9/(3*4)*100 = 75%. Slight departure from 100% relates to difficulties in compensating for bad weather events.
A10: SWE | B10: SWE | C10: North sea and Eastern Arctic | D10: ICES | E10: 20 | F10: Skagerrak/Kattegat at-sea | G10: SWE - SkaKat (at-sea) - Act - 20 - MixTrawl | H10: Vessel | I10: landings+discards | J10: All species and stocks | K10: Quarterly | L10: 2013-2015 | M10: 68.7 | N10: 3 | P10: 64 | Q10: 12 | R10: =100*12/12 -> 100 | S10: 64 | T10: 10 | U10: 1901 | V10: 12 | W10: 52 | X10: 11997 | Y10: Value for planned PSUs (column N) refers to quarterly sample size so annual sample size is really n=3*4=12. Albeit PSU is vessel, vessels are selected without replacement from quarterly sampling frames with one trip taken for each vessel selected. This means the same vessel can be present in multiple quarters and the number of PSU sampled (column Q)is identical to the number of fishing trips (column V). Based on the above, % achievement (Column R) was 12/(3*4)*100 = 100%.
A11: SWE | B11: SWE | C11: North sea and Eastern Arctic | D11: ICES | E11: 21 | F11: Skagerrak/Kattegat at-sea | G11: SWE - SkaKat (at-sea) - Act - 21 - MixTrawl | H11: Vessel | I11: landings+discards | J11: All species and stocks | K11: Quarterly | L11: 2013-2015 | M11: 43 | N11: 3 | P11: 48 | Q11: 12 | R11: =100*12/12 -> 100 | S11: 48 | T11: 10 | U11: 1624 | V11: 12 | W11: 46 | X11: 12672 | Y11: Value for planned PSUs (column N) refers to quarterly sample size so annual sample size is really n=3*4=12. Albeit PSU is vessel, vessels are selected without replacement from quarterly sampling frames with one trip taken for each vessel selected. This means the same vessel can be present in multiple quarters and the number of PSU sampled (column Q)is identical to the number of fishing trips (column V). Based on the above, % achievement (Column R) was 12/(3*4)*100 = 100%.
A12: SWE | B12: SWE | C12: North sea and Eastern Arctic | D12: ICES | E12: 20,21 | F12: Skagerrak/Kattegat at-sea | G12: SWE - SkaKat (at-sea) - Pass - 20/21 - NepPots | H12: Vessel | I12: landings+discards | J12: All species and stocks | K12: Quarterly | L12: 2013-2015 | M12: 105.7 | N12: 3 | P12: 95 | Q12: 9 | R12: =100*9/12 -> 75 | S12: 95 | T12: 8 | U12: 6455 | V12: 9 | W12: 26 | X12: =314+3865 -> 4179 | Y12: Value for planned PSUs (column N) refers to quarterly sample size so annual sample size is really n=3*4=12. Albeit PSU is vessel, vessels are selected without replacement from quarterly sampling frames with one trip taken for each vessel selected. This means the same vessel can be present in multiple quarters and the number of PSU sampled (column Q)is identical to the number of fishing trips (column V). Based on the above, % achievement (Column R) was 9/(3*4)*100 = 75%. Slight departure from 100% relates to difficulties in compensating for bad weather events.
A13: SWE | B13: SWE | C13: North sea and Eastern Arctic | D13: ICES | E13: 20,21 | F13: Skagerrak/Kattegat at-sea | G13: SWE - SkaKat (at-sea) - OutOfFrame | H13: Vessel | I13: None | J13: None | K13: None | L13: 2013-2015 | M13: 339 | N13: 0 | O13: Out of frame - includes all PSUs that are not covered by the sampling scheme Skagerrak/Kattegat at-sea | P13: 297 | Q13: 0 | S13: 297 | T13: 0 | U13: 10115 | V13: 0 | W13: 0 | X13: 0
A14: SWE | B14: SWE | C14: Baltic Sea | D14: ICES | E14: 22-32 | F14: Baltic self-sampling | G14: SWE - Balt (self) - Act - 22/32 - DemTrawl | H14: Week | I14: Landings | J14: selected species/stocks | K14: Quarterly | L14: 2013-2015 | M14: 52 | N14: =8*4 -> 32 | O14: Only cod is measured | P14: 52 | Q14: 20 | R14: =100*20/20 -> 100 | S14: 33 | T14: 14 | U14: 488 | V14: 54 | W14: 1 | X14: 13594 | Y14: PSU sampling goals were reduced from 8 to 5 weeks per quarter, i.e., to 20 weeks per year, as a response to the situation of the fishery (-58% relative to reference years). Results indicate that present sampling by size category still performs well at these lower level. Planned number of PSUs refers to quarterly sample size so in reality annual value is 5*4 = 20 weeks (column N) and % achievement in terms of PSUs (column Q) was 20/(5*4)*100 = 100%.
A15: SWE | B15: SWE | C15: Baltic Sea | D15: ICES | E15: 24-25 | F15: Baltic at-sea | G15: SWE - Balt (at-sea) - Act - 24/25 - DemTrawl | H15: Vessel | I15: landings+discards | J15: All species and stocks | K15: Quarterly | L15: 2013-2015 | M15: 34.7 | N15: 4 | P15: 33 | Q15: 12 | R15: =100*12/12 -> 100 | S15: 33 | T15: 6 | U15: 488 | V15: 12 | W15: 15 | X15: 24383 | Y15: Value for planned PSUs (column N) refers to quarterly sample size so annual sample size is really n=3*4=12. Albeit PSU is vessel, vessels are selected without replacement from quarterly sampling frames with one trip taken for each vessel selected. This means the same vessel can be present in multiple quarters and the number of PSU sampled (column Q) is identical to the number of fishing trips (column V). Based on the above, % achievement (Column R) was 12/(3*4)*100 = 100%.
A16: SWE | B16: SWE | C16: Baltic Sea | D16: ICES | E16: 23 | F16: Baltic at-sea or self-sampling | G16: SWE - Balt (at-sea/self) - Pass - 23 - DemNets | H16: Vessel (at-sea); Week (self-sampling) | I16: landings+discards | J16: All species and stocks | K16: Quarterly | L16: 2013-2015 | M16: 51.0 (at-sea) | N16: 4 (at-sea) | O16: The stratum will primarily be sampled at-sea. Final decision between at-sea and self-sampling in this stratum depends on yet-unknown logistics, safety and refusals in at-sea sampling; | P16: 48 | Q16: 12 weeks | R16: =100*12/20 -> 60 | S16: 48 | T16: 18 | U16: 2206 | V16: 27 | W16: 24 | X16: 5009 | Y16: Changes to sampling plan made in the begining of 2018 are described in TexBox 4A. Briefly, PSU adopted was week and sampling effort was set to 5 weeks per quarter with 1-2 trips sampled each week as response to large decreases in the fishery. Accordingly, the expected number of annual PSU (column Q) was 20 weeks and % achievement in terms of PSU (column R) was effectively 12/20*100 = 60%. The main reason for <100% achievement relates to the fact that the cod fishery have deteriorated in recent years primarily due to the poor status of the Eastern Baltic cod. In 2018 only 29% of the quota was utilized and swedish landings from western baltic cod were -56% of those registered during the reference period. The small scale coastal fishery is also deteriorating due to seal predation in the gears. The rapid decline in the fishery makes it difficult to predict fishing patterns (more details in textBox 4A)
A17: SWE | B17: SWE | C17: Baltic Sea | D17: ICES | E17: 24 | F17: Baltic at-sea or self-sampling | G17: SWE - Balt (at-sea/self) - Pass - 24 - DemNets | H17: Week (self-sampling); Vessel (at-sea) | I17: landings | J17: All species and stocks | K17: Quarterly | L17: 2013-2015 | M17: 12 (self-sampling) | N17: 8 (self-sampling) | O17: The stratum will primarily be sampled through self-sampling. Final decision between at-sea and self-sampling in this stratum depends on logistics, safety and refusals in at-sea sampling; Sampling in 2016-2017 revealed a low percentage of discards in SD 24-29. In these areas cod below minimum landing size is usually landed. The landed BMS cod will be picked up by the self-sampling programme. | P17: 52 | Q17: 8 weeks | R17: =100*8/20 -> 40 | S17: 39 | T17: 19 | U17: 1244 | V17: 24 | W17: 13 | X17: 2831 | Y17: Changes to sampling plan made in the begining of 2018 are described in TexBox 4A. PSU sampling goals were reduced from 8 to 5 weeks per quarter, i.e., to 20 weeks per year, as response to large decreases in the fishery. Planned number of PSUs (column N) refers to quarterly sample size so in reality annual value is 5*4 = 20 weeks and % achievement in terms of PSUs (column R) was 8/20*100 = 40%. Reasons for the departure from expected were relate to the fact that the cod fishery have deteriorated in recent years primarily due to the poor status of the Eastern Baltic cod. In 2018 only 29% of the quota was utilized and swedish landings are now less than 50% of those registered during the reference period. The small scale coastal fishery is also deteriorating due to seal predation in the gears. The rapid decline in the fishery makes it difficult to predict fishing patterns (more details in TextBox4A).
A18: SWE | B18: SWE | C18: Baltic Sea | D18: ICES | E18: 25 | F18: Baltic at-sea or self-sampling | G18: SWE - Balt (at-sea/self) - Pass - 25 - DemNets | H18: Week (self-sampling); Vessel (at-sea) | I18: landings | J18: All species and stocks | K18: Quarterly | L18: 2013-2015 | M18: 12 (self-sampling) | N18: 8 (self-sampling) | O18: The stratum will primarily be sampled through self-sampling. Final decision between at-sea and self-sampling in this stratum depends on logistics, safety and refusals in at-sea sampling; Sampling in 2016-2017 revealed a low percentage of discards in SD 24-29. In these areas cod below minimum landing size is usually landed. The landed BMS cod will be picked up by the self-sampling programme. | P18: 52 | Q18: 17 weeks | R18: =100*17/20 -> 85 | S18: 77 | T18: 13 | U18: 1967 | V18: 23 | W18: 14 | X18: 2606 | Y18: Changes to sampling plan made in the begining of 2018 are described in TexBox 4A. PSU sampling goals were reduced from 8 to 5 weeks per quarter, i.e., to 20 weeks per year, as response to large decreases in the fishery. Planned number of PSUs (column N) refers to quarterly sample size so in reality annual value is 5*4 = 20 weeks and % achievement in terms of PSUs (column R) was 17/20*100 = 85%. The main reason for <100% achievement relates to the fact that the cod fishery have deteriorated in recent years primarily due to the poor status of the Eastern Baltic cod (more details in TextBox4A). .
A19: SWE | B19: SWE | C19: Baltic Sea | D19: ICES | E19: 27-29 | F19: Baltic at-sea or self-sampling | G19: SWE - Balt (at-sea/self) - Pass - 27/29 - DemNets | H19: Week (self-sampling); Vessel (at-sea) | I19: landings | J19: All species and stocks | K19: Quarterly | L19: 2013-2015 | M19: 12 (self-sampling) | N19: 6 (self-sampling) | O19: The stratum will primarily be sampled through self-sampling. Final decision between at-sea and self-sampling in this stratum depends on logistics, safety and refusals in at-sea sampling; Sampling in 2016-2017 revealed a low percentage of discards in SD 24-29. In these areas cod below minimum landing size is usually landed. The landed BMS cod will be picked up by the self-sampling programme. | P19: 52 | Q19: 5 weeks | R19: =100*5/20 -> 25 | S19: 62 | T19: 9 | U19: 1494 | V19: 18 | W19: 11 | X19: 5667 | Y19: Changes to sampling plan made in the begining of 2018 are described in TexBox 4A. PSU sampling goals were reduced from 8 to 5 weeks per quarter, i.e., to 20 weeks per year, as a response to the situation of the fishery. Planned number of PSUs (column N) refers to quarterly sample size so in reality annual value is 5*4 = 20 weeks and % achievement in terms of PSUs (column R) was 5/20*100 = 25%. Reasons for the departure from expected were relate to the fact that the cod fishery have deteriorated in recent years primarily due to the poor status of the Eastern Baltic cod. In 2018 only 29% of the quota was utilized and swedish landings are now less than 50% of those registered during the reference period. The small scale coastal fishery is also deteriorating due to seal predation in the gears. The rapid decline in the fishery makes it difficult to predict fishing patterns. (more details in TextBox4A).
A20: SWE | B20: SWE | C20: Baltic Sea | D20: ICES | E20: 24 | F20: Baltic at-sea or self-sampling | G20: SWE - Balt (at-sea/self) - Pass - 24 - DemLonglines | H20: Week (self-sampling); Vessel (at-sea) | I20: landings | J20: All species and stocks | K20: Quarterly | L20: 2013-2015 | M20: 12 (self-sampling) | N20: 6 (self-sampling) | O20: The stratum will primarily be sampled through self-sampling. Final decision between at-sea and self-sampling in this stratum depends on logistics, safety and refusals in at-sea sampling; Sampling in 2016-2017 revealed a low percentage of discards in SD 24-29. In these areas cod below minimum landing size is usually landed. The landed BMS cod will be picked up by the self-sampling programme. | P20: 52 | Q20: 3 weeks | R20: =100*19/20 -> 95 | S20: 5 | T20: 2 | U20: 41 | V20: 3 | W20: 3 | X20: 345 | Y20: Changes to sampling plan made in the begining of 2018 are described in TexBox 4A. Additional change involved the merging of strata "24 DemLonglines" and "25 DemLonglines" were merged . Planned number of PSUs (column N) refers to quarterly sample size so in reality annual value is 5*4 = 20 weeks (for both strata) and % achievement in terms of PSUs (column R) was 19/20*100 = 95%. Reasons for the departure from expected are the same as reported for other passive strata with the negative consequences of baltic cod deterioration being attenuated by the decision of merging strata (most trips take place in SD25)
A21: SWE | B21: SWE | C21: Baltic Sea | D21: ICES | E21: 25 | F21: Baltic at-sea or self-sampling | G21: SWE - Balt (at-sea/self) - Pass - 25 - DemLonglines | H21: Week (self-sampling); Vessel (at-sea) | I21: landings | J21: All species and stocks | K21: Quarterly | L21: 2013-2015 | M21: 12 (self-sampling) | N21: 6 (self-sampling) | O21: The stratum will primarily be sampled through self-sampling. Final decision between at-sea and self-sampling in this stratum depends on logistics, safety and refusals in at-sea sampling; Sampling in 2016-2017 revealed a low percentage of discards in SD 24-29. In these areas cod below minimum landing size is usually landed. The landed BMS cod will be picked up by the self-sampling programme. | P21: 52 | Q21: 19 weeks | R21: =100*19/20 -> 95 | S21: 21 | T21: 6 | U21: 319 | V21: 22 | W21: 5 | X21: 3651 | Y21: Changes to sampling plan made in the begining of 2018 are described in TexBox 4A. Additional change involved the merging of strata "24 DemLonglines" and "25 DemLonglines" were merged . Planned number of PSUs (column N) refers to quarterly sample size so in reality annual value is 5*4 = 20 weeks (for both strata) and % achievement in terms of PSUs (column R) was 19/20*100 = 95%.
A22: SWE | B22: SWE | C22: Baltic Sea | D22: ICES | E22: 22-32 | F22: Baltic at-sea or self-sampling | G22: SWE - Balt (at-sea/self) - OutOfFrame | H22: Vessel | I22: None | J22: None | K22: None | L22: 2013-2015 | M22: 487.7 | N22: 0 | P22: 460 | Q22: 0 | S22: 460 | T22: 0 | U22: 23465 | V22: 0 | W22: 0 | X22: 0
A23: SWE | B23: SWE | C23: Baltic Sea | D23: ICES | E23: SD30 | F23: Baltic onshore sampling | G23: KBN3 | H23: Vessel | I23: Landings+Discards | J23: all species and stocks | K23: monthly | L23: 2015 | M23: 16 | N23: 1 | O23: Seasonality: Monthly throughout the year provided that ice conditions permit fishery. | P23: 2 | Q23: 2 | R23: =100*Q23/N23 -> 200 | S23: 2 | T23: 2 | U23: 218 | V23: 7 | W23: 7 | X23: 3695
A24: SWE | B24: SWE | C24: Baltic Sea | D24: ICES | E24: SD30-31 | F24: Baltic onshore sampling | G24: KBN4 | H24: Vessel | I24: Landings+Discards | J24: all species and stocks | K24: monthly | L24: 2015 | M24: 80 | N24: 6 | O24: Seasonality: Monthly during fishing season (April-September). | P24: 71 | Q24: 6 | R24: =100*Q24/N24 -> 100 | S24: 71 | T24: 6 | U24: 1663 | V24: 11 | W24: 9 | X24: 3617
A25: SWE | B25: SWE | C25: Baltic Sea | D25: ICES | E25: SD31 | F25: Baltic onshore sampling | G25: KBN5 | H25: Local fishing area | I25: Landings+Discards | J25: all species and stocks | K25: monthly | L25: 2015 | M25: 5 | N25: 5 | O25: Seasonality: Monthly during fishing season (limited to the vendace's spawning period in September-October). PSU: 5 different local fishing areas are identified within the Sub-area/Fishing ground SD31. To ensure that data are collected from all these 5 areas, as required by the national stock assessment group, "local fishing area" is set as the PSU. | P25: 5 | Q25: 5 | R25: =100*Q25/N25 -> 100 | S25: 35 | T25: 4 | U25: 554 | V25: 4 | W25: 7 | X25: 925
A26: SWE | B26: SWE | C26: Baltic Sea | D26: EIFAAC/ICES/GFCM | E26: SD22-24 | F26: Baltic at-sea 2 | G26: KBWE2 | H26: Vessel | I26: Landings+Discards | J26: all species and stocks | K26: monthly | L26: 2015 | M26: 17 | N26: 1 | O26: Seasonality: Monthly during fishing season (special individual permit is required where start and stop days are defined). Besides the metier-sampling, silver eel are collected for biological (stock) sampling and they are selected by length stratification. | P26: 5 | Q26: 0 | R26: =100*Q26/N26 -> 0 | S26: 5 | T26: 0 | U26: 429 | V26: 0 | W26: 0 | X26: 0 | Y26: Not sampled in 2018 due to restrictions in the fishery and therefore underachieved.
A27: SWE | B27: SWE | C27: Baltic Sea | D27: EIFAAC/ICES/GFCM | E27: SD25-29,32 | F27: Baltic at-sea 2 | G27: KBEE2/KBEE3 | H27: Vessel | I27: Landings+Discards | J27: all species and stocks | K27: monthly | L27: 2015 | M27: 127 | N27: 2 | O27: Seasonality: Monthly during fishing season (special individual permit is required where start and stop days are defined). Besides the metier-sampling, silver eel are collected for biological (stock) sampling and they are selected by length stratification. | P27: 60 | Q27: 4 | R27: =100*Q27/N27 -> 200 | S27: 60 | T27: 2 | U27: 6469 | V27: 6 | W27: 29 | X27: 2287 | Y27: In SD 25 three different boats were used for the metier sampling and in four we were onboard.
A28: SWE | B28: SWE | C28: North sea and Eastern Arctic | D28: ICES | E28: 20 | F28: Skagerrak/Kattegat other (market stock specific) | G28: SWE - SkaKat (stock spec) - Act - 20 - HerSpr | H28: Fishing trip x species (HER, SPR) | I28: landings | J28: selected species/stocks | K28: Quarterly | L28: 2013-2015 | M28: 214 | N28: Not defined | O28: PSU number calculated from trip * species combinations | P28: 100 | Q28: 33 | R28: NA | S28: 13 | T28: 8 | U28: 100 | V28: 33 | W28: 2 | X28: 2409
A29: SWE | B29: SWE | C29: North sea and Eastern Arctic | D29: ICES | E29: 21 | F29: Skagerrak/Kattegat other (market stock specific) | G29: SWE - SkaKat (stock spec) - Act - 21 - HerSpr | H29: Fishing trip x species (HER, SPR) | I29: landings | J29: selected species/stocks | K29: Quarterly | L29: 2013-2015 | M29: 64.7 | N29: Not defined | O29: PSU number calculated from trip * species combinations | P29: 81 | Q29: 20 | R29: NA | S29: 7 | T29: 6 | U29: 81 | V29: 20 | W29: 2 | X29: 1311
A30: SWE | B30: SWE | C30: North sea and Eastern Arctic | D30: ICES | E30: 20 | F30: Skagerrak/Kattegat other (market stock specific) | G30: SWE - SkaKat (stock spec) - Act - 20 - Cod | H30: Fishing trip x species (COD) | I30: Landings | J30: selected species/stocks | K30: Quarterly | L30: 2013-2015 | M30: 2254.3 | N30: Not defined | O30: PSU number calculated from trip * species combinations | P30: 2663.9 | Q30: 64 | R30: NA | S30: 109 | T30: 23 | U30: 2664 | V30: 64 | W30: 1 | X30: 1780
A31: SWE | B31: SWE | C31: North sea and Eastern Arctic | D31: ICES | E31: 21 | F31: Skagerrak/Kattegat other (market stock specific) | G31: SWE - SkaKat (stock spec) - Act - 21 - Cod | H31: Fishing trip x species (COD) | I31: Landings | J31: selected species/stocks | K31: Quarterly | L31: 2013-2015 | M31: 495.3 | N31: Not defined | O31: PSU number calculated from trip * species combinations | P31: 795.3 | Q31: 34 | R31: NA | S31: 47 | T31: 10 | U31: 795 | V31: 34 | W31: 1 | X31: 642
A32: SWE | B32: SWE | C32: Baltic Sea | D32: ICES | E32: 24 | F32: Baltic other (market, stock specific) | G32: SWE - Balt (stock spec) - Act - 24 - HerSpr | H32: Fishing trip x species (HER, SPR) | I32: landings | J32: selected species/stocks | K32: Quarterly | L32: 2013-2015 | M32: 43 | N32: Not defined | O32: PSU number calculated from trip * species combinations | P32: 27 | Q32: 12 | R32: NA | S32: 3 | T32: 2 | U32: 27 | V32: 12 | W32: 2 | X32: 1459
A33: SWE | B33: SWE | C33: Baltic Sea | D33: ICES | E33: 25 | F33: Baltic other (market, stock specific) | G33: SWE - Balt (stock spec) - Act - 25 - HerSpr | H33: Fishing trip x species (HER, SPR) | I33: landings | J33: selected species/stocks | K33: Quarterly | L33: 2013-2015 | M33: 705.3 | N33: Not defined | O33: PSU number calculated from trip * species combinations | P33: 732.3 | Q33: 33 | R33: NA | S33: 29 | T33: 6 | U33: 732 | V33: 33 | W33: 2 | X33: 3747
A34: SWE | B34: SWE | C34: Baltic Sea | D34: ICES | E34: 26 | F34: Baltic other (market, stock specific) | G34: SWE - Balt (stock spec) - Act - 26 - HerSpr | H34: Fishing trip x species (HER, SPR) | I34: landings | J34: selected species/stocks | K34: Quarterly | L34: 2013-2015 | M34: 19 | N34: Not defined | O34: PSU number calculated from trip * species combinations | P34: 43 | Q34: 7 | R34: NA | S34: 11 | T34: 5 | U34: 43 | V34: 7 | W34: 2 | X34: 926
A35: SWE | B35: SWE | C35: Baltic Sea | D35: ICES | E35: 27 | F35: Baltic other (market, stock specific) | G35: SWE - Balt (stock spec) - Act - 27 - HerSpr | H35: Fishing trip x species (HER, SPR) | I35: landings | J35: selected species/stocks | K35: Quarterly | L35: 2013-2015 | M35: 592.7 | N35: Not defined | O35: PSU number calculated from trip * species combinations | P35: 780.3 | Q35: 13 | R35: NA | S35: 31 | T35: 4 | U35: 780 | V35: 13 | W35: 2 | X35: 2235
A36: SWE | B36: SWE | C36: Baltic Sea | D36: ICES | E36: 28 | F36: Baltic other (market, stock specific) | G36: SWE - Balt (stock spec) - Act - 28 - HerSpr | H36: Fishing trip x species (HER, SPR) | I36: landings | J36: selected species/stocks | K36: Quarterly | L36: 2013-2015 | M36: 383.3 | N36: Not defined | O36: PSU number calculated from trip * species combinations | P36: 490.5 | Q36: 13 | R36: NA | S36: 22 | T36: 7 | U36: 490 | V36: 13 | W36: 2 | X36: 1725
A37: SWE | B37: SWE | C37: Baltic Sea | D37: ICES | E37: 29 | F37: Baltic other (market, stock specific) | G37: SWE - Balt (stock spec) - Act - 29 - HerSpr | H37: Fishing trip x species (HER, SPR) | I37: landings | J37: selected species/stocks | K37: Quarterly | L37: 2013-2015 | M37: 115 | N37: Not defined | O37: PSU number calculated from trip * species combinations | P37: 148.7 | Q37: 3 | R37: NA | S37: 17 | T37: 3 | U37: 149 | V37: 3 | W37: 2 | X37: 435
A38: SWE | B38: SWE | C38: Freshwater | D38: ICES | E38: freshwater | F38: logbooks & journals | G38: EEL-Fresh | H38: Fisherman X lake | I38: landings + discard | J38: Eel | K38: annual | L38: 2015-2017 | M38: NA | N38: NA | O38: Fishery statistics required for the assessment. All trips are sampled as all catch is reported. Biological sampling described in textbox 4A and table 1C. | P38: 57 | Q38: 3 | R38: 100 | S38: 57 | T38: 3 | U38: NA | V38: 3 | W38: 1 | X38: 324 | Y38: NA = due to different legal requirements in different lakes, no measure of fishing effort exists.

Sheet Table4B Sampling frame descrip
A1: Table 4B: Sampling frame description for biological data
E2: WP years | F2: 2018-2019
E3: AR year | F3: 2018
A4: MS | B4: Stratum ID number | C4: Stratum | D4: Sampling frame description | E4: Method of PSU selection | F4: Comments
A5: SWE | B5: SWE - SkaKat (at-sea) - Act - 20/21 - PanTrawlTun | C5: Shrimp trawlers operating with tunnel in Skagerrak and Kattegat | D5: List of trawlers active in the Pandalus fishery with tunnel in subdiv 20 or 21 during 2016 | E5: random draw from vessel list with unequal probability (probability proportional to number of trips; draw with replacement)
A6: SWE | B6: SWE - SkaKat (at-sea) - Act - 20/21 - PanTrawlNoTun | C6: Shrimp trawlers operating without tunnel in Skagerrak and Kattegat | D6: List of trawlers active in the Pandalus fishery without tunnel in subdiv 20 or 21 during 2016 | E6: random draw from vessel list with unequal probability (probability proportional to number of trips; draw with replacement)
A7: SWE | B7: SWE - SkaKat (at-sea) - Act - 20 - NepTrawlGrid | C7: Nephrops trawlers operating with grid in Skagerrak | D7: List of trawlers active in the Nephrops trawl fishery with grid in subdiv 20 during 2016 | E7: random draw from vessel list with unequal probability (probability proportional to number of trips; draw with replacement)
A8: SWE | B8: SWE - SkaKat (at-sea) - Act - 21 - NepTrawlGrid | C8: Nephrops trawlers operating with grid in Kattegat | D8: List of trawlers active in the Nephrops trawl fishery with grid in subdiv 21 during 2016 | E8: random draw from vessel list with unequal probability (probability proportional to number of trips; draw with replacement)
A9: SWE | B9: SWE - SkaKat (at-sea) - Act - 20 - MixTrawl | C9: Mix fish and crustacean trawlers operating in Skagerrak | D9: List of trawlers active in the Mix Fish and Crustacean fishery in subdiv 20 during 2016 | E9: random draw from vessel list with unequal probability (probability proportional to number of trips; draw with replacement)
A10: SWE | B10: SWE - SkaKat (at-sea) - Act - 21 - MixTrawl | C10: Mix fish and crustacean trawlers operating in Kattegat | D10: List of trawlers active in the Mix Fish and Crustacean fishery in subdiv 21 during 2016 | E10: random draw from vessel list with unequal probability (probability proportional to number of trips; draw with replacement)
A11: SWE | B11: SWE - SkaKat (at-sea) - Pass - 20/21 - NepPots | C11: Nephrops potters operating in Skagerrak and Kattegat | D11: List of vessels active in the Nephrops Pot fishery in subdiv 20 or 21 during 2016 | E11: random draw from vessel list with unequal probability (probability proportional to number of trips; draw with replacement)
A12: SWE | B12: SWE - SkaKat (at-sea) - OutOfFrame | C12: Vessels in region operating in fisheries not targetted in the sampling scheme Skagerrak/Kattegat at-sea | D12: List of active vessels in 2016 not covered in other strata of the sampling scheme | E12: NA
A13: SWE | B13: SWE - Balt (self) - Act - 22/32 - DemTrawl | C13: Demersal trawlers operating in Subdiv 24 to 32 | D13: List of weeks of the year (with some restrictions) | E13: random draw from list without replacement
A14: SWE | B14: SWE - Balt (self) - OutOfFrame | C14: Vessels in region operating in fisheries not targetted in the sampling scheme Baltic self-sampling | D14: List of active vessels in 2016 not covered in other strata of the sampling scheme | E14: NA
A15: SWE | B15: SWE - Balt (at-sea) - Act - 24/25 - DemTrawl | C15: Demersal trawlers operating in Subdiv 24 and 25 | D15: List of vessels active in the Demersal trawl fishery in subdiv 24 or 25 during 2016 | E15: random draw from vessel list with unequal probability (probability proportional to number of trips; draw with replacement)
